SERVICE_CODE,ORGANISATION_UNIT,EXPENDITURE_CATEGORY,EXPENDITURE_DESCRIPTION,EXPENDITURE_CODE,NARRATIVE,DATE,TRANSATION_CODE,NET_AMOUNT,SUPPLIER_CODE,SUPPLIER_NAME,FROM_DATE,TO_DATE,FINANCIAL_PERIOD_YEAR
CEO,LEGAL SERVICES,EMPLOYEES,APPOINTMENT EXPENSES,1301,P124104-SERVICE-Property Solicitor Advertising Costs,22/11/2023 00:00:00,279826,695,HB0461,HB EDITORIAL SERVICES LTD,30/10/2023 00:00:00,26/11/2023 00:00:00,P08-2024
P&V,MYDDELTON HOUSE GARDENS,EMPLOYEES,APPOINTMENT EXPENSES,1301,P122954-SERVICE-head gardener recruitment,11/07/2023 00:00,279011,999,NA0232,NATIONAL GARDENS SPECIALIST LIMITED,30/10/2023 00:00:00,26/11/2023 00:00:00,P08-2024
R&B,HUMAN RESOURCES,EMPLOYEES,TRAINING EXPENSES,1305,P123989-SERVICE-Westminster Employment Forum Policy Conferenc,14/11/2023 00:00:00,279543,260,WE0361,WESTMINSTER EMPLOYMENT FORUM PROJECTS,30/10/2023 00:00:00,26/11/2023 00:00:00,P08-2024
R&B,CORPORATE TRAINING,EMPLOYEES,TRAINING EXPENSES,1305,P123666-SERVICE-EDI Training 21/11/2023,26/11/2023 00:00:00,280046,1144.86,KL0167,KLC EMPLOYMENT LAW CONSULTANTS,30/10/2023 00:00:00,26/11/2023 00:00:00,P08-2024
CEO,PROPERTY,EMPLOYEES,TRAINING EXPENSES,1305,P123879-SERVICE-Current Property Issues Conference 2023 for P,11/08/2023 00:00,279240,147,PR0031,PROFESSIONAL CONFERENCES,30/10/2023 00:00:00,26/11/2023 00:00:00,P08-2024
R&B,FINANCE,EMPLOYEES,TRAINING EXPENSES,1305,P123952-SERVICE-PAYROLL UPDATE 2024,20/11/2023 00:00:00,279583,595,PA0393,THE PAYROLL CENTRE,30/10/2023 00:00:00,26/11/2023 00:00:00,P08-2024
P&V,YOUTH AND SCHOOLS,EMPLOYEES,TRAINING EXPENSES,1305,P124068-SERVICE-MISP Skills Workshop 5,20/11/2023 00:00:00,279758,25,MI0459,MINDFULNESS IN SCHOOLS PROJECT,30/10/2023 00:00:00,26/11/2023 00:00:00,P08-2024
P&V,NORTH AREA RANGERS,EMPLOYEES,TRAINING EXPENSES,1305,P123247-SERVICE-ATV Training - 6 Candidates,20/11/2023 00:00:00,279759,510,EA0421,EASTEC UK LTD,30/10/2023 00:00:00,26/11/2023 00:00:00,P08-2024
P&V,SOUTH AREA RANGERS,EMPLOYEES,TRAINING EXPENSES,1305,P123247-SERVICE-ATV Training - 6 Candidates,20/11/2023 00:00:00,279759,510,EA0421,EASTEC UK LTD,30/10/2023 00:00:00,26/11/2023 00:00:00,P08-2024
,LV LEISURE CENTRE GOLF COURSE,EMPLOYEES,TRAINING EXPENSES,1305,P123874-SERVICE-Lantra Training Equipment,11/08/2023 00:00,278820,109.91,SC0057,SCREWFIX DIRECT LTD,30/10/2023 00:00:00,26/11/2023 00:00:00,P08-2024
,LV LEISURE CENTRE GOLF COURSE,EMPLOYEES,TRAINING EXPENSES,1305,Edm-site materials,11/08/2023 00:00,278820,89.97,SC0057,SCREWFIX DIRECT LTD,30/10/2023 00:00:00,26/11/2023 00:00:00,P08-2024
,LV LEISURE CENTRE GOLF COURSE,EMPLOYEES,TRAINING EXPENSES,1305,Edm-site materials,11/08/2023 00:00,278820,19.94,SC0057,SCREWFIX DIRECT LTD,30/10/2023 00:00:00,26/11/2023 00:00:00,P08-2024
,LV LEISURE CENTRE GOLF COURSE,EMPLOYEES,TRAINING EXPENSES,1305,Edm-site materials,11/08/2023 00:00,278820,-109.91,SC0057,SCREWFIX DIRECT LTD,30/10/2023 00:00:00,26/11/2023 00:00:00,P08-2024
R&B,NON DISTRIBUTED COSTS,EMPLOYEES,SUPERANNUATION ADDED YEARS,1310,RESIDUAL LIABILITIES,14/11/2023 00:00:00,279540,5276.2,LO0031,LONDON PENSIONS FUND AUTHORITY,30/10/2023 00:00:00,26/11/2023 00:00:00,P08-2024
P&V,SOUTH AREA RANGERS,EMPLOYEES,CRB CHECKS,1330,DBS CHECKS,11/07/2023 00:00,279285,38,DD0119,DUE DILIGENCE CHECKING LIMITED,30/10/2023 00:00:00,26/11/2023 00:00:00,P08-2024
P&V,SOUTH AREA RANGERS,EMPLOYEES,CRB CHECKS,1330,ADMIN FEE,11/07/2023 00:00,279285,20,DD0119,DUE DILIGENCE CHECKING LIMITED,30/10/2023 00:00:00,26/11/2023 00:00:00,P08-2024
P&V,SPORT AND LEISURE,EMPLOYEES,CRB CHECKS,1330,DBS CHECKS,11/07/2023 00:00,279285,18,DD0119,DUE DILIGENCE CHECKING LIMITED,30/10/2023 00:00:00,26/11/2023 00:00:00,P08-2024
P&V,SPORT AND LEISURE,EMPLOYEES,CRB CHECKS,1330,ADMIN FEE,11/07/2023 00:00,279285,20,DD0119,DUE DILIGENCE CHECKING LIMITED,30/10/2023 00:00:00,26/11/2023 00:00:00,P08-2024
,LV LEISURE CENTRE CAMPSITE,EMPLOYEES,CRB CHECKS,1330,ADMIN FEE,11/07/2023 00:00,279285,60,DD0119,DUE DILIGENCE CHECKING LIMITED,30/10/2023 00:00:00,26/11/2023 00:00:00,P08-2024
,LV LEISURE CENTRE CAMPSITE,EMPLOYEES,CRB CHECKS,1330,DBS CHECKS,11/07/2023 00:00,279285,36,DD0119,DUE DILIGENCE CHECKING LIMITED,30/10/2023 00:00:00,26/11/2023 00:00:00,P08-2024
P&V,SPORTS DEVELOPMENT GRANTS & AG,EMPLOYEES,CRB CHECKS,1330,ADMIN FEE,11/07/2023 00:00,279285,40,DD0119,DUE DILIGENCE CHECKING LIMITED,30/10/2023 00:00:00,26/11/2023 00:00:00,P08-2024
P&V,SPORTS DEVELOPMENT GRANTS & AG,EMPLOYEES,CRB CHECKS,1330,DBS CHECKS,11/07/2023 00:00,279285,36,DD0119,DUE DILIGENCE CHECKING LIMITED,30/10/2023 00:00:00,26/11/2023 00:00:00,P08-2024
P&V,SPORT AND LEISURE,EMPLOYEES,DRIVING LICENCE CHECKS,1335,J SYMONS DRIVING LICENCE CHECK,11/08/2023 00:00,279336,6.25,FI0288,FIRST ADVANTAGE EUROPE LTD,30/10/2023 00:00:00,26/11/2023 00:00:00,P08-2024
R&B,CORPORATE TRAINING,EMPLOYEES,APPRENTICE LEVY,1390,PAYE,14/11/2023 00:00:00,279385,999,HM0368,HMRC,30/10/2023 00:00:00,26/11/2023 00:00:00,P08-2024
CEO,LVLC SERVICE CHARGE,PREMISES RELATED EXPENDITURE,SCHEDULED GROUND MAINTENANCE,2111,INCENTIVE Q2,11/07/2023 00:00,278910,353.91,GL0214,GLENDALE GROUNDS MANAGEMENT LIMITED,30/10/2023 00:00:00,26/11/2023 00:00:00,P08-2024
CEO,LVLC SERVICE CHARGE,PREMISES RELATED EXPENDITURE,SCHEDULED GROUND MAINTENANCE,2111,LV GM Core/Flyti-Oct23,21/11/2023 00:00:00,279220,1511.73,GL0214,GLENDALE GROUNDS MANAGEMENT LIMITED,30/10/2023 00:00:00,26/11/2023 00:00:00,P08-2024
CEO,LVLC SERVICE CHARGE,PREMISES RELATED EXPENDITURE,SCHEDULED GROUND MAINTENANCE,2111,LV GM Core/Flyti-Oct23,21/11/2023 00:00:00,279220,55.13,GL0214,GLENDALE GROUNDS MANAGEMENT LIMITED,30/10/2023 00:00:00,26/11/2023 00:00:00,P08-2024
P&V,NORTH AREA RANGERS,PREMISES RELATED EXPENDITURE,UNSCHEDULED GROUND MAINTENANCE,2112,P123683-SERVICE-Hedge Cutting at Nazeing,11/07/2023 00:00,279040,450,BU0090,BUSH WHEELER SERVICES LTD,30/10/2023 00:00:00,26/11/2023 00:00:00,P08-2024
P&V,MYDDELTON HOUSE,PREMISES RELATED EXPENDITURE,CONTRACT CLEANING,2120,P121875-SERVICE-Myddelton House Cleaning,15/11/2023 00:00:00,279608,1617,BR0632,BRITANNIA SERVICES GROUP LTD,30/10/2023 00:00:00,26/11/2023 00:00:00,P08-2024
,LEE VALLEY WATERWORKS CENTRE,PREMISES RELATED EXPENDITURE,CONTRACT CLEANING,2120,P123091-SERVICE-Cleaning WaterWorks Centre,15/11/2023 00:00:00,279610,776.16,BR0632,BRITANNIA SERVICES GROUP LTD,30/10/2023 00:00:00,26/11/2023 00:00:00,P08-2024
,LEE VALLEY CAMPSITE,PREMISES RELATED EXPENDITURE,CONTRACT CLEANING,2120,P123545-SERVICE-Site Cleaning OCT 23,20/11/2023 00:00:00,279356,3767,LI0305,LIMPIAR CLEANING,30/10/2023 00:00:00,26/11/2023 00:00:00,P08-2024
,LEE VALLEY CAMPSITE,PREMISES RELATED EXPENDITURE,CONTRACT CLEANING,2120,P122615-SERVICE-Nov - Dec 23,14/11/2023 00:00:00,279371,93.56,IN0012,INITIAL WASHROOM HYGIENE,30/10/2023 00:00:00,26/11/2023 00:00:00,P08-2024
,LEE VALLEY CARAVAN PARK,PREMISES RELATED EXPENDITURE,CONTRACT CLEANING,2120,P123976-SERVICE-General and Glass waste collection,14/11/2023 00:00:00,279332,3738.53,CL0037,VEOLIA ES (UK) LTD,30/10/2023 00:00:00,26/11/2023 00:00:00,P08-2024
,LEE VALLEY CARAVAN PARK,PREMISES RELATED EXPENDITURE,CONTRACT CLEANING,2120,P123913-SERVICE-Unit cleaning,14/11/2023 00:00:00,279354,2699,LI0305,LIMPIAR CLEANING,30/10/2023 00:00:00,26/11/2023 00:00:00,P08-2024
,LEE VALLEY CARAVAN PARK,PREMISES RELATED EXPENDITURE,CONTRACT CLEANING,2120,P123912-SERVICE-Windows and facility block cleaning,14/11/2023 00:00:00,279355,1992,LI0305,LIMPIAR CLEANING,30/10/2023 00:00:00,26/11/2023 00:00:00,P08-2024
,LEE VALLEY CARAVAN PARK,PREMISES RELATED EXPENDITURE,CONTRACT CLEANING,2120,P124178-SERVICE-Hygiene supplies,26/11/2023 00:00:00,279786,98.87,IN0012,INITIAL WASHROOM HYGIENE,30/10/2023 00:00:00,26/11/2023 00:00:00,P08-2024
,LEE VALLEY CARAVAN PARK,PREMISES RELATED EXPENDITURE,CONTRACT CLEANING,2120,P124179-SERVICE-Clean unit 124,26/11/2023 00:00:00,279836,75,LI0305,LIMPIAR CLEANING,30/10/2023 00:00:00,26/11/2023 00:00:00,P08-2024
P&V,NORTH AREA RANGERS,PREMISES RELATED EXPENDITURE,CONTRACT CLEANING,2120,P123370-SERVICE-Cleaning - Ranger Office / Shower,15/11/2023 00:00:00,279607,303.1,BR0632,BRITANNIA SERVICES GROUP LTD,30/10/2023 00:00:00,26/11/2023 00:00:00,P08-2024
P&V,NORTH AREA RANGERS,PREMISES RELATED EXPENDITURE,CONTRACT CLEANING,2120,P123370-SERVICE-Cleaning - Meeting Room,15/11/2023 00:00:00,279607,84.98,BR0632,BRITANNIA SERVICES GROUP LTD,30/10/2023 00:00:00,26/11/2023 00:00:00,P08-2024
P&V,GUNPOWDER PARK,PREMISES RELATED EXPENDITURE,CONTRACT CLEANING,2120,LV GM Core/Flyti-Oct23,21/11/2023 00:00:00,279220,276.13,GL0214,GLENDALE GROUNDS MANAGEMENT LIMITED,30/10/2023 00:00:00,26/11/2023 00:00:00,P08-2024
P&V,RIVER LEE COUNTRY PARK,PREMISES RELATED EXPENDITURE,CONTRACT CLEANING,2120,LV GM Core/Flyti-Oct23,21/11/2023 00:00:00,279220,552.26,GL0214,GLENDALE GROUNDS MANAGEMENT LIMITED,30/10/2023 00:00:00,26/11/2023 00:00:00,P08-2024
,LV LEISURE CENTRE CAMPSITE,PREMISES RELATED EXPENDITURE,CONTRACT CLEANING,2120,P123974-SERVICE-Site cleaning cabins and cocoons,14/11/2023 00:00:00,279357,3289,LI0305,LIMPIAR CLEANING,30/10/2023 00:00:00,26/11/2023 00:00:00,P08-2024
P&V,MYDDLETON HSE HERITAGE CENTRE,PREMISES RELATED EXPENDITURE,CLEANING CONTRACT,2121,P121876-SERVICE-Tea Room Cleaning,15/11/2023 00:00:00,279609,808.5,BR0632,BRITANNIA SERVICES GROUP LTD,30/10/2023 00:00:00,26/11/2023 00:00:00,P08-2024
P&V,MYDDLETON HSE HERITAGE CENTRE,PREMISES RELATED EXPENDITURE,CLEANING CONTRACT,2121,P121876-SERVICE-Tea Room Cleaning,20/11/2023 00:00:00,279775,743.82,BR0632,BRITANNIA SERVICES GROUP LTD,30/10/2023 00:00:00,26/11/2023 00:00:00,P08-2024
,LEE VALLEY MARINA STANSTEAD,PREMISES RELATED EXPENDITURE,GM MAIN CONTRACT SCHEDULED,2141,INCENTIVE Q2,11/07/2023 00:00,278910,326.4,GL0214,GLENDALE GROUNDS MANAGEMENT LIMITED,30/10/2023 00:00:00,26/11/2023 00:00:00,P08-2024
,LEE VALLEY MARINA STANSTEAD,PREMISES RELATED EXPENDITURE,GM MAIN CONTRACT SCHEDULED,2141,LV GM Core/Flyti-Oct23,21/11/2023 00:00:00,279220,322.59,GL0214,GLENDALE GROUNDS MANAGEMENT LIMITED,30/10/2023 00:00:00,26/11/2023 00:00:00,P08-2024
,LEE VALLEY WATERWORKS CENTRE,PREMISES RELATED EXPENDITURE,GM MAIN CONTRACT SCHEDULED,2141,INCENTIVE Q2,11/07/2023 00:00,278910,408.75,GL0214,GLENDALE GROUNDS MANAGEMENT LIMITED,30/10/2023 00:00:00,26/11/2023 00:00:00,P08-2024
,LEE VALLEY WATERWORKS CENTRE,PREMISES RELATED EXPENDITURE,GM MAIN CONTRACT SCHEDULED,2141,LV GM Core/Flyti-Oct23,21/11/2023 00:00:00,279220,303.06,GL0214,GLENDALE GROUNDS MANAGEMENT LIMITED,30/10/2023 00:00:00,26/11/2023 00:00:00,P08-2024
,LEE VALLEY WATERWORKS CENTRE,PREMISES RELATED EXPENDITURE,GM MAIN CONTRACT SCHEDULED,2141,LV GM Core/Flyti-Oct23,21/11/2023 00:00:00,279220,132.87,GL0214,GLENDALE GROUNDS MANAGEMENT LIMITED,30/10/2023 00:00:00,26/11/2023 00:00:00,P08-2024
P&V,LEE VALLEY FARM HOLYFIELDHALL,PREMISES RELATED EXPENDITURE,GM MAIN CONTRACT SCHEDULED,2141,INCENTIVE Q2,11/07/2023 00:00,278910,71.81,GL0214,GLENDALE GROUNDS MANAGEMENT LIMITED,30/10/2023 00:00:00,26/11/2023 00:00:00,P08-2024
P&V,LEE VALLEY FARM HOLYFIELDHALL,PREMISES RELATED EXPENDITURE,GM MAIN CONTRACT SCHEDULED,2141,LV GM Core/Flyti-Oct23,21/11/2023 00:00:00,279220,74.84,GL0214,GLENDALE GROUNDS MANAGEMENT LIMITED,30/10/2023 00:00:00,26/11/2023 00:00:00,P08-2024
P&V,EAST INDIA DOCK AND BOW CREEK,PREMISES RELATED EXPENDITURE,GM MAIN CONTRACT SCHEDULED,2141,INCENTIVE Q2,11/07/2023 00:00,278910,858.27,GL0214,GLENDALE GROUNDS MANAGEMENT LIMITED,30/10/2023 00:00:00,26/11/2023 00:00:00,P08-2024
P&V,EAST INDIA DOCK AND BOW CREEK,PREMISES RELATED EXPENDITURE,GM MAIN CONTRACT SCHEDULED,2141,LV GM Core/Flyti-Oct23,21/11/2023 00:00:00,279220,424.94,GL0214,GLENDALE GROUNDS MANAGEMENT LIMITED,30/10/2023 00:00:00,26/11/2023 00:00:00,P08-2024
P&V,EAST INDIA DOCK AND BOW CREEK,PREMISES RELATED EXPENDITURE,GM MAIN CONTRACT SCHEDULED,2141,LV GM Core/Flyti-Oct23,21/11/2023 00:00:00,279220,474.54,GL0214,GLENDALE GROUNDS MANAGEMENT LIMITED,30/10/2023 00:00:00,26/11/2023 00:00:00,P08-2024
P&V,NORTH AREA RANGERS,PREMISES RELATED EXPENDITURE,GM MAIN CONTRACT SCHEDULED,2141,INCENTIVE Q2,11/07/2023 00:00,278910,1648.72,GL0214,GLENDALE GROUNDS MANAGEMENT LIMITED,30/10/2023 00:00:00,26/11/2023 00:00:00,P08-2024
P&V,NORTH AREA RANGERS,PREMISES RELATED EXPENDITURE,GM MAIN CONTRACT SCHEDULED,2141,LV GM Core/Flyti-Oct23,21/11/2023 00:00:00,279220,2833.83,GL0214,GLENDALE GROUNDS MANAGEMENT LIMITED,30/10/2023 00:00:00,26/11/2023 00:00:00,P08-2024
P&V,SOUTH AREA RANGERS,PREMISES RELATED EXPENDITURE,GM MAIN CONTRACT SCHEDULED,2141,INCENTIVE Q2,11/07/2023 00:00,278910,2649.27,GL0214,GLENDALE GROUNDS MANAGEMENT LIMITED,30/10/2023 00:00:00,26/11/2023 00:00:00,P08-2024
P&V,SOUTH AREA RANGERS,PREMISES RELATED EXPENDITURE,GM MAIN CONTRACT SCHEDULED,2141,LV GM Core/Flyti-Oct23,21/11/2023 00:00:00,279220,189.82,GL0214,GLENDALE GROUNDS MANAGEMENT LIMITED,30/10/2023 00:00:00,26/11/2023 00:00:00,P08-2024
P&V,SOUTH AREA RANGERS,PREMISES RELATED EXPENDITURE,GM MAIN CONTRACT SCHEDULED,2141,LV GM Core/Flyti-Oct23,21/11/2023 00:00:00,279220,3277.43,GL0214,GLENDALE GROUNDS MANAGEMENT LIMITED,30/10/2023 00:00:00,26/11/2023 00:00:00,P08-2024
P&V,ABBEY GARDENS,PREMISES RELATED EXPENDITURE,GM MAIN CONTRACT SCHEDULED,2141,INCENTIVE Q2,11/07/2023 00:00,278910,666.71,GL0214,GLENDALE GROUNDS MANAGEMENT LIMITED,30/10/2023 00:00:00,26/11/2023 00:00:00,P08-2024
P&V,ABBEY GARDENS,PREMISES RELATED EXPENDITURE,GM MAIN CONTRACT SCHEDULED,2141,LV GM Core/Flyti-Oct23,21/11/2023 00:00:00,279220,1447.59,GL0214,GLENDALE GROUNDS MANAGEMENT LIMITED,30/10/2023 00:00:00,26/11/2023 00:00:00,P08-2024
P&V,GUNPOWDER PARK,PREMISES RELATED EXPENDITURE,GM MAIN CONTRACT SCHEDULED,2141,INCENTIVE Q2,11/07/2023 00:00,278910,1330.97,GL0214,GLENDALE GROUNDS MANAGEMENT LIMITED,30/10/2023 00:00:00,26/11/2023 00:00:00,P08-2024
P&V,GUNPOWDER PARK,PREMISES RELATED EXPENDITURE,GM MAIN CONTRACT SCHEDULED,2141,LV GM Core/Flyti-Oct23,21/11/2023 00:00:00,279220,1425.25,GL0214,GLENDALE GROUNDS MANAGEMENT LIMITED,30/10/2023 00:00:00,26/11/2023 00:00:00,P08-2024
P&V,RIVER LEE COUNTRY PARK,PREMISES RELATED EXPENDITURE,GM MAIN CONTRACT SCHEDULED,2141,INCENTIVE Q2,11/07/2023 00:00,278910,7101.5,GL0214,GLENDALE GROUNDS MANAGEMENT LIMITED,30/10/2023 00:00:00,26/11/2023 00:00:00,P08-2024
P&V,RIVER LEE COUNTRY PARK,PREMISES RELATED EXPENDITURE,GM MAIN CONTRACT SCHEDULED,2141,LV GM Core/Flyti-Oct23,21/11/2023 00:00:00,279220,94.91,GL0214,GLENDALE GROUNDS MANAGEMENT LIMITED,30/10/2023 00:00:00,26/11/2023 00:00:00,P08-2024
P&V,RIVER LEE COUNTRY PARK,PREMISES RELATED EXPENDITURE,GM MAIN CONTRACT SCHEDULED,2141,LV GM Core/Flyti-Oct23,21/11/2023 00:00:00,279220,8334.73,GL0214,GLENDALE GROUNDS MANAGEMENT LIMITED,30/10/2023 00:00:00,26/11/2023 00:00:00,P08-2024
,LEE VALLEY VELOPARK,PREMISES RELATED EXPENDITURE,GM MAIN CONTRACT SCHEDULED,2141,INCENTIVE Q2,11/07/2023 00:00,278910,527.04,GL0214,GLENDALE GROUNDS MANAGEMENT LIMITED,30/10/2023 00:00:00,26/11/2023 00:00:00,P08-2024
,LEE VALLEY VELOPARK,PREMISES RELATED EXPENDITURE,GM MAIN CONTRACT SCHEDULED,2141,LV GM Core/Flyti-Oct23,21/11/2023 00:00:00,279220,3621.98,GL0214,GLENDALE GROUNDS MANAGEMENT LIMITED,30/10/2023 00:00:00,26/11/2023 00:00:00,P08-2024
,LV HOCKEY AND TENNIS CENTRE,PREMISES RELATED EXPENDITURE,GM MAIN CONTRACT SCHEDULED,2141,INCENTIVE Q2,11/07/2023 00:00,278910,226.8,GL0214,GLENDALE GROUNDS MANAGEMENT LIMITED,30/10/2023 00:00:00,26/11/2023 00:00:00,P08-2024
,LV HOCKEY AND TENNIS CENTRE,PREMISES RELATED EXPENDITURE,GM MAIN CONTRACT SCHEDULED,2141,LV GM Core/Flyti-Oct23,21/11/2023 00:00:00,279220,2221.26,GL0214,GLENDALE GROUNDS MANAGEMENT LIMITED,30/10/2023 00:00:00,26/11/2023 00:00:00,P08-2024
P&V,THREE MILLS,PREMISES RELATED EXPENDITURE,GM MAIN CONTRACT SCHEDULED,2141,INCENTIVE Q2,11/07/2023 00:00,278910,567.14,GL0214,GLENDALE GROUNDS MANAGEMENT LIMITED,30/10/2023 00:00:00,26/11/2023 00:00:00,P08-2024
P&V,THREE MILLS,PREMISES RELATED EXPENDITURE,GM MAIN CONTRACT SCHEDULED,2141,LV GM Core/Flyti-Oct23,21/11/2023 00:00:00,279220,811.82,GL0214,GLENDALE GROUNDS MANAGEMENT LIMITED,30/10/2023 00:00:00,26/11/2023 00:00:00,P08-2024
,LEE VALLEY RIDING CENTRE,PREMISES RELATED EXPENDITURE,GM MAIN CONTRACT SCHEDULED,2141,INCENTIVE Q2,11/07/2023 00:00,278910,187.79,GL0214,GLENDALE GROUNDS MANAGEMENT LIMITED,30/10/2023 00:00:00,26/11/2023 00:00:00,P08-2024
,LEE VALLEY RIDING CENTRE,PREMISES RELATED EXPENDITURE,GM MAIN CONTRACT SCHEDULED,2141,LV GM Core/Flyti-Oct23,21/11/2023 00:00:00,279220,281.53,GL0214,GLENDALE GROUNDS MANAGEMENT LIMITED,30/10/2023 00:00:00,26/11/2023 00:00:00,P08-2024
,LEE VALLEY ICE CENTRE,PREMISES RELATED EXPENDITURE,GM MAIN CONTRACT SCHEDULED,2141,LV GM Core/Flyti-Oct23,21/11/2023 00:00:00,279220,453.56,GL0214,GLENDALE GROUNDS MANAGEMENT LIMITED,30/10/2023 00:00:00,26/11/2023 00:00:00,P08-2024
P&V,FORMER LV LIDO SITE,PREMISES RELATED EXPENDITURE,GM MAIN CONTRACT SCHEDULED,2141,INCENTIVE Q2,11/07/2023 00:00,278910,391.29,GL0214,GLENDALE GROUNDS MANAGEMENT LIMITED,30/10/2023 00:00:00,26/11/2023 00:00:00,P08-2024
P&V,FORMER LV LIDO SITE,PREMISES RELATED EXPENDITURE,GM MAIN CONTRACT SCHEDULED,2141,LV GM Core/Flyti-Oct23,21/11/2023 00:00:00,279220,556.1,GL0214,GLENDALE GROUNDS MANAGEMENT LIMITED,30/10/2023 00:00:00,26/11/2023 00:00:00,P08-2024
,LEE VALLEY ATHLETICS CENTRE,PREMISES RELATED EXPENDITURE,GM MAIN CONTRACT SCHEDULED,2141,INCENTIVE Q2,11/07/2023 00:00,278910,408.02,GL0214,GLENDALE GROUNDS MANAGEMENT LIMITED,30/10/2023 00:00:00,26/11/2023 00:00:00,P08-2024
,LEE VALLEY ATHLETICS CENTRE,PREMISES RELATED EXPENDITURE,GM MAIN CONTRACT SCHEDULED,2141,LV GM Core/Flyti-Oct23,21/11/2023 00:00:00,279220,336.4,GL0214,GLENDALE GROUNDS MANAGEMENT LIMITED,30/10/2023 00:00:00,26/11/2023 00:00:00,P08-2024
,LEE VALLEY WHITE WATER CENTRE,PREMISES RELATED EXPENDITURE,GM MAIN CONTRACT SCHEDULED,2141,INCENTIVE Q2,11/07/2023 00:00,278910,1389.88,GL0214,GLENDALE GROUNDS MANAGEMENT LIMITED,30/10/2023 00:00:00,26/11/2023 00:00:00,P08-2024
,LEE VALLEY WHITE WATER CENTRE,PREMISES RELATED EXPENDITURE,GM MAIN CONTRACT SCHEDULED,2141,LV GM Core/Flyti-Oct23,21/11/2023 00:00:00,279220,1748.93,GL0214,GLENDALE GROUNDS MANAGEMENT LIMITED,30/10/2023 00:00:00,26/11/2023 00:00:00,P08-2024
,LEE VALLEY WATERWORKS CENTRE,PREMISES RELATED EXPENDITURE,GM HORTICULTURE SCHEDULED,2143,LV GM Core/Flyti-Oct23,21/11/2023 00:00:00,279220,84.97,GL0214,GLENDALE GROUNDS MANAGEMENT LIMITED,30/10/2023 00:00:00,26/11/2023 00:00:00,P08-2024
P&V,NORTH AREA RANGERS,PREMISES RELATED EXPENDITURE,GM HORTICULTURE SCHEDULED,2143,LV GM Core/Flyti-Oct23,21/11/2023 00:00:00,279220,125.25,GL0214,GLENDALE GROUNDS MANAGEMENT LIMITED,30/10/2023 00:00:00,26/11/2023 00:00:00,P08-2024
P&V,SOUTH AREA RANGERS,PREMISES RELATED EXPENDITURE,GM HORTICULTURE SCHEDULED,2143,LV GM Core/Flyti-Oct23,21/11/2023 00:00:00,279220,72.44,GL0214,GLENDALE GROUNDS MANAGEMENT LIMITED,30/10/2023 00:00:00,26/11/2023 00:00:00,P08-2024
P&V,ABBEY GARDENS,PREMISES RELATED EXPENDITURE,GM HORTICULTURE SCHEDULED,2143,LV GM Core/Flyti-Oct23,21/11/2023 00:00:00,279220,987.1,GL0214,GLENDALE GROUNDS MANAGEMENT LIMITED,30/10/2023 00:00:00,26/11/2023 00:00:00,P08-2024
P&V,GUNPOWDER PARK,PREMISES RELATED EXPENDITURE,GM HORTICULTURE SCHEDULED,2143,LV GM Core/Flyti-Oct23,21/11/2023 00:00:00,279220,129.58,GL0214,GLENDALE GROUNDS MANAGEMENT LIMITED,30/10/2023 00:00:00,26/11/2023 00:00:00,P08-2024
P&V,RIVER LEE COUNTRY PARK,PREMISES RELATED EXPENDITURE,GM HORTICULTURE SCHEDULED,2143,LV GM Core/Flyti-Oct23,21/11/2023 00:00:00,279220,67.24,GL0214,GLENDALE GROUNDS MANAGEMENT LIMITED,30/10/2023 00:00:00,26/11/2023 00:00:00,P08-2024
,LEE VALLEY VELOPARK,PREMISES RELATED EXPENDITURE,GM HORTICULTURE SCHEDULED,2143,LV GM Core/Flyti-Oct23,21/11/2023 00:00:00,279220,576.37,GL0214,GLENDALE GROUNDS MANAGEMENT LIMITED,30/10/2023 00:00:00,26/11/2023 00:00:00,P08-2024
,LV HOCKEY AND TENNIS CENTRE,PREMISES RELATED EXPENDITURE,GM HORTICULTURE SCHEDULED,2143,LV GM Core/Flyti-Oct23,21/11/2023 00:00:00,279220,830.01,GL0214,GLENDALE GROUNDS MANAGEMENT LIMITED,30/10/2023 00:00:00,26/11/2023 00:00:00,P08-2024
P&V,THREE MILLS,PREMISES RELATED EXPENDITURE,GM HORTICULTURE SCHEDULED,2143,LV GM Core/Flyti-Oct23,21/11/2023 00:00:00,279220,26.94,GL0214,GLENDALE GROUNDS MANAGEMENT LIMITED,30/10/2023 00:00:00,26/11/2023 00:00:00,P08-2024
,LEE VALLEY RIDING CENTRE,PREMISES RELATED EXPENDITURE,GM HORTICULTURE SCHEDULED,2143,LV GM Core/Flyti-Oct23,21/11/2023 00:00:00,279220,6.74,GL0214,GLENDALE GROUNDS MANAGEMENT LIMITED,30/10/2023 00:00:00,26/11/2023 00:00:00,P08-2024
P&V,FORMER LV LIDO SITE,PREMISES RELATED EXPENDITURE,GM HORTICULTURE SCHEDULED,2143,LV GM Core/Flyti-Oct23,21/11/2023 00:00:00,279220,6.42,GL0214,GLENDALE GROUNDS MANAGEMENT LIMITED,30/10/2023 00:00:00,26/11/2023 00:00:00,P08-2024
,LEE VALLEY WHITE WATER CENTRE,PREMISES RELATED EXPENDITURE,GM HORTICULTURE SCHEDULED,2143,LV GM Core/Flyti-Oct23,21/11/2023 00:00:00,279220,14.71,GL0214,GLENDALE GROUNDS MANAGEMENT LIMITED,30/10/2023 00:00:00,26/11/2023 00:00:00,P08-2024
P&V,MYDDELTON HOUSE GARDENS,PREMISES RELATED EXPENDITURE,GM HORTICULTURE UNSCHEDULED,2144,P123188-SERVICE-Meadow cut -Myddelton House Garden,26/11/2023 00:00:00,278909,1134.72,GL0214,GLENDALE GROUNDS MANAGEMENT LIMITED,30/10/2023 00:00:00,26/11/2023 00:00:00,P08-2024
P&V,MYDDELTON HOUSE GARDENS,PREMISES RELATED EXPENDITURE,GM HORTICULTURE UNSCHEDULED,2144,P123188-SERVICE-Meadow cut -Myddelton House Garden,26/11/2023 00:00:00,279830,-293.27,GL0214,GLENDALE GROUNDS MANAGEMENT LIMITED,30/10/2023 00:00:00,26/11/2023 00:00:00,P08-2024
P&V,SOUTH AREA RANGERS,PREMISES RELATED EXPENDITURE,GM NON MAIN CONT UNSCHEDULED,2147,P124066-SERVICE-Install Picnic Bench at Tottenham Marshes,22/11/2023 00:00:00,279856,950,JO0019,R G JOYCE,30/10/2023 00:00:00,26/11/2023 00:00:00,P08-2024
P&V,SOUTH AREA RANGERS,PREMISES RELATED EXPENDITURE,GM NON MAIN CONT UNSCHEDULED,2147,P123589-SERVICE-Taker and generator to attend site  to areas,26/11/2023 00:00:00,280031,2110,AB0257,ABBEY DRAINS LTD,30/10/2023 00:00:00,26/11/2023 00:00:00,P08-2024
P&V,GUNPOWDER PARK,PREMISES RELATED EXPENDITURE,GM NON MAIN CONT UNSCHEDULED,2147,P123773-SERVICE-Boardwalk Repairs at Gunpowder Park,20/11/2023 00:00:00,279382,550,JO0019,R G JOYCE,30/10/2023 00:00:00,26/11/2023 00:00:00,P08-2024
P&V,SOUTH AREA RANGERS,PREMISES RELATED EXPENDITURE,HABITAT MANAGEMENT WORKS,2149,P123981-SERVICE-Japanese Knot Weed at Tottenham Marsh,14/11/2023 00:00:00,279495,357.5,GO0044,S.H.GOSS & CO LTD,30/10/2023 00:00:00,26/11/2023 00:00:00,P08-2024
P&V,SOUTH AREA RANGERS,PREMISES RELATED EXPENDITURE,HABITAT MANAGEMENT WORKS,2149,P122194-SERVICE-Japanese Knotweed Treament at Waterworks,26/11/2023 00:00:00,280023,291.5,GO0044,S.H.GOSS & CO LTD,30/10/2023 00:00:00,26/11/2023 00:00:00,P08-2024
P&V,SOUTH AREA RANGERS,PREMISES RELATED EXPENDITURE,HABITAT MANAGEMENT WORKS,2149,P122195-SERVICE-Weeds Spot Treatment - Waterworks,26/11/2023 00:00:00,280024,467.5,GO0044,S.H.GOSS & CO LTD,30/10/2023 00:00:00,26/11/2023 00:00:00,P08-2024
P&V,ABBEY GARDENS,PREMISES RELATED EXPENDITURE,HABITAT MANAGEMENT WORKS,2149,P123565-SERVICE-To Slough out the main and calico ditches mat,26/11/2023 00:00:00,280084,3548,FA0099,FARM & COUNTRY SUPPLIES LTD,30/10/2023 00:00:00,26/11/2023 00:00:00,P08-2024
P&V,ABBEY GARDENS,PREMISES RELATED EXPENDITURE,HABITAT MANAGEMENT WORKS,2149,P123565-SERVICE-Removing Typha form fish ponds as marked on t,26/11/2023 00:00:00,280084,2386,FA0099,FARM & COUNTRY SUPPLIES LTD,30/10/2023 00:00:00,26/11/2023 00:00:00,P08-2024
P&V,ABBEY GARDENS,PREMISES RELATED EXPENDITURE,HABITAT MANAGEMENT WORKS,2149,P123565-SERVICE-Mobilisation and track matts demobilisation a,26/11/2023 00:00:00,280084,3475,FA0099,FARM & COUNTRY SUPPLIES LTD,30/10/2023 00:00:00,26/11/2023 00:00:00,P08-2024
P&V,GUNPOWDER PARK,PREMISES RELATED EXPENDITURE,HABITAT MANAGEMENT WORKS,2149,P123071-SERVICE-Japanese Knot Weed at Sewardstone Paddocks,14/11/2023 00:00:00,279493,195,GO0044,S.H.GOSS & CO LTD,30/10/2023 00:00:00,26/11/2023 00:00:00,P08-2024
P&V,GUNPOWDER PARK,PREMISES RELATED EXPENDITURE,HABITAT MANAGEMENT WORKS,2149,P121802-SERVICE-Invasive Species Spraying at Rammey Marsh,14/11/2023 00:00:00,279494,286,GO0044,S.H.GOSS & CO LTD,30/10/2023 00:00:00,26/11/2023 00:00:00,P08-2024
,LEE VALLEY MARINA SPRINGFIELD,PREMISES RELATED EXPENDITURE,GENERAL WASTE,2211,"P123966-SERVICE-General waste & recylng Oct,Nov,Dec",14/11/2023 00:00:00,279328,1591.75,CL0037,VEOLIA ES (UK) LTD,30/10/2023 00:00:00,26/11/2023 00:00:00,P08-2024
,LEE VALLEY MARINA STANSTEAD,PREMISES RELATED EXPENDITURE,GENERAL WASTE,2211,P121961-SERVICE-annual bin pick ups for RH & SM,14/11/2023 00:00:00,279327,1073.47,CL0037,VEOLIA ES (UK) LTD,30/10/2023 00:00:00,26/11/2023 00:00:00,P08-2024
,LEE VALLEY MARINA STANSTEAD,PREMISES RELATED EXPENDITURE,GENERAL WASTE,2211,P121961-SERVICE-annual bin pick ups for RH & SM,14/11/2023 00:00:00,279329,346.74,CL0037,VEOLIA ES (UK) LTD,30/10/2023 00:00:00,26/11/2023 00:00:00,P08-2024
,LEE VALLEY CAMPSITE,PREMISES RELATED EXPENDITURE,GENERAL WASTE,2211,P122977-SERVICE-Skip Collections  Aug- Dec 23,14/11/2023 00:00:00,279325,930.06,CL0037,VEOLIA ES (UK) LTD,30/10/2023 00:00:00,26/11/2023 00:00:00,P08-2024
P&V,NORTH AREA RANGERS,PREMISES RELATED EXPENDITURE,GENERAL WASTE,2211,P123042-SERVICE-12yd General Rubbish Skip at Holyfield Hall F,11/07/2023 00:00,279064,323.4,GB0239,GBN SERVICES LTD,30/10/2023 00:00:00,26/11/2023 00:00:00,P08-2024
P&V,NORTH AREA RANGERS,PREMISES RELATED EXPENDITURE,GENERAL WASTE,2211,P123042-SERVICE-Computer Screen in Skip,11/07/2023 00:00,279064,45,GB0239,GBN SERVICES LTD,30/10/2023 00:00:00,26/11/2023 00:00:00,P08-2024
P&V,NORTH AREA RANGERS,PREMISES RELATED EXPENDITURE,GENERAL WASTE,2211,P124009-SERVICE-12yd General Rubbish Skip at Holyfield Hall F,26/11/2023 00:00:00,279818,50,GB0239,GBN SERVICES LTD,30/10/2023 00:00:00,26/11/2023 00:00:00,P08-2024
P&V,NORTH AREA RANGERS,PREMISES RELATED EXPENDITURE,GENERAL WASTE,2211,P124009-SERVICE-12yd General Rubbish Skip at Holyfield Hall F,26/11/2023 00:00:00,279819,323.4,GB0239,GBN SERVICES LTD,30/10/2023 00:00:00,26/11/2023 00:00:00,P08-2024
,LV LEISURE CENTRE CAMPSITE,PREMISES RELATED EXPENDITURE,GENERAL WASTE,2211,P123972-SERVICE-Annual Waste Package,14/11/2023 00:00:00,279093,650,AC0400,ACUMEN WASTE SERVICES LTD,30/10/2023 00:00:00,26/11/2023 00:00:00,P08-2024
,LV LEISURE CENTRE CAMPSITE,PREMISES RELATED EXPENDITURE,GENERAL WASTE,2211,P123970-SERVICE-Compactor and skips,14/11/2023 00:00:00,279326,1121.48,CL0037,VEOLIA ES (UK) LTD,30/10/2023 00:00:00,26/11/2023 00:00:00,P08-2024
,LV LEISURE CENTRE CAMPSITE,PREMISES RELATED EXPENDITURE,GENERAL WASTE,2211,P123971-SERVICE-Recycling empty,14/11/2023 00:00:00,279340,338.09,BY0049,BYWATERS (LEYTON) LTD,30/10/2023 00:00:00,26/11/2023 00:00:00,P08-2024
P&V,NORTH AREA RANGERS,PREMISES RELATED EXPENDITURE,FLYTIPPING/WHITE GOOD DISPOSAL,2213,P123390-SERVICE-Remove Fly Tip at Meadgate Road,11/07/2023 00:00,279076,1000,MK0465,M K CLEANING & MAINTENANCE LTD,30/10/2023 00:00:00,26/11/2023 00:00:00,P08-2024
P&V,NORTH AREA RANGERS,PREMISES RELATED EXPENDITURE,FLYTIPPING/WHITE GOOD DISPOSAL,2213,P123314-SERVICE-Remove Fly Tip at Rye House Gatehouse,20/11/2023 00:00:00,279765,274.81,GL0214,GLENDALE GROUNDS MANAGEMENT LIMITED,30/10/2023 00:00:00,26/11/2023 00:00:00,P08-2024
P&V,SOUTH AREA RANGERS,PREMISES RELATED EXPENDITURE,FLYTIPPING/WHITE GOOD DISPOSAL,2213,P123817-SERVICE-Fly Tip at Tottenham Marshes Car Park,11/07/2023 00:00,279120,100,JO0019,R G JOYCE,30/10/2023 00:00:00,26/11/2023 00:00:00,P08-2024
P&V,MYDDELTON HOUSE,PREMISES RELATED EXPENDITURE,RECYCLING,2214,P122866-SERVICE-Recycling,11/08/2023 00:00,279333,278.82,CA0341,F & R CAWLEY LTD,30/10/2023 00:00:00,26/11/2023 00:00:00,P08-2024
P&V,MYDDELTON HOUSE,PREMISES RELATED EXPENDITURE,BUILDING SERVICE AGREEMENTS,2220,P121870-SERVICE-Sanitary Services,15/11/2023 00:00:00,279588,24.15,PE0015,PHS GROUP PLC,30/10/2023 00:00:00,26/11/2023 00:00:00,P08-2024
P&V,MYDDELTON HOUSE,PREMISES RELATED EXPENDITURE,BUILDING SERVICE AGREEMENTS,2220,P123512-SERVICE-fire extingisher servie,20/11/2023 00:00:00,279619,758.71,TJ0009,T.J.FIRE & SECURITY,30/10/2023 00:00:00,26/11/2023 00:00:00,P08-2024
P&V,MYDDELTON HOUSE,PREMISES RELATED EXPENDITURE,BUILDING SERVICE AGREEMENTS,2220,P121870-SERVICE-Sanitary Services,22/11/2023 00:00:00,279838,89.64,PE0015,PHS GROUP PLC,30/10/2023 00:00:00,26/11/2023 00:00:00,P08-2024
P&V,MYDDELTON HOUSE,PREMISES RELATED EXPENDITURE,BUILDING SERVICE AGREEMENTS,2220,P123726-SERVICE-Mydleton House Boiler Repair  includes materi,22/11/2023 00:00:00,279842,793.99,AS0039,ASTON GROUP,30/10/2023 00:00:00,26/11/2023 00:00:00,P08-2024
P&V,MYDDELTON HOUSE,PREMISES RELATED EXPENDITURE,BUILDING SERVICE AGREEMENTS,2220,P124147-SERVICE-Boiler Services,26/11/2023 00:00:00,279882,505,GI0137,R & P GIBBS LIMITED,30/10/2023 00:00:00,26/11/2023 00:00:00,P08-2024
P&V,MYDDELTON HOUSE,PREMISES RELATED EXPENDITURE,BUILDING SERVICE AGREEMENTS,2220,P121870-SERVICE-Sanitary Services,26/11/2023 00:00:00,280073,204.44,PE0015,PHS GROUP PLC,30/10/2023 00:00:00,26/11/2023 00:00:00,P08-2024
P&V,MYDDELTON HOUSE,PREMISES RELATED EXPENDITURE,BUILDING SERVICE AGREEMENTS,2220,P121870-SERVICE-Sanitary Services,26/11/2023 00:00:00,280075,10.09,PE0015,PHS GROUP PLC,30/10/2023 00:00:00,26/11/2023 00:00:00,P08-2024
P&V,MYDDELTON HOUSE,PREMISES RELATED EXPENDITURE,BUILDING SERVICE AGREEMENTS,2220,P121870-SERVICE-Sanitary Services,26/11/2023 00:00:00,280076,24.15,PE0015,PHS GROUP PLC,30/10/2023 00:00:00,26/11/2023 00:00:00,P08-2024
,LEE VALLEY MARINA SPRINGFIELD,PREMISES RELATED EXPENDITURE,BUILDING SERVICE AGREEMENTS,2220,P121658-SERVICE-Annual maintenance 2 vists & Adhoc,11/07/2023 00:00,278901,160,DE0013,DENNIS SECURITY CENTRE,30/10/2023 00:00:00,26/11/2023 00:00:00,P08-2024
,LEE VALLEY MARINA SPRINGFIELD,PREMISES RELATED EXPENDITURE,BUILDING SERVICE AGREEMENTS,2220,"P121662-SERVICE-Sanitary Disposal,Dust Mats,Eco Shield",26/11/2023 00:00:00,279839,216.54,PE0015,PHS GROUP PLC,30/10/2023 00:00:00,26/11/2023 00:00:00,P08-2024
,LEE VALLEY WATERWORKS CENTRE,PREMISES RELATED EXPENDITURE,BUILDING SERVICE AGREEMENTS,2220,P123460-SERVICE-Lea Bridge Road Underpass Lighting,11/07/2023 00:00,278716,795.69,CO0199,EQUANS FM LIMITED (frmlyENGIE FM LIMITED),30/10/2023 00:00:00,26/11/2023 00:00:00,P08-2024
,LEE VALLEY WATERWORKS CENTRE,PREMISES RELATED EXPENDITURE,BUILDING SERVICE AGREEMENTS,2220,P124010-SERVICE-Lighting Protection Test at Waterworks Centre,15/11/2023 00:00:00,279598,148.96,CO0199,EQUANS FM LIMITED (frmlyENGIE FM LIMITED),30/10/2023 00:00:00,26/11/2023 00:00:00,P08-2024
,LEE VALLEY WATERWORKS CENTRE,PREMISES RELATED EXPENDITURE,BUILDING SERVICE AGREEMENTS,2220,P123279-SERVICE-Remove Ice Machine at Waterworks Centre,22/11/2023 00:00:00,279795,220.75,CO0199,EQUANS FM LIMITED (frmlyENGIE FM LIMITED),30/10/2023 00:00:00,26/11/2023 00:00:00,P08-2024
,LEE VALLEY CAMPSITE,PREMISES RELATED EXPENDITURE,BUILDING SERVICE AGREEMENTS,2220,P121646-SERVICE-October 23,14/11/2023 00:00:00,279486,70,VE0006,VERMINATE CITY & RURAL PEST CONTROL LTD,30/10/2023 00:00:00,26/11/2023 00:00:00,P08-2024
,LEE VALLEY CARAVAN PARK,PREMISES RELATED EXPENDITURE,BUILDING SERVICE AGREEMENTS,2220,P123992-SERVICE-momthly pest control,15/11/2023 00:00:00,279485,70,VE0006,VERMINATE CITY & RURAL PEST CONTROL LTD,30/10/2023 00:00:00,26/11/2023 00:00:00,P08-2024
P&V,NORTH AREA RANGERS,PREMISES RELATED EXPENDITURE,BUILDING SERVICE AGREEMENTS,2220,P121023-SERVICE-Sanitary Disposal - Old Mill & Meadows Toilet,22/11/2023 00:00:00,279837,3.74,PE0015,PHS GROUP PLC,30/10/2023 00:00:00,26/11/2023 00:00:00,P08-2024
P&V,GUNPOWDER PARK,PREMISES RELATED EXPENDITURE,BUILDING SERVICE AGREEMENTS,2220,P121073-SERVICE-Sanitary Disposal - Gunpowder Park - Public T,15/11/2023 00:00:00,279589,14.3,PE0015,PHS GROUP PLC,30/10/2023 00:00:00,26/11/2023 00:00:00,P08-2024
P&V,RIVER LEE COUNTRY PARK,PREMISES RELATED EXPENDITURE,BUILDING SERVICE AGREEMENTS,2220,P121074-SERVICE-Sanitary Disposal - Fishers Green Toilets,15/11/2023 00:00:00,279590,10.72,PE0015,PHS GROUP PLC,30/10/2023 00:00:00,26/11/2023 00:00:00,P08-2024
P&V,RIVER LEE COUNTRY PARK,PREMISES RELATED EXPENDITURE,BUILDING SERVICE AGREEMENTS,2220,P121071-SERVICE-Sanitary Disposal - Ranger Base Office Holyfi,26/11/2023 00:00:00,280077,6.47,PE0015,PHS GROUP PLC,30/10/2023 00:00:00,26/11/2023 00:00:00,P08-2024
,LV LEISURE CENTRE CAMPSITE,PREMISES RELATED EXPENDITURE,BUILDING SERVICE AGREEMENTS,2220,P123983-SERVICE-pest control,15/11/2023 00:00:00,279487,70,VE0006,VERMINATE CITY & RURAL PEST CONTROL LTD,30/10/2023 00:00:00,26/11/2023 00:00:00,P08-2024
,LV LEISURE CENTRE CAMPSITE,PREMISES RELATED EXPENDITURE,BUILDING SERVICE AGREEMENTS,2220,P124129-SERVICE-GND testing,22/11/2023 00:00:00,279835,95,RV0035,RVTV SECURITY GROUP LTD,30/10/2023 00:00:00,26/11/2023 00:00:00,P08-2024
,LV LEISURE CENTRE GOLF COURSE,PREMISES RELATED EXPENDITURE,BUILDING SERVICE AGREEMENTS,2220,P122255-SERVICE-Legionella Testing ED GYard,14/11/2023 00:00:00,279551,320.3,KI0090,KINGFISHER ENVIRONMENTAL SERVICES LTD,30/10/2023 00:00:00,26/11/2023 00:00:00,P08-2024
,LV LEISURE CENTRE CAMPSITE,PREMISES RELATED EXPENDITURE,ENGINEERING SERVICE AGREEMENTS,2221,P123975-SERVICE-Sanitary washroom services,14/11/2023 00:00:00,279381,163.96,PE0015,PHS GROUP PLC,30/10/2023 00:00:00,26/11/2023 00:00:00,P08-2024
P&V,MYDDELTON HOUSE,PREMISES RELATED EXPENDITURE,BUILDING REPAIRS & MAINTENANCE,2222,P122465-SERVICE-Remove & Replace Non-Slip Decking and Stairs,11/08/2023 00:00,279254,889,KE0023,KENDALL & SONS LIMITED,30/10/2023 00:00:00,26/11/2023 00:00:00,P08-2024
P&V,MYDDELTON HOUSE,PREMISES RELATED EXPENDITURE,BUILDING REPAIRS & MAINTENANCE,2222,P122464-SERVICE-Remove and Replace 4 no. 200x100 Sleepers by,11/08/2023 00:00,279265,385,KE0023,KENDALL & SONS LIMITED,30/10/2023 00:00:00,26/11/2023 00:00:00,P08-2024
P&V,MYDDELTON HOUSE,PREMISES RELATED EXPENDITURE,BUILDING REPAIRS & MAINTENANCE,2222,"P123818-SERVICE-Repair Front Steps, Including Raking out Join",11/08/2023 00:00,279267,449,KE0023,KENDALL & SONS LIMITED,30/10/2023 00:00:00,26/11/2023 00:00:00,P08-2024
P&V,MYDDELTON HOUSE,PREMISES RELATED EXPENDITURE,BUILDING REPAIRS & MAINTENANCE,2222,P123953-SERVICE-Various Items,14/11/2023 00:00:00,279352,2.65,SC0057,SCREWFIX DIRECT LTD,30/10/2023 00:00:00,26/11/2023 00:00:00,P08-2024
P&V,MYDDELTON HOUSE,PREMISES RELATED EXPENDITURE,BUILDING REPAIRS & MAINTENANCE,2222,P123953-SERVICE-Various Items,14/11/2023 00:00:00,279353,164.41,SC0057,SCREWFIX DIRECT LTD,30/10/2023 00:00:00,26/11/2023 00:00:00,P08-2024
CEO,RESIDENTIAL ACCOMMODATION,PREMISES RELATED EXPENDITURE,BUILDING REPAIRS & MAINTENANCE,2222,P121886-SERVICE-Pest Control Connaught Close,14/11/2023 00:00:00,278444,70,VE0006,VERMINATE CITY & RURAL PEST CONTROL LTD,30/10/2023 00:00:00,26/11/2023 00:00:00,P08-2024
CEO,RESIDENTIAL ACCOMMODATION,PREMISES RELATED EXPENDITURE,BUILDING REPAIRS & MAINTENANCE,2222,P123699-SERVICE-Service Pump Marshgate Cottage,14/11/2023 00:00:00,278911,540,DE0176,DECKPRO,30/10/2023 00:00:00,26/11/2023 00:00:00,P08-2024
CEO,RESIDENTIAL ACCOMMODATION,PREMISES RELATED EXPENDITURE,BUILDING REPAIRS & MAINTENANCE,2222,P123605-SERVICE-Asbestos survey of Myddelton House Gatehouse,11/08/2023 00:00,279097,950,LI0432,LIFE ENVIRONMENTAL SERVICES LTD,30/10/2023 00:00:00,26/11/2023 00:00:00,P08-2024
CEO,RESIDENTIAL ACCOMMODATION,PREMISES RELATED EXPENDITURE,BUILDING REPAIRS & MAINTENANCE,2222,P124079-SERVICE-Myddelton House gatehouse,26/11/2023 00:00:00,280050,950,LI0432,LIFE ENVIRONMENTAL SERVICES LTD,30/10/2023 00:00:00,26/11/2023 00:00:00,P08-2024
,LEE VALLEY MARINA SPRINGFIELD,PREMISES RELATED EXPENDITURE,BUILDING REPAIRS & MAINTENANCE,2222,P123536-SERVICE-supply and install 1000v insulated rubber,14/11/2023 00:00:00,279498,440,BR0018,BRADSHAW ELECTRICAL LIMITED,30/10/2023 00:00:00,26/11/2023 00:00:00,P08-2024
,LEE VALLEY MARINA SPRINGFIELD,PREMISES RELATED EXPENDITURE,BUILDING REPAIRS & MAINTENANCE,2222,P121723-SERVICE-Emergency callout & repairs,14/11/2023 00:00:00,279500,190,BR0018,BRADSHAW ELECTRICAL LIMITED,30/10/2023 00:00:00,26/11/2023 00:00:00,P08-2024
,LEE VALLEY MARINA SPRINGFIELD,PREMISES RELATED EXPENDITURE,BUILDING REPAIRS & MAINTENANCE,2222,P123986-SERVICE-Thermostatic cartridge to disabled WC basin,26/11/2023 00:00:00,279599,225,SO0400,SOUTHERN GREEN SERVICES LIMITED,30/10/2023 00:00:00,26/11/2023 00:00:00,P08-2024
,LEE VALLEY MARINA SPRINGFIELD,PREMISES RELATED EXPENDITURE,BUILDING REPAIRS & MAINTENANCE,2222,"P123986-SERVICE-Descale,service,test of all TMVs on site",26/11/2023 00:00:00,279599,330,SO0400,SOUTHERN GREEN SERVICES LIMITED,30/10/2023 00:00:00,26/11/2023 00:00:00,P08-2024
,LEE VALLEY MARINA STANSTEAD,PREMISES RELATED EXPENDITURE,BUILDING REPAIRS & MAINTENANCE,2222,P122515-SERVICE-Annual TMV Service and Legionella Sampling,14/11/2023 00:00:00,278647,113.8,KI0090,KINGFISHER ENVIRONMENTAL SERVICES LTD,30/10/2023 00:00:00,26/11/2023 00:00:00,P08-2024
,LEE VALLEY MARINA STANSTEAD,PREMISES RELATED EXPENDITURE,BUILDING REPAIRS & MAINTENANCE,2222,P123832-SERVICE-door combination handle to workshop from off,11/07/2023 00:00,279106,24.57,AM0406,AMAZON PAYMENTS UK LIMITED,30/10/2023 00:00:00,26/11/2023 00:00:00,P08-2024
,LEE VALLEY MARINA STANSTEAD,PREMISES RELATED EXPENDITURE,BUILDING REPAIRS & MAINTENANCE,2222,P123939-SERVICE-yellow error w/s panel call out,14/11/2023 00:00:00,279284,99.47,CH0088,CHUBB FIRE & SECURITY,30/10/2023 00:00:00,26/11/2023 00:00:00,P08-2024
,LEE VALLEY MARINA STANSTEAD,PREMISES RELATED EXPENDITURE,BUILDING REPAIRS & MAINTENANCE,2222,P124001-SERVICE-callout & repair sensor (josh lent on),20/11/2023 00:00:00,279470,168.86,CH0088,CHUBB FIRE & SECURITY,30/10/2023 00:00:00,26/11/2023 00:00:00,P08-2024
,LEE VALLEY MARINA STANSTEAD,PREMISES RELATED EXPENDITURE,BUILDING REPAIRS & MAINTENANCE,2222,P123214-SERVICE-additional equipment needed from service,20/11/2023 00:00:00,279732,23.78,TJ0009,T.J.FIRE & SECURITY,30/10/2023 00:00:00,26/11/2023 00:00:00,P08-2024
,LEE VALLEY MARINA STANSTEAD,PREMISES RELATED EXPENDITURE,BUILDING REPAIRS & MAINTENANCE,2222,P123214-SERVICE-annual fire extinguishr / blanket etc Service,20/11/2023 00:00:00,279732,210.79,TJ0009,T.J.FIRE & SECURITY,30/10/2023 00:00:00,26/11/2023 00:00:00,P08-2024
,LEE VALLEY MARINA STANSTEAD,PREMISES RELATED EXPENDITURE,BUILDING REPAIRS & MAINTENANCE,2222,P123574-SERVICE-10 extringuisher disposal,20/11/2023 00:00:00,279733,55,TJ0009,T.J.FIRE & SECURITY,30/10/2023 00:00:00,26/11/2023 00:00:00,P08-2024
,LEE VALLEY MARINA STANSTEAD,PREMISES RELATED EXPENDITURE,BUILDING REPAIRS & MAINTENANCE,2222,P123574-SERVICE-Additional 8 extinguishers,20/11/2023 00:00:00,279733,19.88,TJ0009,T.J.FIRE & SECURITY,30/10/2023 00:00:00,26/11/2023 00:00:00,P08-2024
,LEE VALLEY MARINA STANSTEAD,PREMISES RELATED EXPENDITURE,BUILDING REPAIRS & MAINTENANCE,2222,P124113-SERVICE-16 expired fire extinguishers from service,26/11/2023 00:00:00,279893,430.57,TJ0009,T.J.FIRE & SECURITY,30/10/2023 00:00:00,26/11/2023 00:00:00,P08-2024
,LEE VALLEY MARINA STANSTEAD,PREMISES RELATED EXPENDITURE,BUILDING REPAIRS & MAINTENANCE,2222,P124172-SERVICE-H&S hazard signs and shelf corner buffers,26/11/2023 00:00:00,280068,6.16,AM0406,AMAZON PAYMENTS UK LIMITED,30/10/2023 00:00:00,26/11/2023 00:00:00,P08-2024
,LEE VALLEY WATERWORKS CENTRE,PREMISES RELATED EXPENDITURE,BUILDING REPAIRS & MAINTENANCE,2222,P123946-SERVICE-Attend Waterworks centre test and isolate one,14/11/2023 00:00:00,278330,210,BR0018,BRADSHAW ELECTRICAL LIMITED,30/10/2023 00:00:00,26/11/2023 00:00:00,P08-2024
P&V,LEE VALLEY FARM HOLYFIELDHALL,PREMISES RELATED EXPENDITURE,BUILDING REPAIRS & MAINTENANCE,2222,P121497-SERVICE-Building Repairs,11/07/2023 00:00,279092,114.29,JE0011,SAINT-GOBAIN BUILDING DISTRIBUTION,30/10/2023 00:00:00,26/11/2023 00:00:00,P08-2024
P&V,LEE VALLEY FARM HOLYFIELDHALL,PREMISES RELATED EXPENDITURE,BUILDING REPAIRS & MAINTENANCE,2222,P121497-SERVICE-Building Repairs,11/07/2023 00:00,279224,61.3,JE0011,SAINT-GOBAIN BUILDING DISTRIBUTION,30/10/2023 00:00:00,26/11/2023 00:00:00,P08-2024
P&V,LEE VALLEY FARM HOLYFIELDHALL,PREMISES RELATED EXPENDITURE,BUILDING REPAIRS & MAINTENANCE,2222,P121497-SERVICE-Building Repairs,11/07/2023 00:00,279225,125.25,JE0011,SAINT-GOBAIN BUILDING DISTRIBUTION,30/10/2023 00:00:00,26/11/2023 00:00:00,P08-2024
P&V,MYDDELTON HOUSE GARDENS,PREMISES RELATED EXPENDITURE,BUILDING REPAIRS & MAINTENANCE,2222,P123513-SERVICE-fire extinguisher service 2023,20/11/2023 00:00:00,279620,162.31,TJ0009,T.J.FIRE & SECURITY,30/10/2023 00:00:00,26/11/2023 00:00:00,P08-2024
P&V,GUNPOWDER PARK,PREMISES RELATED EXPENDITURE,BUILDING REPAIRS & MAINTENANCE,2222,P123821-SERVICE-PPM - Oct 2023 to Mar 2024 at Gunpowder Park,22/11/2023 00:00:00,279845,154.6,CO0199,EQUANS FM LIMITED (frmlyENGIE FM LIMITED),30/10/2023 00:00:00,26/11/2023 00:00:00,P08-2024
P&V,GUNPOWDER PARK,PREMISES RELATED EXPENDITURE,BUILDING REPAIRS & MAINTENANCE,2222,P123623-SERVICE-GP - MS-EA24478 Move floodlights for roller s,22/11/2023 00:00:00,279846,386.96,CO0199,EQUANS FM LIMITED (frmlyENGIE FM LIMITED),30/10/2023 00:00:00,26/11/2023 00:00:00,P08-2024
P&V,GUNPOWDER PARK,PREMISES RELATED EXPENDITURE,BUILDING REPAIRS & MAINTENANCE,2222,P123821-SERVICE-PPM - Oct 2023 to Mar 2024 at Gunpowder Park,22/11/2023 00:00:00,279847,154.6,CO0199,EQUANS FM LIMITED (frmlyENGIE FM LIMITED),30/10/2023 00:00:00,26/11/2023 00:00:00,P08-2024
P&V,RIVER LEE COUNTRY PARK,PREMISES RELATED EXPENDITURE,BUILDING REPAIRS & MAINTENANCE,2222,P123809-SERVICE-Engineer / Drain Team on site,11/07/2023 00:00,279027,180,CO0550,CONVERT WATER LTD,30/10/2023 00:00:00,26/11/2023 00:00:00,P08-2024
P&V,RIVER LEE COUNTRY PARK,PREMISES RELATED EXPENDITURE,BUILDING REPAIRS & MAINTENANCE,2222,P123809-SERVICE-Pump Out at Old Mill & Meadows Toilets,11/07/2023 00:00,279027,310,CO0550,CONVERT WATER LTD,30/10/2023 00:00:00,26/11/2023 00:00:00,P08-2024
P&V,RIVER LEE COUNTRY PARK,PREMISES RELATED EXPENDITURE,BUILDING REPAIRS & MAINTENANCE,2222,P123444-SERVICE-Unblock Ladies Toilets at Fishers Green,11/07/2023 00:00,279266,98,KE0023,KENDALL & SONS LIMITED,30/10/2023 00:00:00,26/11/2023 00:00:00,P08-2024
P&V,RIVER LEE COUNTRY PARK,PREMISES RELATED EXPENDITURE,BUILDING REPAIRS & MAINTENANCE,2222,P123901-SERVICE-Fishers Green Toilets Urinal - Call Out,14/11/2023 00:00:00,279365,98,KE0023,KENDALL & SONS LIMITED,30/10/2023 00:00:00,26/11/2023 00:00:00,P08-2024
P&V,RIVER LEE COUNTRY PARK,PREMISES RELATED EXPENDITURE,BUILDING REPAIRS & MAINTENANCE,2222,P123662-SERVICE-Replace Water Heater - Rangers Office,20/11/2023 00:00:00,279623,349.1,GI0137,R & P GIBBS LIMITED,30/10/2023 00:00:00,26/11/2023 00:00:00,P08-2024
,LV LEISURE CENTRE GOLF COURSE,PREMISES RELATED EXPENDITURE,BUILDING REPAIRS & MAINTENANCE,2222,P123807-SERVICE-Golf Course Irregation Drain Down,11/07/2023 00:00,279079,650,SJ0635,SJS IRRIGATION,30/10/2023 00:00:00,26/11/2023 00:00:00,P08-2024
CEO,LVLC SERVICE CHARGE,PREMISES RELATED EXPENDITURE,BUILDING REPAIRS & MAINTENANCE,2222,P122991-SERVICE-Replacement of CCTV Covering Entrance and Ode,14/11/2023 00:00:00,279217,9052,RV0035,RVTV SECURITY GROUP LTD,30/10/2023 00:00:00,26/11/2023 00:00:00,P08-2024
CEO,LVLC SERVICE CHARGE,PREMISES RELATED EXPENDITURE,BUILDING REPAIRS & MAINTENANCE,2222,P123704-SERVICE-Car Parking Signs,26/11/2023 00:00:00,280004,544,SI0434,SIGNS & IMAGING ( SOUTHEAST) LIMITED,30/10/2023 00:00:00,26/11/2023 00:00:00,P08-2024
P&V,NORTH AREA RANGERS,SUPPLIES AND SERVICES,FENCES/GATES ETC.,2231,P123680-SERVICE-20x Machine Round Post 2.40m x 75mm,11/07/2023 00:00,279243,107.8,TI0164,414 TIMBER & FENCING,30/10/2023 00:00:00,26/11/2023 00:00:00,P08-2024
P&V,NORTH AREA RANGERS,SUPPLIES AND SERVICES,FENCES/GATES ETC.,2231,P123680-SERVICE-30x Rails for Post & Rail 3600x87x38mm,11/07/2023 00:00,279243,184.2,TI0164,414 TIMBER & FENCING,30/10/2023 00:00:00,26/11/2023 00:00:00,P08-2024
P&V,NORTH AREA RANGERS,SUPPLIES AND SERVICES,FENCES/GATES ETC.,2231,P123714-SERVICE-100x Machine Round Posts 1.80m x 75mm,11/07/2023 00:00,279244,342.78,TI0164,414 TIMBER & FENCING,30/10/2023 00:00:00,26/11/2023 00:00:00,P08-2024
P&V,SOUTH AREA RANGERS,SUPPLIES AND SERVICES,FENCES/GATES ETC.,2231,P123420-SERVICE-Replace Gate & Fence at Coppermill,20/11/2023 00:00:00,279728,700,JO0019,R G JOYCE,30/10/2023 00:00:00,26/11/2023 00:00:00,P08-2024
P&V,RIVER LEE COUNTRY PARK,SUPPLIES AND SERVICES,FENCES/GATES ETC.,2231,P123517-SERVICE-Path works at Bowyers,11/07/2023 00:00,279038,950,BU0090,BUSH WHEELER SERVICES LTD,30/10/2023 00:00:00,26/11/2023 00:00:00,P08-2024
P&V,RIVER LEE COUNTRY PARK,SUPPLIES AND SERVICES,FENCES/GATES ETC.,2231,P123037-SERVICE-3x 1.8m Cranham Picnic Table Sets,20/11/2023 00:00:00,279526,3105,BR0272,BRANSON LEISURE LIMITED,30/10/2023 00:00:00,26/11/2023 00:00:00,P08-2024
P&V,RIVER LEE COUNTRY PARK,SUPPLIES AND SERVICES,FENCES/GATES ETC.,2231,P123037-SERVICE-8x 1.8m Cranham Backed Seats NO Arms,20/11/2023 00:00:00,279526,6320,BR0272,BRANSON LEISURE LIMITED,30/10/2023 00:00:00,26/11/2023 00:00:00,P08-2024
P&V,RIVER LEE COUNTRY PARK,SUPPLIES AND SERVICES,FENCES/GATES ETC.,2231,P123037-SERVICE-2x 1.8m Cranham Backless Benches,20/11/2023 00:00:00,279526,526,BR0272,BRANSON LEISURE LIMITED,30/10/2023 00:00:00,26/11/2023 00:00:00,P08-2024
CEO,RESIDENTIAL ACCOMMODATION,EXPENDITURE FROM REPAIRS FUND,EXPENDITURE FROM REPAIRS FUND,2240,P122069-SERVICE-Aquaside Rear Lobby Works,26/11/2023 00:00:00,279257,2384,KE0023,KENDALL & SONS LIMITED,30/10/2023 00:00:00,26/11/2023 00:00:00,P08-2024
CEO,COMMERCIAL ACCOMMODATION,PREMISES RELATED EXPENDITURE,EAST HALE ALLOTMENTS,2261,P122046-SERVICE-Grass Cutting,14/11/2023 00:00:00,279219,404.58,GL0214,GLENDALE GROUNDS MANAGEMENT LIMITED,30/10/2023 00:00:00,26/11/2023 00:00:00,P08-2024
CEO,COMMERCIAL ACCOMMODATION,PREMISES RELATED EXPENDITURE,EAST HALE ALLOTMENTS,2261,P121887-SERVICE-Allotment Bins,14/11/2023 00:00:00,279330,249.38,CL0037,VEOLIA ES (UK) LTD,30/10/2023 00:00:00,26/11/2023 00:00:00,P08-2024
CEO,COMMERCIAL ACCOMMODATION,PREMISES RELATED EXPENDITURE,EAST HALE ALLOTMENTS,2261,P121887-SERVICE-Allotment Bins,14/11/2023 00:00:00,279331,5.7,CL0037,VEOLIA ES (UK) LTD,30/10/2023 00:00:00,26/11/2023 00:00:00,P08-2024
P&V,MYDDELTON HOUSE,PREMISES RELATED EXPENDITURE,ENERGY COSTS (ELECTRICITY),2332,Md House- electric supply -Oct 23,15/11/2023 00:00:00,279557,2905.85,KE0007,KENT COUNTY COUNCIL (KCS),30/10/2023 00:00:00,26/11/2023 00:00:00,P08-2024
CEO,RESIDENTIAL ACCOMMODATION,PREMISES RELATED EXPENDITURE,ENERGY COSTS (ELECTRICITY),2332,13/10/23-26/10/23,14/11/2023 00:00:00,279310,408.75,EO0422,E-ON NEXT ENERGY LTD,30/10/2023 00:00:00,26/11/2023 00:00:00,P08-2024
CEO,RESIDENTIAL ACCOMMODATION,PREMISES RELATED EXPENDITURE,ENERGY COSTS (ELECTRICITY),2332,01/10/23-31/10/23,14/11/2023 00:00:00,279312,108.66,EO0420,E-ON NEXT ENERGY LTD,30/10/2023 00:00:00,26/11/2023 00:00:00,P08-2024
CEO,RESIDENTIAL ACCOMMODATION,PREMISES RELATED EXPENDITURE,ENERGY COSTS (ELECTRICITY),2332,Oct-23,14/11/2023 00:00:00,279317,31,EO0398,E-ON NEXT ENERGY LTD,30/10/2023 00:00:00,26/11/2023 00:00:00,P08-2024
CEO,RESIDENTIAL ACCOMMODATION,PREMISES RELATED EXPENDITURE,ENERGY COSTS (ELECTRICITY),2332,Oct-23,14/11/2023 00:00:00,279318,22.09,EO0419,E-ON NEXT ENERGY LTD,30/10/2023 00:00:00,26/11/2023 00:00:00,P08-2024
CEO,RESIDENTIAL ACCOMMODATION,PREMISES RELATED EXPENDITURE,ENERGY COSTS (ELECTRICITY),2332,12/10/23-11/11/23,20/11/2023 00:00:00,279554,15.52,EO0418,E-ON NEXT ENERGY LTD,30/10/2023 00:00:00,26/11/2023 00:00:00,P08-2024
,LEE VALLEY MARINA SPRINGFIELD,PREMISES RELATED EXPENDITURE,ENERGY COSTS (ELECTRICITY),2332,Sprinfield-electric supply-Oct23,20/11/2023 00:00:00,279558,4449.28,KE0007,KENT COUNTY COUNCIL (KCS),30/10/2023 00:00:00,26/11/2023 00:00:00,P08-2024
,LEE VALLEY WATERWORKS CENTRE,PREMISES RELATED EXPENDITURE,ENERGY COSTS (ELECTRICITY),2332,waterworks-electric-Oct 23,20/11/2023 00:00:00,279743,1426.71,NP0123,NPOWER LIMITED,30/10/2023 00:00:00,26/11/2023 00:00:00,P08-2024
P&V,LEE VALLEY FARM HOLYFIELDHALL,PREMISES RELATED EXPENDITURE,ENERGY COSTS (ELECTRICITY),2332,%Holyfied-electric- MPAN 201- Oct23,20/11/2023 00:00:00,279575,39.58,KE0007,KENT COUNTY COUNCIL (KCS),30/10/2023 00:00:00,26/11/2023 00:00:00,P08-2024
,LEE VALLEY CAMPSITE,PREMISES RELATED EXPENDITURE,ENERGY COSTS (ELECTRICITY),2332,Sewardstone- Electric - Oct23,20/11/2023 00:00:00,279747,4506.6,KE0007,KENT COUNTY COUNCIL (KCS),30/10/2023 00:00:00,26/11/2023 00:00:00,P08-2024
,LEE VALLEY CAMPSITE,PREMISES RELATED EXPENDITURE,ENERGY COSTS (ELECTRICITY),2332,Sewardstone- Electric oct23,20/11/2023 00:00:00,279748,3120.26,KE0007,KENT COUNTY COUNCIL (KCS),30/10/2023 00:00:00,26/11/2023 00:00:00,P08-2024
,LEE VALLEY CARAVAN PARK,PREMISES RELATED EXPENDITURE,ENERGY COSTS (ELECTRICITY),2332,DW-Electric- Oct23,20/11/2023 00:00:00,279746,11827.96,KE0007,KENT COUNTY COUNCIL (KCS),30/10/2023 00:00:00,26/11/2023 00:00:00,P08-2024
P&V,GUNPOWDER PARK,PREMISES RELATED EXPENDITURE,ENERGY COSTS (ELECTRICITY),2332,Gunpowder Park-electric suppy-Oct23,15/11/2023 00:00:00,279561,650.58,KE0007,KENT COUNTY COUNCIL (KCS),30/10/2023 00:00:00,26/11/2023 00:00:00,P08-2024
P&V,QUEEN ELIZABETH OLYMPIC PARK,PREMISES RELATED EXPENDITURE,ENERGY COSTS (ELECTRICITY),2332,VELOPARK-E20-MPAN 5201-Oct23,15/11/2023 00:00:00,279559,108.92,KE0007,KENT COUNTY COUNCIL (KCS),30/10/2023 00:00:00,26/11/2023 00:00:00,P08-2024
P&V,QUEEN ELIZABETH OLYMPIC PARK,PREMISES RELATED EXPENDITURE,ENERGY COSTS (ELECTRICITY),2332,VELOPARK-E20-MPAN 5201-Oct23,15/11/2023 00:00:00,279559,1.02,KE0007,KENT COUNTY COUNCIL (KCS),30/10/2023 00:00:00,26/11/2023 00:00:00,P08-2024
P&V,QUEEN ELIZABETH OLYMPIC PARK,PREMISES RELATED EXPENDITURE,ENERGY COSTS (ELECTRICITY),2332,VELOPARK-E20-MPAN 1204-Oct 23,15/11/2023 00:00:00,279560,290.53,KE0007,KENT COUNTY COUNCIL (KCS),30/10/2023 00:00:00,26/11/2023 00:00:00,P08-2024
P&V,CAR PARK INCOME,PREMISES RELATED EXPENDITURE,ENERGY COSTS (ELECTRICITY),2332,Clayton Hill - Electric-Oct 23,20/11/2023 00:00:00,279744,45.27,NP0123,NPOWER LIMITED,30/10/2023 00:00:00,26/11/2023 00:00:00,P08-2024
P&V,CAR PARK INCOME,PREMISES RELATED EXPENDITURE,ENERGY COSTS (ELECTRICITY),2332,Cornmill Meadow-Oct23,20/11/2023 00:00:00,279745,57.43,NP0123,NPOWER LIMITED,30/10/2023 00:00:00,26/11/2023 00:00:00,P08-2024
,LV LEISURE CENTRE CAMPSITE,PREMISES RELATED EXPENDITURE,ENERGY COSTS (ELECTRICITY),2332,EDM- electric - Oct 23,21/11/2023 00:00:00,279742,10681.33,NP0123,NPOWER LIMITED,30/10/2023 00:00:00,26/11/2023 00:00:00,P08-2024
,LEE VALLEY MARINA SPRINGFIELD,PREMISES RELATED EXPENDITURE,ENERGY COSTS (GAS),2333,Springfield-Gas- Oct23,26/11/2023 00:00:00,279754,740.76,KE0007,KENT COUNTY COUNCIL (KCS),30/10/2023 00:00:00,26/11/2023 00:00:00,P08-2024
,LEE VALLEY MARINA STANSTEAD,PREMISES RELATED EXPENDITURE,ENERGY COSTS (GAS),2333,Stanstead-Gas-Oct 2023,20/11/2023 00:00:00,279749,116.14,KE0007,KENT COUNTY COUNCIL (KCS),30/10/2023 00:00:00,26/11/2023 00:00:00,P08-2024
,LEE VALLEY MARINA STANSTEAD,PREMISES RELATED EXPENDITURE,ENERGY COSTS (GAS),2333,Stanstead- Gas-Oct23,20/11/2023 00:00:00,279750,235.25,KE0007,KENT COUNTY COUNCIL (KCS),30/10/2023 00:00:00,26/11/2023 00:00:00,P08-2024
,LEE VALLEY WATERWORKS CENTRE,PREMISES RELATED EXPENDITURE,ENERGY COSTS (GAS),2333,Waterwokrs-Gas-Oct23,20/11/2023 00:00:00,279752,753.36,KE0007,KENT COUNTY COUNCIL (KCS),30/10/2023 00:00:00,26/11/2023 00:00:00,P08-2024
,LEE VALLEY CAMPSITE,PREMISES RELATED EXPENDITURE,ENERGY COSTS (GAS),2333,Sewardstone- gas- Oct 23,20/11/2023 00:00:00,279753,923.33,KE0007,KENT COUNTY COUNCIL (KCS),30/10/2023 00:00:00,26/11/2023 00:00:00,P08-2024
,LEE VALLEY CARAVAN PARK,PREMISES RELATED EXPENDITURE,ENERGY COSTS (GAS),2333,P124085-SERVICE-Gas delivery,20/11/2023 00:00:00,279617,7728.3,AV0327,AVANTI GAS LIMITED,30/10/2023 00:00:00,26/11/2023 00:00:00,P08-2024
,LEE VALLEY CARAVAN PARK,PREMISES RELATED EXPENDITURE,ENERGY COSTS (GAS),2333,P124087-SERVICE-Gas delivery,20/11/2023 00:00:00,279618,525.29,AV0327,AVANTI GAS LIMITED,30/10/2023 00:00:00,26/11/2023 00:00:00,P08-2024
P&V,GUNPOWDER PARK,PREMISES RELATED EXPENDITURE,ENERGY COSTS (GAS),2333,Field Station- gas supply -Sept 23,20/11/2023 00:00:00,279719,41.04,KE0007,KENT COUNTY COUNCIL (KCS),30/10/2023 00:00:00,26/11/2023 00:00:00,P08-2024
P&V,GUNPOWDER PARK,PREMISES RELATED EXPENDITURE,ENERGY COSTS (GAS),2333,Field Station- Gas-Oct23,20/11/2023 00:00:00,279755,50.88,KE0007,KENT COUNTY COUNCIL (KCS),30/10/2023 00:00:00,26/11/2023 00:00:00,P08-2024
,LV LEISURE CENTRE CAMPSITE,PREMISES RELATED EXPENDITURE,ENERGY COSTS (GAS),2333,Edm- Gas- Oct23,21/11/2023 00:00:00,279751,2000.06,KE0007,KENT COUNTY COUNCIL (KCS),30/10/2023 00:00:00,26/11/2023 00:00:00,P08-2024
P&V,MYDDELTON HOUSE,PREMISES RELATED EXPENDITURE,ENERGY COSTS (BIOMASS FUEL),2334,P124034-SERVICE-Wood Pellets,15/11/2023 00:00:00,279577,1590.68,BA0631,BALCAS TIMBER LTD/BALCAS ENERGY,30/10/2023 00:00:00,26/11/2023 00:00:00,P08-2024
,LEE VALLEY MARINA SPRINGFIELD,PREMISES RELATED EXPENDITURE,RENT (EXTERNAL),2442,Rent in Advance-Dec23 to 29Feb24,26/11/2023 00:00:00,279816,2970,TH0020,THAMES WATER UTILITIES LIMITED,30/10/2023 00:00:00,26/11/2023 00:00:00,P08-2024
,LEE VALLEY MARINA STANSTEAD,PREMISES RELATED EXPENDITURE,RENT (EXTERNAL),2442,STANSTEAD-AGREEMENT-251223-240324,21/11/2023 00:00:00,279841,13450,BR0036,CANAL & RIVER TRUST,30/10/2023 00:00:00,26/11/2023 00:00:00,P08-2024
,LEE VALLEY MARINA SPRINGFIELD,PREMISES RELATED EXPENDITURE,BUSINESS RATES,2444,VALUATION CHANGE 2019/2020,20/11/2023 00:00:00,279099,1.24,WA0005,LONDON BOROUGH OF WALTHAM FOREST,30/10/2023 00:00:00,26/11/2023 00:00:00,P08-2024
,LEE VALLEY MARINA SPRINGFIELD,PREMISES RELATED EXPENDITURE,BUSINESS RATES,2444,VALUATION CHANGE 2021/2022,20/11/2023 00:00:00,279100,117.61,WA0005,LONDON BOROUGH OF WALTHAM FOREST,30/10/2023 00:00:00,26/11/2023 00:00:00,P08-2024
,LEE VALLEY MARINA SPRINGFIELD,PREMISES RELATED EXPENDITURE,BUSINESS RATES,2444,VALUATION CHANGE 2022/2023,20/11/2023 00:00:00,279102,230.4,WA0005,LONDON BOROUGH OF WALTHAM FOREST,30/10/2023 00:00:00,26/11/2023 00:00:00,P08-2024
,LEE VALLEY MARINA SPRINGFIELD,PREMISES RELATED EXPENDITURE,BUSINESS RATES,2444,VALUATION CHANGE 2023/2024,20/11/2023 00:00:00,279103,-2945,WA0005,LONDON BOROUGH OF WALTHAM FOREST,30/10/2023 00:00:00,26/11/2023 00:00:00,P08-2024
,LEE VALLEY MARINA SPRINGFIELD,PREMISES RELATED EXPENDITURE,BUSINESS RATES,2444,VALUATION CHANGE 2023/2024,20/11/2023 00:00:00,279104,3827.1,WA0005,LONDON BOROUGH OF WALTHAM FOREST,30/10/2023 00:00:00,26/11/2023 00:00:00,P08-2024
P&V,MYDDELTON HOUSE,PREMISES RELATED EXPENDITURE,WATER,2555,MD Hse-water usage-Oct23,11/07/2023 00:00,279242,1723.02,CA0625,CASTLE WATER LIMITED,30/10/2023 00:00:00,26/11/2023 00:00:00,P08-2024
,LEE VALLEY MARINA SPRINGFIELD,PREMISES RELATED EXPENDITURE,WATER,2555,ADJUSTMENT SEPTEMBER 2023,11/07/2023 00:00,279075,-242.85,CA0625,CASTLE WATER LIMITED,30/10/2023 00:00:00,26/11/2023 00:00:00,P08-2024
,LEE VALLEY MARINA SPRINGFIELD,PREMISES RELATED EXPENDITURE,WATER,2555,ADJUSTMENT SEPTEMBER 2023,11/07/2023 00:00,279075,-421.15,CA0625,CASTLE WATER LIMITED,30/10/2023 00:00:00,26/11/2023 00:00:00,P08-2024
,LEE VALLEY MARINA SPRINGFIELD,PREMISES RELATED EXPENDITURE,WATER,2555,Springifeld-water-Oct23,14/11/2023 00:00:00,279515,1187.44,CA0625,CASTLE WATER LIMITED,30/10/2023 00:00:00,26/11/2023 00:00:00,P08-2024
,LEE VALLEY MARINA SPRINGFIELD,PREMISES RELATED EXPENDITURE,WATER,2555,Springifeld-water-Oct23,14/11/2023 00:00:00,279515,1909.74,CA0625,CASTLE WATER LIMITED,30/10/2023 00:00:00,26/11/2023 00:00:00,P08-2024
,LEE VALLEY MARINA STANSTEAD,PREMISES RELATED EXPENDITURE,WATER,2555,01/10/23-31/10/23,11/07/2023 00:00,279316,202.77,CA0625,CASTLE WATER LIMITED,30/10/2023 00:00:00,26/11/2023 00:00:00,P08-2024
,LEE VALLEY MARINA STANSTEAD,PREMISES RELATED EXPENDITURE,WATER,2555,01/10/23-31/10/23,11/07/2023 00:00,279316,208.37,CA0625,CASTLE WATER LIMITED,30/10/2023 00:00:00,26/11/2023 00:00:00,P08-2024
,LEE VALLEY MARINA STANSTEAD,PREMISES RELATED EXPENDITURE,WATER,2555,Hankins Yard - water -0ct23-Mar24,26/11/2023 00:00:00,280065,528.79,CA0625,CASTLE WATER LIMITED,30/10/2023 00:00:00,26/11/2023 00:00:00,P08-2024
,LEE VALLEY WATERWORKS CENTRE,PREMISES RELATED EXPENDITURE,WATER,2555,Waterworks- water - Oct 23,15/11/2023 00:00:00,279324,128.41,CA0625,CASTLE WATER LIMITED,30/10/2023 00:00:00,26/11/2023 00:00:00,P08-2024
,LEE VALLEY WATERWORKS CENTRE,PREMISES RELATED EXPENDITURE,WATER,2555,Adjustment - Aug 23-Oct23,26/11/2023 00:00:00,279868,-122.73,CA0625,CASTLE WATER LIMITED,30/10/2023 00:00:00,26/11/2023 00:00:00,P08-2024
,LEE VALLEY CAMPSITE,PREMISES RELATED EXPENDITURE,WATER,2555,Sewardstone- water- Oct 2023,14/11/2023 00:00:00,279322,2104.83,CA0625,CASTLE WATER LIMITED,30/10/2023 00:00:00,26/11/2023 00:00:00,P08-2024
,LEE VALLEY CARAVAN PARK,PREMISES RELATED EXPENDITURE,WATER,2555,DW- water usage-Oct23,11/07/2023 00:00,279241,1478.41,CA0625,CASTLE WATER LIMITED,30/10/2023 00:00:00,26/11/2023 00:00:00,P08-2024
,LEE VALLEY CARAVAN PARK,PREMISES RELATED EXPENDITURE,WATER,2555,DW- water usage-Oct23,11/07/2023 00:00,279241,2414.35,CA0625,CASTLE WATER LIMITED,30/10/2023 00:00:00,26/11/2023 00:00:00,P08-2024
,LEE VALLEY CARAVAN PARK,PREMISES RELATED EXPENDITURE,WATER,2555,Adjustments - Oct23,26/11/2023 00:00:00,279869,632.7,CA0625,CASTLE WATER LIMITED,30/10/2023 00:00:00,26/11/2023 00:00:00,P08-2024
,LEE VALLEY CARAVAN PARK,PREMISES RELATED EXPENDITURE,WATER,2555,Adjustments - Oct23,26/11/2023 00:00:00,279869,364.83,CA0625,CASTLE WATER LIMITED,30/10/2023 00:00:00,26/11/2023 00:00:00,P08-2024
P&V,RIVER LEE COUNTRY PARK,PREMISES RELATED EXPENDITURE,WATER,2555,WATER- NETHERFIELD-01/10/23-31/10/23,11/08/2023 00:00,279321,44.05,CA0625,CASTLE WATER LIMITED,30/10/2023 00:00:00,26/11/2023 00:00:00,P08-2024
P&V,RIVER LEE COUNTRY PARK,PREMISES RELATED EXPENDITURE,WATER,2555,Fishers Green- water - Oct 23,14/11/2023 00:00:00,279514,29.54,CA0625,CASTLE WATER LIMITED,30/10/2023 00:00:00,26/11/2023 00:00:00,P08-2024
P&V,RIVER LEE COUNTRY PARK,PREMISES RELATED EXPENDITURE,WATER,2555,Showground-water Oct23,22/11/2023 00:00:00,279900,65.99,CA0625,CASTLE WATER LIMITED,30/10/2023 00:00:00,26/11/2023 00:00:00,P08-2024
P&V,FORMER LV LIDO SITE,PREMISES RELATED EXPENDITURE,WATER,2555,refer to comp 273568-Mar23-Aug23,21/11/2023 00:00:00,279860,-1441.3,CA0625,CASTLE WATER LIMITED,30/10/2023 00:00:00,26/11/2023 00:00:00,P08-2024
P&V,FORMER LV LIDO SITE,PREMISES RELATED EXPENDITURE,WATER,2555,refer to comp 273568-Mar23-Aug23,21/11/2023 00:00:00,279860,-504.03,CA0625,CASTLE WATER LIMITED,30/10/2023 00:00:00,26/11/2023 00:00:00,P08-2024
P&V,FORMER LV LIDO SITE,PREMISES RELATED EXPENDITURE,WATER,2555,Ref to comp 278340-Sept23,21/11/2023 00:00:00,279861,-263.95,CA0625,CASTLE WATER LIMITED,30/10/2023 00:00:00,26/11/2023 00:00:00,P08-2024
P&V,FORMER LV LIDO SITE,PREMISES RELATED EXPENDITURE,WATER,2555,Ref to comp 278340-Sept23,21/11/2023 00:00:00,279861,-340.07,CA0625,CASTLE WATER LIMITED,30/10/2023 00:00:00,26/11/2023 00:00:00,P08-2024
,LV LEISURE CENTRE CAMPSITE,PREMISES RELATED EXPENDITURE,WATER,2555,01/09/23-30/09/23,11/07/2023 00:00,279311,-69.38,CA0625,CASTLE WATER LIMITED,30/10/2023 00:00:00,26/11/2023 00:00:00,P08-2024
,LV LEISURE CENTRE CAMPSITE,PREMISES RELATED EXPENDITURE,WATER,2555,01/09/23-30/09/23,11/07/2023 00:00,279311,-120.33,CA0625,CASTLE WATER LIMITED,30/10/2023 00:00:00,26/11/2023 00:00:00,P08-2024
,LV LEISURE CENTRE CAMPSITE,PREMISES RELATED EXPENDITURE,WATER,2555,EDM- water- Oct23,14/11/2023 00:00:00,279516,44.48,CA0625,CASTLE WATER LIMITED,30/10/2023 00:00:00,26/11/2023 00:00:00,P08-2024
,LV LEISURE CENTRE CAMPSITE,PREMISES RELATED EXPENDITURE,WATER,2555,EDM- water- Oct23,14/11/2023 00:00:00,279516,37.99,CA0625,CASTLE WATER LIMITED,30/10/2023 00:00:00,26/11/2023 00:00:00,P08-2024
,LV LEISURE CENTRE CAMPSITE,PREMISES RELATED EXPENDITURE,WATER,2555,Edm- water - Oct 23,14/11/2023 00:00:00,279517,382.33,CA0625,CASTLE WATER LIMITED,30/10/2023 00:00:00,26/11/2023 00:00:00,P08-2024
,LV LEISURE CENTRE CAMPSITE,PREMISES RELATED EXPENDITURE,WATER,2555,Edm- water - Oct 23,14/11/2023 00:00:00,279517,565.69,CA0625,CASTLE WATER LIMITED,30/10/2023 00:00:00,26/11/2023 00:00:00,P08-2024
,LV LEISURE CENTRE CAMPSITE,PREMISES RELATED EXPENDITURE,WATER,2555,Edm- Adjustment Invoice - Oct 23,26/11/2023 00:00:00,279870,-63.79,CA0625,CASTLE WATER LIMITED,30/10/2023 00:00:00,26/11/2023 00:00:00,P08-2024
,LV LEISURE CENTRE CAMPSITE,PREMISES RELATED EXPENDITURE,WATER,2555,Edm- Adjustment Invoice - Oct 23,26/11/2023 00:00:00,279870,-110.62,CA0625,CASTLE WATER LIMITED,30/10/2023 00:00:00,26/11/2023 00:00:00,P08-2024
P&V,MYDDELTON HOUSE,PREMISES RELATED EXPENDITURE,CLEANING & DOMESTIC SUPPLIES,2666,P124012-SERVICE-amazon cleaning supplies,26/11/2023 00:00:00,279735,43.28,AM0406,AMAZON PAYMENTS UK LIMITED,30/10/2023 00:00:00,26/11/2023 00:00:00,P08-2024
,LEE VALLEY MARINA SPRINGFIELD,PREMISES RELATED EXPENDITURE,CLEANING & DOMESTIC SUPPLIES,2666,P123193-SERVICE-Site Cleaning August to november 23,11/07/2023 00:00,279118,1070.52,MA0015,MAYFAIR CLEANING COMPANY LIMITED,30/10/2023 00:00:00,26/11/2023 00:00:00,P08-2024
,LEE VALLEY MARINA SPRINGFIELD,PREMISES RELATED EXPENDITURE,CLEANING & DOMESTIC SUPPLIES,2666,P124141-SERVICE-To supply items as requested,26/11/2023 00:00:00,280082,273.38,HY0043,HYGIENE SYSTEMS LTD,30/10/2023 00:00:00,26/11/2023 00:00:00,P08-2024
,LEE VALLEY MARINA STANSTEAD,PREMISES RELATED EXPENDITURE,CLEANING & DOMESTIC SUPPLIES,2666,P123963-SERVICE-loo rolls (new supplier),26/11/2023 00:00:00,280081,108.4,HY0043,HYGIENE SYSTEMS LTD,30/10/2023 00:00:00,26/11/2023 00:00:00,P08-2024
,LEE VALLEY WATERWORKS CENTRE,PREMISES RELATED EXPENDITURE,CLEANING & DOMESTIC SUPPLIES,2666,P124048-SERVICE-3x Mini Jumbo Toilet Rolls,26/11/2023 00:00:00,279840,84.06,TH0008,JKL SOLUTIONS LTD,30/10/2023 00:00:00,26/11/2023 00:00:00,P08-2024
,LEE VALLEY WATERWORKS CENTRE,PREMISES RELATED EXPENDITURE,CLEANING & DOMESTIC SUPPLIES,2666,P124064-SERVICE-1x Carex Hand Soap Original 5 Litre - 548014,22/11/2023 00:00:00,279858,14.87,GR0020,GREENHAM TRADING LIMITED,30/10/2023 00:00:00,26/11/2023 00:00:00,P08-2024
,LEE VALLEY WATERWORKS CENTRE,PREMISES RELATED EXPENDITURE,CLEANING & DOMESTIC SUPPLIES,2666,P124064-SERVICE-1x 5Lt Washing Up Liquid - 500234,22/11/2023 00:00:00,279858,4.32,GR0020,GREENHAM TRADING LIMITED,30/10/2023 00:00:00,26/11/2023 00:00:00,P08-2024
,LEE VALLEY WATERWORKS CENTRE,PREMISES RELATED EXPENDITURE,CLEANING & DOMESTIC SUPPLIES,2666,P124064-SERVICE-1x Pristine Basic Blue 1ply Centrefeed 300m -,22/11/2023 00:00:00,279858,36.61,GR0020,GREENHAM TRADING LIMITED,30/10/2023 00:00:00,26/11/2023 00:00:00,P08-2024
,LEE VALLEY CAMPSITE,PREMISES RELATED EXPENDITURE,CLEANING & DOMESTIC SUPPLIES,2666,P123437-SERVICE-Site cleaning materials,14/11/2023 00:00:00,279302,119.63,HY0043,HYGIENE SYSTEMS LTD,30/10/2023 00:00:00,26/11/2023 00:00:00,P08-2024
,LEE VALLEY CAMPSITE,PREMISES RELATED EXPENDITURE,CLEANING & DOMESTIC SUPPLIES,2666,P123910-SERVICE-Stock Site cleaning materials,26/11/2023 00:00:00,279887,13.5,HY0043,HYGIENE SYSTEMS LTD,30/10/2023 00:00:00,26/11/2023 00:00:00,P08-2024
,LEE VALLEY CAMPSITE,PREMISES RELATED EXPENDITURE,CLEANING & DOMESTIC SUPPLIES,2666,P123910-SERVICE-Stock Site cleaning materials,26/11/2023 00:00:00,280033,176.64,HY0043,HYGIENE SYSTEMS LTD,30/10/2023 00:00:00,26/11/2023 00:00:00,P08-2024
,LEE VALLEY CARAVAN PARK,PREMISES RELATED EXPENDITURE,CLEANING & DOMESTIC SUPPLIES,2666,P123651-SERVICE-Various Cleaning Products,11/07/2023 00:00,278829,144.44,HY0043,HYGIENE SYSTEMS LTD,30/10/2023 00:00:00,26/11/2023 00:00:00,P08-2024
,LEE VALLEY CARAVAN PARK,PREMISES RELATED EXPENDITURE,CLEANING & DOMESTIC SUPPLIES,2666,P123881-SERVICE-Various Cleaning Products,22/11/2023 00:00:00,279301,163.14,HY0043,HYGIENE SYSTEMS LTD,30/10/2023 00:00:00,26/11/2023 00:00:00,P08-2024
P&V,RIVER LEE COUNTRY PARK,PREMISES RELATED EXPENDITURE,CLEANING & DOMESTIC SUPPLIES,2666,P123749-SERVICE-1x Sponge Back Scourer Yellow/Green - PS8500,11/07/2023 00:00,279035,5.25,TH0008,JKL SOLUTIONS LTD,30/10/2023 00:00:00,26/11/2023 00:00:00,P08-2024
,LV LEISURE CENTRE CAMPSITE,PREMISES RELATED EXPENDITURE,CLEANING & DOMESTIC SUPPLIES,2666,P123893-SERVICE-cleaning products,14/11/2023 00:00:00,279528,69.16,HY0043,HYGIENE SYSTEMS LTD,30/10/2023 00:00:00,26/11/2023 00:00:00,P08-2024
,LV LEISURE CENTRE CAMPSITE,PREMISES RELATED EXPENDITURE,CLEANING & DOMESTIC SUPPLIES,2666,P124051-SERVICE-Cleaning products,22/11/2023 00:00:00,279850,112.88,HY0043,HYGIENE SYSTEMS LTD,30/10/2023 00:00:00,26/11/2023 00:00:00,P08-2024
CEO,COMMERCIAL ACCOMMODATION,TRANSPORT RELATED EXPENDITURE,TRANSPORT RUNNING EXPENSES,3333,P123955-SERVICE-Tank Rental Oct-Dec,14/11/2023 00:00:00,279077,19.61,CA0006,CALOR GAS LIMITED,30/10/2023 00:00:00,26/11/2023 00:00:00,P08-2024
P&V,LEE VALLEY FARM HOLYFIELDHALL,TRANSPORT RELATED EXPENDITURE,TRANSPORT RUNNING EXPENSES,3333,P121503-SERVICE-Tractor Spares,11/08/2023 00:00,279124,34.14,OL0001,OLIVER AGRICULTURE LTD,30/10/2023 00:00:00,26/11/2023 00:00:00,P08-2024
P&V,LEE VALLEY FARM HOLYFIELDHALL,TRANSPORT RELATED EXPENDITURE,TRANSPORT RUNNING EXPENSES,3333,P121496-SERVICE-Workshop Sundries,11/07/2023 00:00,279238,100.75,GR0022,GROUP COMPONENTS LIMITED,30/10/2023 00:00:00,26/11/2023 00:00:00,P08-2024
P&V,LEE VALLEY FARM HOLYFIELDHALL,TRANSPORT RELATED EXPENDITURE,TRANSPORT RUNNING EXPENSES,3333,P123889-SERVICE-Brakeshoe Kit,14/11/2023 00:00:00,279286,137,HU0426,HUNTON LEGG (RUNNING GEAR) LTD,30/10/2023 00:00:00,26/11/2023 00:00:00,P08-2024
P&V,LEE VALLEY FARM HOLYFIELDHALL,TRANSPORT RELATED EXPENDITURE,TRANSPORT RUNNING EXPENSES,3333,P121504-SERVICE-Tractor Spares,20/11/2023 00:00:00,279604,160.55,OL0059,OLIVER LANDPOWER LIMITED,30/10/2023 00:00:00,26/11/2023 00:00:00,P08-2024
P&V,LEE VALLEY FARM HOLYFIELDHALL,TRANSPORT RELATED EXPENDITURE,TRANSPORT RUNNING EXPENSES,3333,P121496-SERVICE-Workshop Sundries,20/11/2023 00:00:00,279757,140,GR0022,GROUP COMPONENTS LIMITED,30/10/2023 00:00:00,26/11/2023 00:00:00,P08-2024
P&V,FISHERIES MANAGEMENT,TRANSPORT RELATED EXPENDITURE,VEHICLE FUEL,3335,FUEL CARD--Oct 2023,14/11/2023 00:00:00,279125,4.18,AR0035,ALLSTAR BUSINESS SOLUTIONS LTD,30/10/2023 00:00:00,26/11/2023 00:00:00,P08-2024
P&V,FISHERIES MANAGEMENT,TRANSPORT RELATED EXPENDITURE,VEHICLE FUEL,3335,FUEL CARD--Oct 2023,14/11/2023 00:00:00,279125,132.63,AR0035,ALLSTAR BUSINESS SOLUTIONS LTD,30/10/2023 00:00:00,26/11/2023 00:00:00,P08-2024
,LEE VALLEY MARINA STANSTEAD,TRANSPORT RELATED EXPENDITURE,VEHICLE FUEL,3335,FUEL CARD--Oct 2023,14/11/2023 00:00:00,279125,132.87,AR0035,ALLSTAR BUSINESS SOLUTIONS LTD,30/10/2023 00:00:00,26/11/2023 00:00:00,P08-2024
,LEE VALLEY MARINA STANSTEAD,TRANSPORT RELATED EXPENDITURE,VEHICLE FUEL,3335,FUEL CARD--Oct 2023,14/11/2023 00:00:00,279125,2.09,AR0035,ALLSTAR BUSINESS SOLUTIONS LTD,30/10/2023 00:00:00,26/11/2023 00:00:00,P08-2024
,STANSTEAD RECHARGEABLE WORKS,TRANSPORT RELATED EXPENDITURE,VEHICLE FUEL,3335,P123867-SERVICE-white diesel,15/11/2023 00:00:00,279383,293.17,SP0543,SPEEDY FUELS LIMITED,30/10/2023 00:00:00,26/11/2023 00:00:00,P08-2024
P&V,LEE VALLEY FARM HOLYFIELDHALL,TRANSPORT RELATED EXPENDITURE,VEHICLE FUEL,3335,FUEL CARD--Oct 2023,14/11/2023 00:00:00,279125,4.18,AR0035,ALLSTAR BUSINESS SOLUTIONS LTD,30/10/2023 00:00:00,26/11/2023 00:00:00,P08-2024
P&V,LEE VALLEY FARM HOLYFIELDHALL,TRANSPORT RELATED EXPENDITURE,VEHICLE FUEL,3335,FUEL CARD--Oct 2023,14/11/2023 00:00:00,279125,232.23,AR0035,ALLSTAR BUSINESS SOLUTIONS LTD,30/10/2023 00:00:00,26/11/2023 00:00:00,P08-2024
,LEE VALLEY CAMPSITE,TRANSPORT RELATED EXPENDITURE,VEHICLE FUEL,3335,FUEL CARD--Oct 2023,14/11/2023 00:00:00,279125,4.18,AR0035,ALLSTAR BUSINESS SOLUTIONS LTD,30/10/2023 00:00:00,26/11/2023 00:00:00,P08-2024
,LEE VALLEY CAMPSITE,TRANSPORT RELATED EXPENDITURE,VEHICLE FUEL,3335,FUEL CARD--Oct 2023,14/11/2023 00:00:00,279125,111.41,AR0035,ALLSTAR BUSINESS SOLUTIONS LTD,30/10/2023 00:00:00,26/11/2023 00:00:00,P08-2024
,LEE VALLEY CARAVAN PARK,TRANSPORT RELATED EXPENDITURE,VEHICLE FUEL,3335,FUEL CARD--Oct 2023,14/11/2023 00:00:00,279125,2.09,AR0035,ALLSTAR BUSINESS SOLUTIONS LTD,30/10/2023 00:00:00,26/11/2023 00:00:00,P08-2024
,LEE VALLEY CARAVAN PARK,TRANSPORT RELATED EXPENDITURE,VEHICLE FUEL,3335,FUEL CARD--Oct 2023,14/11/2023 00:00:00,279125,145,AR0035,ALLSTAR BUSINESS SOLUTIONS LTD,30/10/2023 00:00:00,26/11/2023 00:00:00,P08-2024
P&V,NORTH AREA RANGERS,TRANSPORT RELATED EXPENDITURE,VEHICLE FUEL,3335,FUEL CARD--Oct 2023,14/11/2023 00:00:00,279125,22.99,AR0035,ALLSTAR BUSINESS SOLUTIONS LTD,30/10/2023 00:00:00,26/11/2023 00:00:00,P08-2024
P&V,SOUTH AREA RANGERS,TRANSPORT RELATED EXPENDITURE,VEHICLE FUEL,3335,FUEL CARD--Oct 2023,14/11/2023 00:00:00,279125,10.45,AR0035,ALLSTAR BUSINESS SOLUTIONS LTD,30/10/2023 00:00:00,26/11/2023 00:00:00,P08-2024
P&V,SOUTH AREA RANGERS,TRANSPORT RELATED EXPENDITURE,VEHICLE FUEL,3335,FUEL CARD--Oct 2023,14/11/2023 00:00:00,279125,265.94,AR0035,ALLSTAR BUSINESS SOLUTIONS LTD,30/10/2023 00:00:00,26/11/2023 00:00:00,P08-2024
P&V,RIVER LEE COUNTRY PARK,TRANSPORT RELATED EXPENDITURE,VEHICLE FUEL,3335,FUEL CARD--Oct 2023,14/11/2023 00:00:00,279125,7.65,AR0035,ALLSTAR BUSINESS SOLUTIONS LTD,30/10/2023 00:00:00,26/11/2023 00:00:00,P08-2024
P&V,RIVER LEE COUNTRY PARK,TRANSPORT RELATED EXPENDITURE,VEHICLE FUEL,3335,FUEL CARD--Oct 2023,14/11/2023 00:00:00,279125,234.55,AR0035,ALLSTAR BUSINESS SOLUTIONS LTD,30/10/2023 00:00:00,26/11/2023 00:00:00,P08-2024
,LV LEISURE CENTRE CAMPSITE,TRANSPORT RELATED EXPENDITURE,VEHICLE FUEL,3335,FUEL CARD--Oct 2023,14/11/2023 00:00:00,279125,42.48,AR0035,ALLSTAR BUSINESS SOLUTIONS LTD,30/10/2023 00:00:00,26/11/2023 00:00:00,P08-2024
,LV LEISURE CENTRE CAMPSITE,TRANSPORT RELATED EXPENDITURE,VEHICLE FUEL,3335,FUEL CARD--Oct 2023,14/11/2023 00:00:00,279125,2.09,AR0035,ALLSTAR BUSINESS SOLUTIONS LTD,30/10/2023 00:00:00,26/11/2023 00:00:00,P08-2024
P&V,NORTH AREA RANGERS,TRANSPORT RELATED EXPENDITURE,VEHICLE REPAIRS & MAINTENANCE,3338,P124065-SERVICE-Replace Trailer Lights,26/11/2023 00:00:00,279726,65.29,TO0071,GT TOWING,30/10/2023 00:00:00,26/11/2023 00:00:00,P08-2024
P&V,SOUTH AREA RANGERS,TRANSPORT RELATED EXPENDITURE,VEHICLE REPAIRS & MAINTENANCE,3338,P123031-SERVICE-Vehicle Repairs Bodyworks - LT71 HPE,22/11/2023 00:00:00,279784,1600,DR0326,DRIVING FORCE,30/10/2023 00:00:00,26/11/2023 00:00:00,P08-2024
P&V,VOLUNTEERS (L&E),TRANSPORT RELATED EXPENDITURE,TRAVELLING EXPENSES,3344,Volunteer-travel expense,20/11/2023 00:00:00,279722,61.2,CH0761,MRS J C CHANDLER,30/10/2023 00:00:00,26/11/2023 00:00:00,P08-2024
,LEE VALLEY MARINA SPRINGFIELD,SUPPLIES AND SERVICES,EQUIPMENT & MATERIALS,4111,P124050-SERVICE-To Suupply items as per quotation 279970,26/11/2023 00:00:00,279888,185.99,EL0281,ELTHAM WELDING SUPPLIES LIMITED,30/10/2023 00:00:00,26/11/2023 00:00:00,P08-2024
,LEE VALLEY MARINA SPRINGFIELD,SUPPLIES AND SERVICES,EQUIPMENT & MATERIALS,4111,P123967-SERVICE-To supply items as per quotation 279676,26/11/2023 00:00:00,279889,400.36,EL0281,ELTHAM WELDING SUPPLIES LIMITED,30/10/2023 00:00:00,26/11/2023 00:00:00,P08-2024
,STANSTEAD RECHARGEABLE WORKS,SUPPLIES AND SERVICES,EQUIPMENT & MATERIALS,4111,P124028-SERVICE-blacking,22/11/2023 00:00:00,279627,1309.54,AQ0033,AQUAFAX LIMITED,30/10/2023 00:00:00,26/11/2023 00:00:00,P08-2024
,STANSTEAD RECHARGEABLE WORKS,SUPPLIES AND SERVICES,EQUIPMENT & MATERIALS,4111,P124028-SERVICE-blacking,26/11/2023 00:00:00,279824,5.12,AQ0033,AQUAFAX LIMITED,30/10/2023 00:00:00,26/11/2023 00:00:00,P08-2024
,STANSTEAD RECHARGEABLE WORKS,SUPPLIES AND SERVICES,EQUIPMENT & MATERIALS,4111,P124031-SERVICE-gloves workshop,26/11/2023 00:00:00,279897,29.9,WU0040,WURTH UK LTD,30/10/2023 00:00:00,26/11/2023 00:00:00,P08-2024
,LEE VALLEY CAMPSITE,SUPPLIES AND SERVICES,EQUIPMENT & MATERIALS,4111,P123848-SERVICE-Tent field  knee rails,11/07/2023 00:00,279055,322.68,LE0012,LEASIDE TIMBER & BUILDERS MERCHANTS LTD,30/10/2023 00:00:00,26/11/2023 00:00:00,P08-2024
,LEE VALLEY CAMPSITE,SUPPLIES AND SERVICES,EQUIPMENT & MATERIALS,4111,P123909-SERVICE-Site  materials & Equipment,14/11/2023 00:00:00,279272,242.64,SC0057,SCREWFIX DIRECT LTD,30/10/2023 00:00:00,26/11/2023 00:00:00,P08-2024
,LEE VALLEY CAMPSITE,SUPPLIES AND SERVICES,EQUIPMENT & MATERIALS,4111,P124103-SERVICE-site materials and equipment,22/11/2023 00:00:00,279578,312.17,BQ0164,TRADE UK ACCOUNT,30/10/2023 00:00:00,26/11/2023 00:00:00,P08-2024
,LEE VALLEY CARAVAN PARK,SUPPLIES AND SERVICES,EQUIPMENT & MATERIALS,4111,"P123857-SERVICE-Expanding foam, Harness and steel wool",11/07/2023 00:00,279046,35.94,SC0057,SCREWFIX DIRECT LTD,30/10/2023 00:00:00,26/11/2023 00:00:00,P08-2024
,LEE VALLEY CARAVAN PARK,SUPPLIES AND SERVICES,EQUIPMENT & MATERIALS,4111,P123930-SERVICE-Pallet of grids for New HH Pathways/parking,15/11/2023 00:00:00,279511,816.48,LE0012,LEASIDE TIMBER & BUILDERS MERCHANTS LTD,30/10/2023 00:00:00,26/11/2023 00:00:00,P08-2024
,LEE VALLEY CARAVAN PARK,SUPPLIES AND SERVICES,EQUIPMENT & MATERIALS,4111,P123999-SERVICE-Blk paint,14/11/2023 00:00:00,279513,95.79,SC0057,SCREWFIX DIRECT LTD,30/10/2023 00:00:00,26/11/2023 00:00:00,P08-2024
,LEE VALLEY CARAVAN PARK,SUPPLIES AND SERVICES,EQUIPMENT & MATERIALS,4111,"P123979-SERVICE-Gas test, replace drainage",15/11/2023 00:00:00,279536,450,SO0400,SOUTHERN GREEN SERVICES LIMITED,30/10/2023 00:00:00,26/11/2023 00:00:00,P08-2024
,LEE VALLEY CARAVAN PARK,SUPPLIES AND SERVICES,EQUIPMENT & MATERIALS,4111,P123978-SERVICE-Bath and Shower maintance - Hamilton,15/11/2023 00:00:00,279537,1070,SO0400,SOUTHERN GREEN SERVICES LIMITED,30/10/2023 00:00:00,26/11/2023 00:00:00,P08-2024
,LEE VALLEY CARAVAN PARK,SUPPLIES AND SERVICES,EQUIPMENT & MATERIALS,4111,P123977-SERVICE-Replace and repair shower in Country,20/11/2023 00:00:00,279538,1480,SO0400,SOUTHERN GREEN SERVICES LIMITED,30/10/2023 00:00:00,26/11/2023 00:00:00,P08-2024
,LEE VALLEY CARAVAN PARK,SUPPLIES AND SERVICES,EQUIPMENT & MATERIALS,4111,P123941-SERVICE-Curtains Poles for Cottage,14/11/2023 00:00:00,279571,44.97,AM0406,AMAZON PAYMENTS UK LIMITED,30/10/2023 00:00:00,26/11/2023 00:00:00,P08-2024
,LEE VALLEY CARAVAN PARK,SUPPLIES AND SERVICES,EQUIPMENT & MATERIALS,4111,P123941-SERVICE-Curtains Poles for Cottage,14/11/2023 00:00:00,279572,19.07,AM0406,AMAZON PAYMENTS UK LIMITED,30/10/2023 00:00:00,26/11/2023 00:00:00,P08-2024
,LEE VALLEY CARAVAN PARK,SUPPLIES AND SERVICES,EQUIPMENT & MATERIALS,4111,P124061-SERVICE-Entrance Mats for Riverside Cottage,22/11/2023 00:00:00,279791,26.64,AM0406,AMAZON PAYMENTS UK LIMITED,30/10/2023 00:00:00,26/11/2023 00:00:00,P08-2024
,LEE VALLEY CARAVAN PARK,SUPPLIES AND SERVICES,EQUIPMENT & MATERIALS,4111,P124061-SERVICE-Entrance Mats for Riverside Cottage,22/11/2023 00:00:00,279792,32.48,AM0406,AMAZON PAYMENTS UK LIMITED,30/10/2023 00:00:00,26/11/2023 00:00:00,P08-2024
,LEE VALLEY CARAVAN PARK,SUPPLIES AND SERVICES,EQUIPMENT & MATERIALS,4111,P124119-SERVICE-Roller Blinds for Wigwams,26/11/2023 00:00:00,279800,139.38,AM0406,AMAZON PAYMENTS UK LIMITED,30/10/2023 00:00:00,26/11/2023 00:00:00,P08-2024
,LEE VALLEY CARAVAN PARK,SUPPLIES AND SERVICES,EQUIPMENT & MATERIALS,4111,P124074-SERVICE-Replacement/Revamp items for Wigwams,26/11/2023 00:00:00,279801,70.5,AM0406,AMAZON PAYMENTS UK LIMITED,30/10/2023 00:00:00,26/11/2023 00:00:00,P08-2024
,LEE VALLEY CARAVAN PARK,SUPPLIES AND SERVICES,EQUIPMENT & MATERIALS,4111,P124117-SERVICE-Plastic Plates 19m - Wigwams,26/11/2023 00:00:00,279802,9.16,AM0406,AMAZON PAYMENTS UK LIMITED,30/10/2023 00:00:00,26/11/2023 00:00:00,P08-2024
,LEE VALLEY CARAVAN PARK,SUPPLIES AND SERVICES,EQUIPMENT & MATERIALS,4111,P124118-SERVICE-26CM Platic Plates - Wigwams,26/11/2023 00:00:00,279803,12.49,AM0406,AMAZON PAYMENTS UK LIMITED,30/10/2023 00:00:00,26/11/2023 00:00:00,P08-2024
,LEE VALLEY CARAVAN PARK,SUPPLIES AND SERVICES,EQUIPMENT & MATERIALS,4111,P124180-SERVICE-Signs,26/11/2023 00:00:00,279852,93.2,SC0057,SCREWFIX DIRECT LTD,30/10/2023 00:00:00,26/11/2023 00:00:00,P08-2024
,LEE VALLEY CARAVAN PARK,SUPPLIES AND SERVICES,EQUIPMENT & MATERIALS,4111,P124180-SERVICE-Signs,26/11/2023 00:00:00,279853,-8.32,SC0057,SCREWFIX DIRECT LTD,30/10/2023 00:00:00,26/11/2023 00:00:00,P08-2024
,LEE VALLEY CARAVAN PARK,SUPPLIES AND SERVICES,EQUIPMENT & MATERIALS,4111,P124180-SERVICE-Signs,26/11/2023 00:00:00,279892,-33.3,SC0057,SCREWFIX DIRECT LTD,30/10/2023 00:00:00,26/11/2023 00:00:00,P08-2024
P&V,MYDDELTON HOUSE GARDENS,SUPPLIES AND SERVICES,EQUIPMENT & MATERIALS,4111,P121912-SERVICE-pest control gardens 23/24,11/08/2023 00:00,278846,138.35,FA0149,FARGRO LIMITED,30/10/2023 00:00:00,26/11/2023 00:00:00,P08-2024
P&V,MYDDELTON HOUSE GARDENS,SUPPLIES AND SERVICES,EQUIPMENT & MATERIALS,4111,P123674-SERVICE-gardens supplies 2023 amazon,14/11/2023 00:00:00,279000,6.16,AM0406,AMAZON PAYMENTS UK LIMITED,30/10/2023 00:00:00,26/11/2023 00:00:00,P08-2024
P&V,MYDDELTON HOUSE GARDENS,SUPPLIES AND SERVICES,EQUIPMENT & MATERIALS,4111,P123674-SERVICE-gardens supplies 2023 amazon,14/11/2023 00:00:00,279001,31.85,AM0406,AMAZON PAYMENTS UK LIMITED,30/10/2023 00:00:00,26/11/2023 00:00:00,P08-2024
P&V,MYDDELTON HOUSE GARDENS,SUPPLIES AND SERVICES,EQUIPMENT & MATERIALS,4111,P123674-SERVICE-gardens supplies 2023 amazon,14/11/2023 00:00:00,279002,14.99,AM0406,AMAZON PAYMENTS UK LIMITED,30/10/2023 00:00:00,26/11/2023 00:00:00,P08-2024
P&V,MYDDELTON HOUSE GARDENS,SUPPLIES AND SERVICES,EQUIPMENT & MATERIALS,4111,P123674-SERVICE-gardens supplies 2023 amazon,14/11/2023 00:00:00,279003,24.57,AM0406,AMAZON PAYMENTS UK LIMITED,30/10/2023 00:00:00,26/11/2023 00:00:00,P08-2024
P&V,MYDDELTON HOUSE GARDENS,SUPPLIES AND SERVICES,EQUIPMENT & MATERIALS,4111,P123674-SERVICE-gardens supplies 2023 amazon,15/11/2023 00:00:00,279345,48.32,AM0406,AMAZON PAYMENTS UK LIMITED,30/10/2023 00:00:00,26/11/2023 00:00:00,P08-2024
P&V,MYDDELTON HOUSE GARDENS,SUPPLIES AND SERVICES,EQUIPMENT & MATERIALS,4111,P123674-SERVICE-gardens supplies 2023 amazon,15/11/2023 00:00:00,279346,8.32,AM0406,AMAZON PAYMENTS UK LIMITED,30/10/2023 00:00:00,26/11/2023 00:00:00,P08-2024
P&V,MYDDELTON HOUSE GARDENS,SUPPLIES AND SERVICES,EQUIPMENT & MATERIALS,4111,P123674-SERVICE-gardens supplies 2023 amazon,15/11/2023 00:00:00,279347,10.25,AM0406,AMAZON PAYMENTS UK LIMITED,30/10/2023 00:00:00,26/11/2023 00:00:00,P08-2024
P&V,MYDDELTON HOUSE GARDENS,SUPPLIES AND SERVICES,EQUIPMENT & MATERIALS,4111,P123674-SERVICE-gardens supplies 2023 amazon,15/11/2023 00:00:00,279348,11.6,AM0406,AMAZON PAYMENTS UK LIMITED,30/10/2023 00:00:00,26/11/2023 00:00:00,P08-2024
P&V,MYDDELTON HOUSE GARDENS,SUPPLIES AND SERVICES,EQUIPMENT & MATERIALS,4111,P123674-SERVICE-gardens supplies 2023 amazon,15/11/2023 00:00:00,279349,23.52,AM0406,AMAZON PAYMENTS UK LIMITED,30/10/2023 00:00:00,26/11/2023 00:00:00,P08-2024
P&V,MYDDELTON HOUSE GARDENS,SUPPLIES AND SERVICES,EQUIPMENT & MATERIALS,4111,P123674-SERVICE-gardens supplies 2023 amazon,15/11/2023 00:00:00,279350,29.27,AM0406,AMAZON PAYMENTS UK LIMITED,30/10/2023 00:00:00,26/11/2023 00:00:00,P08-2024
P&V,MYDDELTON HOUSE GARDENS,SUPPLIES AND SERVICES,EQUIPMENT & MATERIALS,4111,P123923-SERVICE-amazon gardens supplies,15/11/2023 00:00:00,279467,23.52,AM0406,AMAZON PAYMENTS UK LIMITED,30/10/2023 00:00:00,26/11/2023 00:00:00,P08-2024
P&V,MYDDELTON HOUSE GARDENS,SUPPLIES AND SERVICES,EQUIPMENT & MATERIALS,4111,P123674-SERVICE-gardens supplies 2023 amazon,20/11/2023 00:00:00,279573,41.65,AM0406,AMAZON PAYMENTS UK LIMITED,30/10/2023 00:00:00,26/11/2023 00:00:00,P08-2024
P&V,MYDDELTON HOUSE GARDENS,SUPPLIES AND SERVICES,EQUIPMENT & MATERIALS,4111,P123923-SERVICE-amazon gardens supplies,26/11/2023 00:00:00,279720,56.48,AM0406,AMAZON PAYMENTS UK LIMITED,30/10/2023 00:00:00,26/11/2023 00:00:00,P08-2024
P&V,MYDDELTON HOUSE GARDENS,SUPPLIES AND SERVICES,EQUIPMENT & MATERIALS,4111,Volunteer- Amazon- glue,20/11/2023 00:00:00,279721,7.5,LE0484,SHEREE LESTER,30/10/2023 00:00:00,26/11/2023 00:00:00,P08-2024
P&V,MYDDELTON HOUSE GARDENS,SUPPLIES AND SERVICES,EQUIPMENT & MATERIALS,4111,P124053-SERVICE-GARDEN TOOLS 23,26/11/2023 00:00:00,279727,52.88,CL0093,CLOCKHOUSE NURSERY,30/10/2023 00:00:00,26/11/2023 00:00:00,P08-2024
P&V,MYDDELTON HOUSE GARDENS,SUPPLIES AND SERVICES,EQUIPMENT & MATERIALS,4111,P123923-SERVICE-amazon gardens supplies,26/11/2023 00:00:00,279736,30.54,AM0406,AMAZON PAYMENTS UK LIMITED,30/10/2023 00:00:00,26/11/2023 00:00:00,P08-2024
P&V,MYDDELTON HOUSE GARDENS,SUPPLIES AND SERVICES,EQUIPMENT & MATERIALS,4111,P123923-SERVICE-amazon gardens supplies,26/11/2023 00:00:00,279737,17.49,AM0406,AMAZON PAYMENTS UK LIMITED,30/10/2023 00:00:00,26/11/2023 00:00:00,P08-2024
P&V,MYDDELTON HOUSE GARDENS,SUPPLIES AND SERVICES,EQUIPMENT & MATERIALS,4111,P123923-SERVICE-amazon gardens supplies,26/11/2023 00:00:00,279739,19.95,AM0406,AMAZON PAYMENTS UK LIMITED,30/10/2023 00:00:00,26/11/2023 00:00:00,P08-2024
P&V,MYDDELTON HOUSE GARDENS,SUPPLIES AND SERVICES,EQUIPMENT & MATERIALS,4111,P123923-SERVICE-amazon gardens supplies,26/11/2023 00:00:00,279741,14.29,AM0406,AMAZON PAYMENTS UK LIMITED,30/10/2023 00:00:00,26/11/2023 00:00:00,P08-2024
P&V,SOUTH AREA RANGERS,SUPPLIES AND SERVICES,EQUIPMENT & MATERIALS,4111,P123039-SERVICE-14x 1.8m Cranham Backless Benches,14/11/2023 00:00:00,279525,3682,BR0272,BRANSON LEISURE LIMITED,30/10/2023 00:00:00,26/11/2023 00:00:00,P08-2024
P&V,SOUTH AREA RANGERS,SUPPLIES AND SERVICES,EQUIPMENT & MATERIALS,4111,P123039-SERVICE-1x 1.8m Cranham Picnic Table Sets,14/11/2023 00:00:00,279525,1035,BR0272,BRANSON LEISURE LIMITED,30/10/2023 00:00:00,26/11/2023 00:00:00,P08-2024
P&V,WILDLIFE DISCOVERY CENTRE,SUPPLIES AND SERVICES,EQUIPMENT & MATERIALS,4111,P124136-SERVICE-Evac+Chair Secure Steel Cabinet,26/11/2023 00:00:00,280045,401.99,HE0467,HEALTH AND CARE (UK) LIMITED,30/10/2023 00:00:00,26/11/2023 00:00:00,P08-2024
P&V,RIVER LEE COUNTRY PARK,SUPPLIES AND SERVICES,EQUIPMENT & MATERIALS,4111,"P123733-SERVICE-1x Lever for Sthil FS240C, FS240RC - 4147 182",20/11/2023 00:00:00,279014,2.91,LS0469,L & S ENGINEERS LTD,30/10/2023 00:00:00,26/11/2023 00:00:00,P08-2024
P&V,RIVER LEE COUNTRY PARK,SUPPLIES AND SERVICES,EQUIPMENT & MATERIALS,4111,"P123733-SERVICE-1x Lever for Sthil FS360C, FS410C - 4147 182",20/11/2023 00:00:00,279014,2.62,LS0469,L & S ENGINEERS LTD,30/10/2023 00:00:00,26/11/2023 00:00:00,P08-2024
P&V,RIVER LEE COUNTRY PARK,SUPPLIES AND SERVICES,EQUIPMENT & MATERIALS,4111,"P123733-SERVICE-1x Compression Spring fro Stihl 084, FS460C",20/11/2023 00:00:00,279014,0.99,LS0469,L & S ENGINEERS LTD,30/10/2023 00:00:00,26/11/2023 00:00:00,P08-2024
P&V,RIVER LEE COUNTRY PARK,SUPPLIES AND SERVICES,EQUIPMENT & MATERIALS,4111,P123733-SERVICE-1x Brush Knife Blade and Guard Kit for Stihl,20/11/2023 00:00:00,279014,33.3,LS0469,L & S ENGINEERS LTD,30/10/2023 00:00:00,26/11/2023 00:00:00,P08-2024
P&V,RIVER LEE COUNTRY PARK,SUPPLIES AND SERVICES,EQUIPMENT & MATERIALS,4111,P123733-SERVICE-Delivery,20/11/2023 00:00:00,279014,4.95,LS0469,L & S ENGINEERS LTD,30/10/2023 00:00:00,26/11/2023 00:00:00,P08-2024
P&V,RIVER LEE COUNTRY PARK,SUPPLIES AND SERVICES,EQUIPMENT & MATERIALS,4111,P124073-SERVICE-16x Sawn Batten - 25 x 50mm x 4.8m,26/11/2023 00:00:00,280058,72.96,JE0011,SAINT-GOBAIN BUILDING DISTRIBUTION,30/10/2023 00:00:00,26/11/2023 00:00:00,P08-2024
P&V,RIVER LEE COUNTRY PARK,SUPPLIES AND SERVICES,EQUIPMENT & MATERIALS,4111,P124073-SERVICE-32x Sawn Batten - 25 x 50mm x 4.8m,26/11/2023 00:00:00,280059,136.8,JE0011,SAINT-GOBAIN BUILDING DISTRIBUTION,30/10/2023 00:00:00,26/11/2023 00:00:00,P08-2024
P&V,THREE MILLS,SUPPLIES AND SERVICES,EQUIPMENT & MATERIALS,4111,P122748-SERVICE-Playground Repairs at Three Mills,11/07/2023 00:00,279090,435,AR0291,ARD PLAYGROUNDS,30/10/2023 00:00:00,26/11/2023 00:00:00,P08-2024
P&V,THREE MILLS,SUPPLIES AND SERVICES,EQUIPMENT & MATERIALS,4111,P122748-SERVICE-Playground Repairs at Three Mills,11/07/2023 00:00,279090,1334.5,AR0291,ARD PLAYGROUNDS,30/10/2023 00:00:00,26/11/2023 00:00:00,P08-2024
,LV LEISURE CENTRE CAMPSITE,SUPPLIES AND SERVICES,EQUIPMENT & MATERIALS,4111,P123883-SERVICE-Toilet brush wooden sticks,11/08/2023 00:00,279295,17.51,AM0406,AMAZON PAYMENTS UK LIMITED,30/10/2023 00:00:00,26/11/2023 00:00:00,P08-2024
,LV LEISURE CENTRE CAMPSITE,SUPPLIES AND SERVICES,EQUIPMENT & MATERIALS,4111,P123883-SERVICE-Toilet brush wooden sticks,11/08/2023 00:00,279296,17.51,AM0406,AMAZON PAYMENTS UK LIMITED,30/10/2023 00:00:00,26/11/2023 00:00:00,P08-2024
,LV LEISURE CENTRE CAMPSITE,SUPPLIES AND SERVICES,EQUIPMENT & MATERIALS,4111,P123883-SERVICE-Toilet brush wooden sticks,11/08/2023 00:00,279297,17.51,AM0406,AMAZON PAYMENTS UK LIMITED,30/10/2023 00:00:00,26/11/2023 00:00:00,P08-2024
,LV LEISURE CENTRE CAMPSITE,SUPPLIES AND SERVICES,EQUIPMENT & MATERIALS,4111,P123883-SERVICE-Toilet brush wooden sticks,11/08/2023 00:00,279298,17.51,AM0406,AMAZON PAYMENTS UK LIMITED,30/10/2023 00:00:00,26/11/2023 00:00:00,P08-2024
,LV LEISURE CENTRE CAMPSITE,SUPPLIES AND SERVICES,EQUIPMENT & MATERIALS,4111,P123883-SERVICE-Toilet brush wooden sticks,11/08/2023 00:00,279299,17.51,AM0406,AMAZON PAYMENTS UK LIMITED,30/10/2023 00:00:00,26/11/2023 00:00:00,P08-2024
,LV LEISURE CENTRE CAMPSITE,SUPPLIES AND SERVICES,EQUIPMENT & MATERIALS,4111,P123883-SERVICE-Toilet brush wooden sticks,11/08/2023 00:00,279300,17.51,AM0406,AMAZON PAYMENTS UK LIMITED,30/10/2023 00:00:00,26/11/2023 00:00:00,P08-2024
,LV LEISURE CENTRE CAMPSITE,SUPPLIES AND SERVICES,EQUIPMENT & MATERIALS,4111,P123892-SERVICE-replacement foam extinguisher,15/11/2023 00:00:00,279339,143.81,MO0478,MORGAN FIRE PROTECTION LTD,30/10/2023 00:00:00,26/11/2023 00:00:00,P08-2024
,LV LEISURE CENTRE CAMPSITE,SUPPLIES AND SERVICES,EQUIPMENT & MATERIALS,4111,P123883-SERVICE-Toilet brush wooden sticks,14/11/2023 00:00:00,279343,2.9,AM0406,AMAZON PAYMENTS UK LIMITED,30/10/2023 00:00:00,26/11/2023 00:00:00,P08-2024
,LV LEISURE CENTRE CAMPSITE,SUPPLIES AND SERVICES,EQUIPMENT & MATERIALS,4111,P124124-SERVICE-A4 Fire Action Dial signs,22/11/2023 00:00:00,279532,10.25,FI0215,VALUE PRODUCTS LTD,30/10/2023 00:00:00,26/11/2023 00:00:00,P08-2024
,LV LEISURE CENTRE CAMPSITE,SUPPLIES AND SERVICES,EQUIPMENT & MATERIALS,4111,P124125-SERVICE-Fire Safety signs,22/11/2023 00:00:00,279788,229.89,FI0215,VALUE PRODUCTS LTD,30/10/2023 00:00:00,26/11/2023 00:00:00,P08-2024
,LV LEISURE CENTRE CAMPSITE,SUPPLIES AND SERVICES,EQUIPMENT & MATERIALS,4111,P124157-SERVICE-Paint and decorating supplies,26/11/2023 00:00:00,279891,58.22,SC0057,SCREWFIX DIRECT LTD,30/10/2023 00:00:00,26/11/2023 00:00:00,P08-2024
,LV LEISURE CENTRE GOLF COURSE,SUPPLIES AND SERVICES,EQUIPMENT & MATERIALS,4111,P123449-SERVICE-Cushman Repairs,11/07/2023 00:00,279315,771.69,DO0027,ERNEST DOE & SONS LTD,30/10/2023 00:00:00,26/11/2023 00:00:00,P08-2024
,LV LEISURE CENTRE GOLF COURSE,SUPPLIES AND SERVICES,EQUIPMENT & MATERIALS,4111,P123741-SERVICE-Over-Seeding 18 Fairways,26/11/2023 00:00:00,279829,2750,CA0698,CAMBRIDGE GOLF COMPANY,30/10/2023 00:00:00,26/11/2023 00:00:00,P08-2024
,LEE VALLEY CAMPSITE,SUPPLIES AND SERVICES,EQUIPMENT MAINTENANCE,4112,P123798-SERVICE-House - extra power Install,11/08/2023 00:00,278859,144,BR0018,BRADSHAW ELECTRICAL LIMITED,30/10/2023 00:00:00,26/11/2023 00:00:00,P08-2024
,LEE VALLEY CAMPSITE,SUPPLIES AND SERVICES,EQUIPMENT MAINTENANCE,4112,P123997-SERVICE-HH11 - Power tripping,14/11/2023 00:00:00,279501,155,BR0018,BRADSHAW ELECTRICAL LIMITED,30/10/2023 00:00:00,26/11/2023 00:00:00,P08-2024
,LEE VALLEY CAMPSITE,SUPPLIES AND SERVICES,EQUIPMENT MAINTENANCE,4112,P123994-SERVICE-Repairs to Hook up lighting,14/11/2023 00:00:00,279502,325,BR0018,BRADSHAW ELECTRICAL LIMITED,30/10/2023 00:00:00,26/11/2023 00:00:00,P08-2024
,LEE VALLEY CAMPSITE,SUPPLIES AND SERVICES,EQUIPMENT MAINTENANCE,4112,P123995-SERVICE-A/C Units Block A 16/1023,14/11/2023 00:00:00,279504,720,BR0018,BRADSHAW ELECTRICAL LIMITED,30/10/2023 00:00:00,26/11/2023 00:00:00,P08-2024
,LEE VALLEY CAMPSITE,SUPPLIES AND SERVICES,EQUIPMENT MAINTENANCE,4112,P123724-SERVICE-Tumble dryer not tumbling,20/11/2023 00:00:00,279624,244.54,AL0434,ALLSOP & FRANCIS,30/10/2023 00:00:00,26/11/2023 00:00:00,P08-2024
,LEE VALLEY CARAVAN PARK,SUPPLIES AND SERVICES,EQUIPMENT MAINTENANCE,4112,P123858-SERVICE-Monthly Hot Tub Sample testing,11/07/2023 00:00,279039,121.72,KI0090,KINGFISHER ENVIRONMENTAL SERVICES LTD,30/10/2023 00:00:00,26/11/2023 00:00:00,P08-2024
,LEE VALLEY CARAVAN PARK,SUPPLIES AND SERVICES,EQUIPMENT MAINTENANCE,4112,P123729-SERVICE-Collected and Assessed Kubota G26 II,11/07/2023 00:00,279094,588.05,BR0143,GEORGE BROWNS LTD,30/10/2023 00:00:00,26/11/2023 00:00:00,P08-2024
,LEE VALLEY CARAVAN PARK,SUPPLIES AND SERVICES,EQUIPMENT MAINTENANCE,4112,P123728-SERVICE-Colloected and Assessed F3680 Kubota,11/07/2023 00:00,279095,608,BR0143,GEORGE BROWNS LTD,30/10/2023 00:00:00,26/11/2023 00:00:00,P08-2024
,LEE VALLEY CARAVAN PARK,SUPPLIES AND SERVICES,EQUIPMENT MAINTENANCE,4112,P123860-SERVICE-Smoke test & Gas Monitoring carried out HH57,11/07/2023 00:00,279101,440,CO0550,CONVERT WATER LTD,30/10/2023 00:00:00,26/11/2023 00:00:00,P08-2024
,LEE VALLEY CARAVAN PARK,SUPPLIES AND SERVICES,EQUIPMENT MAINTENANCE,4112,P123844-SERVICE-Eco Parking Grass Grids x 504,11/07/2023 00:00,279119,816.48,LE0012,LEASIDE TIMBER & BUILDERS MERCHANTS LTD,30/10/2023 00:00:00,26/11/2023 00:00:00,P08-2024
,LEE VALLEY CARAVAN PARK,SUPPLIES AND SERVICES,EQUIPMENT MAINTENANCE,4112,P123877-SERVICE-Blinds for Wigwams,14/11/2023 00:00:00,279289,29.99,AM0406,AMAZON PAYMENTS UK LIMITED,30/10/2023 00:00:00,26/11/2023 00:00:00,P08-2024
,LEE VALLEY CARAVAN PARK,SUPPLIES AND SERVICES,EQUIPMENT MAINTENANCE,4112,P123877-SERVICE-Blinds for Wigwams,11/08/2023 00:00,279290,19.14,AM0406,AMAZON PAYMENTS UK LIMITED,30/10/2023 00:00:00,26/11/2023 00:00:00,P08-2024
,LEE VALLEY CARAVAN PARK,SUPPLIES AND SERVICES,EQUIPMENT MAINTENANCE,4112,P123877-SERVICE-Blinds for Wigwams,11/08/2023 00:00,279291,14.66,AM0406,AMAZON PAYMENTS UK LIMITED,30/10/2023 00:00:00,26/11/2023 00:00:00,P08-2024
,LEE VALLEY CARAVAN PARK,SUPPLIES AND SERVICES,EQUIPMENT MAINTENANCE,4112,P123877-SERVICE-Blinds for Wigwams,11/08/2023 00:00,279292,29.99,AM0406,AMAZON PAYMENTS UK LIMITED,30/10/2023 00:00:00,26/11/2023 00:00:00,P08-2024
,LEE VALLEY CARAVAN PARK,SUPPLIES AND SERVICES,EQUIPMENT MAINTENANCE,4112,P123877-SERVICE-Blinds for Wigwams,11/08/2023 00:00,279293,10.61,AM0406,AMAZON PAYMENTS UK LIMITED,30/10/2023 00:00:00,26/11/2023 00:00:00,P08-2024
,LEE VALLEY CARAVAN PARK,SUPPLIES AND SERVICES,EQUIPMENT MAINTENANCE,4112,P123877-SERVICE-Blinds for Wigwams,11/08/2023 00:00,279294,23.32,AM0406,AMAZON PAYMENTS UK LIMITED,30/10/2023 00:00:00,26/11/2023 00:00:00,P08-2024
,LEE VALLEY CARAVAN PARK,SUPPLIES AND SERVICES,EQUIPMENT MAINTENANCE,4112,P123877-SERVICE-Blinds for Wigwams,14/11/2023 00:00:00,279342,13.32,AM0406,AMAZON PAYMENTS UK LIMITED,30/10/2023 00:00:00,26/11/2023 00:00:00,P08-2024
,LEE VALLEY CARAVAN PARK,SUPPLIES AND SERVICES,EQUIPMENT MAINTENANCE,4112,P123877-SERVICE-Blinds for Wigwams,14/11/2023 00:00:00,279344,42.49,AM0406,AMAZON PAYMENTS UK LIMITED,30/10/2023 00:00:00,26/11/2023 00:00:00,P08-2024
,LEE VALLEY CARAVAN PARK,SUPPLIES AND SERVICES,EQUIPMENT MAINTENANCE,4112,P123990-SERVICE-Empty pump station,14/11/2023 00:00:00,279465,532,CO0550,CONVERT WATER LTD,30/10/2023 00:00:00,26/11/2023 00:00:00,P08-2024
,LEE VALLEY CARAVAN PARK,SUPPLIES AND SERVICES,EQUIPMENT MAINTENANCE,4112,P123991-SERVICE-Unblock pump due to tripping,14/11/2023 00:00:00,279466,340,CO0550,CONVERT WATER LTD,30/10/2023 00:00:00,26/11/2023 00:00:00,P08-2024
,LEE VALLEY CARAVAN PARK,SUPPLIES AND SERVICES,EQUIPMENT MAINTENANCE,4112,P123993-SERVICE-Electrical work carried out,14/11/2023 00:00:00,279496,725,BR0018,BRADSHAW ELECTRICAL LIMITED,30/10/2023 00:00:00,26/11/2023 00:00:00,P08-2024
,LEE VALLEY CARAVAN PARK,SUPPLIES AND SERVICES,EQUIPMENT MAINTENANCE,4112,P123996-SERVICE-Lighting tripping in mens toilets,14/11/2023 00:00:00,279499,120,BR0018,BRADSHAW ELECTRICAL LIMITED,30/10/2023 00:00:00,26/11/2023 00:00:00,P08-2024
,LEE VALLEY CARAVAN PARK,SUPPLIES AND SERVICES,EQUIPMENT MAINTENANCE,4112,P124084-SERVICE-Attend for drainage survey around HH57,20/11/2023 00:00:00,279544,300,CO0550,CONVERT WATER LTD,30/10/2023 00:00:00,26/11/2023 00:00:00,P08-2024
,LEE VALLEY CARAVAN PARK,SUPPLIES AND SERVICES,EQUIPMENT MAINTENANCE,4112,P124037-SERVICE-Curtain Pole for River Cottage,20/11/2023 00:00:00,279616,14.99,AM0406,AMAZON PAYMENTS UK LIMITED,30/10/2023 00:00:00,26/11/2023 00:00:00,P08-2024
,LEE VALLEY CARAVAN PARK,SUPPLIES AND SERVICES,EQUIPMENT MAINTENANCE,4112,P124184-SERVICE-Hot tub sampling,26/11/2023 00:00:00,280022,121.72,KI0090,KINGFISHER ENVIRONMENTAL SERVICES LTD,30/10/2023 00:00:00,26/11/2023 00:00:00,P08-2024
P&V,MYDDELTON HOUSE GARDENS,SUPPLIES AND SERVICES,EQUIPMENT MAINTENANCE,4112,P123409-SERVICE-Kubota G23 parts & labour,14/11/2023 00:00:00,279287,285,BR0143,GEORGE BROWNS LTD,30/10/2023 00:00:00,26/11/2023 00:00:00,P08-2024
P&V,RIVER LEE COUNTRY PARK,SUPPLIES AND SERVICES,EQUIPMENT MAINTENANCE,4112,P124036-SERVICE-Weed Wiper Service,26/11/2023 00:00:00,278874,562.95,TU0006,P TUCKWELL LTD,30/10/2023 00:00:00,26/11/2023 00:00:00,P08-2024
P&V,RIVER LEE COUNTRY PARK,SUPPLIES AND SERVICES,EQUIPMENT MAINTENANCE,4112,P124214-SERVICE-Stihl Electric Chainsaw Reapirs,26/11/2023 00:00:00,279304,15,NA0168,NAZEING GARDEN MACHINERY,30/10/2023 00:00:00,26/11/2023 00:00:00,P08-2024
P&V,RIVER LEE COUNTRY PARK,SUPPLIES AND SERVICES,EQUIPMENT MAINTENANCE,4112,P124214-SERVICE-Sthil Chainsaw Oil Pump Repairs,26/11/2023 00:00:00,279304,60,NA0168,NAZEING GARDEN MACHINERY,30/10/2023 00:00:00,26/11/2023 00:00:00,P08-2024
P&V,RIVER LEE COUNTRY PARK,SUPPLIES AND SERVICES,EQUIPMENT MAINTENANCE,4112,P124214-SERVICE-Chainsaw Chain,26/11/2023 00:00:00,279304,43,NA0168,NAZEING GARDEN MACHINERY,30/10/2023 00:00:00,26/11/2023 00:00:00,P08-2024
P&V,RIVER LEE COUNTRY PARK,SUPPLIES AND SERVICES,EQUIPMENT MAINTENANCE,4112,P124214-SERVICE-Chainsaw / Pole Saw Parts,26/11/2023 00:00:00,279304,176.48,NA0168,NAZEING GARDEN MACHINERY,30/10/2023 00:00:00,26/11/2023 00:00:00,P08-2024
P&V,ALMOST WILD CAMPSITE,SUPPLIES AND SERVICES,EQUIPMENT MAINTENANCE,4112,P124025-SERVICE-Toilet Pump Out,20/11/2023 00:00:00,279542,250,CO0550,CONVERT WATER LTD,30/10/2023 00:00:00,26/11/2023 00:00:00,P08-2024
,LV LEISURE CENTRE CAMPSITE,SUPPLIES AND SERVICES,EQUIPMENT MAINTENANCE,4112,P123863-SERVICE-signage for shower seat.,11/07/2023 00:00,279235,46,SL0528,SLAM SIGNS LTD,30/10/2023 00:00:00,26/11/2023 00:00:00,P08-2024
,LV LEISURE CENTRE CAMPSITE,SUPPLIES AND SERVICES,EQUIPMENT MAINTENANCE,4112,P123969-SERVICE-Toilet brushes and holders,14/11/2023 00:00:00,279271,28.33,BQ0164,TRADE UK ACCOUNT,30/10/2023 00:00:00,26/11/2023 00:00:00,P08-2024
,LV LEISURE CENTRE CAMPSITE,SUPPLIES AND SERVICES,EQUIPMENT MAINTENANCE,4112,P123846-SERVICE-DUCT CLEAN DRYERS,14/11/2023 00:00:00,279471,200,JL0014,JLA LIMITED,30/10/2023 00:00:00,26/11/2023 00:00:00,P08-2024
,LV LEISURE CENTRE CAMPSITE,SUPPLIES AND SERVICES,EQUIPMENT MAINTENANCE,4112,P123846-SERVICE-DUCT CLEAN DRYERS,14/11/2023 00:00:00,279472,200,JL0014,JLA LIMITED,30/10/2023 00:00:00,26/11/2023 00:00:00,P08-2024
,LV LEISURE CENTRE CAMPSITE,SUPPLIES AND SERVICES,EQUIPMENT MAINTENANCE,4112,P124013-SERVICE-Cabin refresh,20/11/2023 00:00:00,279567,24.58,AM0406,AMAZON PAYMENTS UK LIMITED,30/10/2023 00:00:00,26/11/2023 00:00:00,P08-2024
,LV LEISURE CENTRE CAMPSITE,SUPPLIES AND SERVICES,EQUIPMENT MAINTENANCE,4112,P124013-SERVICE-Cabin refresh,20/11/2023 00:00:00,279568,7.91,AM0406,AMAZON PAYMENTS UK LIMITED,30/10/2023 00:00:00,26/11/2023 00:00:00,P08-2024
,LV LEISURE CENTRE CAMPSITE,SUPPLIES AND SERVICES,EQUIPMENT MAINTENANCE,4112,Edm-single mattresses,20/11/2023 00:00:00,279569,64.92,AM0406,AMAZON PAYMENTS UK LIMITED,30/10/2023 00:00:00,26/11/2023 00:00:00,P08-2024
,LV LEISURE CENTRE CAMPSITE,SUPPLIES AND SERVICES,EQUIPMENT MAINTENANCE,4112,Edm-single mattresses,20/11/2023 00:00:00,279569,-3.9,AM0406,AMAZON PAYMENTS UK LIMITED,30/10/2023 00:00:00,26/11/2023 00:00:00,P08-2024
,LV LEISURE CENTRE CAMPSITE,SUPPLIES AND SERVICES,EQUIPMENT MAINTENANCE,4112,Edm-single mattresses,20/11/2023 00:00:00,279569,-61.02,AM0406,AMAZON PAYMENTS UK LIMITED,30/10/2023 00:00:00,26/11/2023 00:00:00,P08-2024
,LV LEISURE CENTRE CAMPSITE,SUPPLIES AND SERVICES,EQUIPMENT MAINTENANCE,4112,P124013-SERVICE-Cabin refresh,20/11/2023 00:00:00,279569,61.02,AM0406,AMAZON PAYMENTS UK LIMITED,30/10/2023 00:00:00,26/11/2023 00:00:00,P08-2024
,LV LEISURE CENTRE CAMPSITE,SUPPLIES AND SERVICES,EQUIPMENT MAINTENANCE,4112,P124013-SERVICE-Cabin refresh,20/11/2023 00:00:00,279570,8.29,AM0406,AMAZON PAYMENTS UK LIMITED,30/10/2023 00:00:00,26/11/2023 00:00:00,P08-2024
,LV LEISURE CENTRE CAMPSITE,SUPPLIES AND SERVICES,EQUIPMENT MAINTENANCE,4112,P124013-SERVICE-Cabin refresh,20/11/2023 00:00:00,279574,4.96,AM0406,AMAZON PAYMENTS UK LIMITED,30/10/2023 00:00:00,26/11/2023 00:00:00,P08-2024
,LV LEISURE CENTRE CAMPSITE,SUPPLIES AND SERVICES,EQUIPMENT MAINTENANCE,4112,P124013-SERVICE-Cabin refresh,20/11/2023 00:00:00,279605,119.94,AM0406,AMAZON PAYMENTS UK LIMITED,30/10/2023 00:00:00,26/11/2023 00:00:00,P08-2024
,LV LEISURE CENTRE CAMPSITE,SUPPLIES AND SERVICES,EQUIPMENT MAINTENANCE,4112,P124127-SERVICE-Hair dryer repairs,22/11/2023 00:00:00,279834,90,PS0429,PSL AUTOMATION,30/10/2023 00:00:00,26/11/2023 00:00:00,P08-2024
,LV LEISURE CENTRE CAMPSITE,SUPPLIES AND SERVICES,EQUIPMENT MAINTENANCE,4112,P124164-SERVICE-Water flex test,26/11/2023 00:00:00,280026,70,BR0018,BRADSHAW ELECTRICAL LIMITED,30/10/2023 00:00:00,26/11/2023 00:00:00,P08-2024
,LV LEISURE CENTRE CAMPSITE,SUPPLIES AND SERVICES,EQUIPMENT MAINTENANCE,4112,P124220-SERVICE-decorating maintenance supplies,26/11/2023 00:00:00,280043,70.52,BQ0164,TRADE UK ACCOUNT,30/10/2023 00:00:00,26/11/2023 00:00:00,P08-2024
,LV LEISURE CENTRE GOLF COURSE,SUPPLIES AND SERVICES,EQUIPMENT MAINTENANCE,4112,P123740-SERVICE-Tube Assembly,11/07/2023 00:00,279048,313.11,LE0279,REESINK TURFCARE UK LIMITED,30/10/2023 00:00:00,26/11/2023 00:00:00,P08-2024
R&B,INFORMATION TECHNOLOGY,SUPPLIES AND SERVICES,IT CORE SYSTEMS,4113,"P121499-SERVICE-Efin monthly managed fees @ 1,466.82",14/11/2023 00:00:00,279380,1466.82,CE0021,ADVANCED BUSINESS SOLUTIONS,30/10/2023 00:00:00,26/11/2023 00:00:00,P08-2024
R&B,INFORMATION TECHNOLOGY,SUPPLIES AND SERVICES,IT NETWORK & TELECOMS COSTS,4114,P123560-SERVICE-MPLS for all sites October 23 - March 24,11/08/2023 00:00,278294,8757.36,PP0200,PPSNET LIMITED,30/10/2023 00:00:00,26/11/2023 00:00:00,P08-2024
R&B,INFORMATION TECHNOLOGY,SUPPLIES AND SERVICES,IT NETWORK & TELECOMS COSTS,4114,P123560-SERVICE-MPLS for all sites October 23 - March 24,11/08/2023 00:00,279251,8757.36,PP0200,PPSNET LIMITED,30/10/2023 00:00:00,26/11/2023 00:00:00,P08-2024
R&B,INFORMATION TECHNOLOGY,SUPPLIES AND SERVICES,IT NETWORK & TELECOMS COSTS,4114,P121559-SERVICE-Campsites Circuits 1GB for Public WiFi - Apri,11/07/2023 00:00,279252,835,PP0200,PPSNET LIMITED,30/10/2023 00:00:00,26/11/2023 00:00:00,P08-2024
R&B,INFORMATION TECHNOLOGY,SUPPLIES AND SERVICES,IT NETWORK & TELECOMS COSTS,4114,IT- Monthly charge,20/11/2023 00:00:00,279591,38,ZE0007,ZEN INTERNET LTD,30/10/2023 00:00:00,26/11/2023 00:00:00,P08-2024
R&B,INFORMATION TECHNOLOGY,SUPPLIES AND SERVICES,IT NETWORK & TELECOMS COSTS,4114,Monthly Serv Charge,20/11/2023 00:00:00,279592,31.32,ZE0007,ZEN INTERNET LTD,30/10/2023 00:00:00,26/11/2023 00:00:00,P08-2024
R&B,INFORMATION TECHNOLOGY,SUPPLIES AND SERVICES,IT HARDWARE & SOFTWARE COSTS,4116,P122122-SERVICE-Mimecast S1 6 monthly payment includes:,20/11/2023 00:00:00,279593,853,IQ0022,IQUAL,30/10/2023 00:00:00,26/11/2023 00:00:00,P08-2024
R&B,INFORMATION TECHNOLOGY,SUPPLIES AND SERVICES,IT HARDWARE & SOFTWARE COSTS,4116,P123905-SERVICE-Additional Adobe Acrobat Pro Licence,15/11/2023 00:00:00,279602,171.49,ST0687,STONE TECHNOLOGIES LTD T/A STONE GROUP,30/10/2023 00:00:00,26/11/2023 00:00:00,P08-2024
R&B,INFORMATION TECHNOLOGY,SUPPLIES AND SERVICES,IT HARDWARE & SOFTWARE COSTS,4116,P123957-SERVICE-Logitech- Logitech H150 Stereo Headset,20/11/2023 00:00:00,279629,75.92,CC0711,CCS MEDIA LIMITED,30/10/2023 00:00:00,26/11/2023 00:00:00,P08-2024
R&B,INFORMATION TECHNOLOGY,SUPPLIES AND SERVICES,IT MAINTENANCE AGREEMENTS,4119,P121793-SERVICE-Digiticket monthly ticketing service,11/07/2023 00:00,279239,618,DI0304,DIGITAL TICKETING SYSTEMS LTD (DIGITICKETS),30/10/2023 00:00:00,26/11/2023 00:00:00,P08-2024
R&B,INFORMATION TECHNOLOGY,SUPPLIES AND SERVICES,IT MAINTENANCE AGREEMENTS,4119,P123928-SERVICE-Support & Data Oct 23 - Mar24,14/11/2023 00:00:00,279249,171.29,CY0653,CYBERTILL,30/10/2023 00:00:00,26/11/2023 00:00:00,P08-2024
R&B,INFORMATION TECHNOLOGY,SUPPLIES AND SERVICES,IT MAINTENANCE AGREEMENTS,4119,P124020-SERVICE-Gemaparks Gema parks Campsite monthly subs De,14/11/2023 00:00:00,279361,605,NE0218,NETGUIDES LIMITED,30/10/2023 00:00:00,26/11/2023 00:00:00,P08-2024
,LEE VALLEY CAMPSITE,EXPENDITURE FROM RENEWALS FUND,EXPENDITURE FROM RENEWALS FUND,4121,sewardstone/Edm- ford transit,14/11/2023 00:00:00,279606,449,AL0508,ALLEN MOTOR GROUP T/A SMC FORD,30/10/2023 00:00:00,26/11/2023 00:00:00,P08-2024
,LEE VALLEY CAMPSITE,EXPENDITURE FROM RENEWALS FUND,EXPENDITURE FROM RENEWALS FUND,4121,sewardstone/Edm- ford transit,14/11/2023 00:00:00,279606,-5000,AL0508,ALLEN MOTOR GROUP T/A SMC FORD,30/10/2023 00:00:00,26/11/2023 00:00:00,P08-2024
,LEE VALLEY CAMPSITE,EXPENDITURE FROM RENEWALS FUND,EXPENDITURE FROM RENEWALS FUND,4121,sewardstone/Edm- ford transit,14/11/2023 00:00:00,279606,13997,AL0508,ALLEN MOTOR GROUP T/A SMC FORD,30/10/2023 00:00:00,26/11/2023 00:00:00,P08-2024
,LEE VALLEY CAMPSITE,EXPENDITURE FROM RENEWALS FUND,EXPENDITURE FROM RENEWALS FUND,4121,sewardstone/Edm- ford transit,14/11/2023 00:00:00,279606,-9347,AL0508,ALLEN MOTOR GROUP T/A SMC FORD,30/10/2023 00:00:00,26/11/2023 00:00:00,P08-2024
,LEE VALLEY CAMPSITE,EXPENDITURE FROM RENEWALS FUND,EXPENDITURE FROM RENEWALS FUND,4121,P123872-SERVICE-Ford Transit,14/11/2023 00:00:00,279606,9347,AL0508,ALLEN MOTOR GROUP T/A SMC FORD,30/10/2023 00:00:00,26/11/2023 00:00:00,P08-2024
,LEE VALLEY CAMPSITE,EXPENDITURE FROM RENEWALS FUND,EXPENDITURE FROM RENEWALS FUND,4121,sewardstone/Edm- ford transit,14/11/2023 00:00:00,279606,-99,AL0508,ALLEN MOTOR GROUP T/A SMC FORD,30/10/2023 00:00:00,26/11/2023 00:00:00,P08-2024
P&V,MYDDLETON HSE HERITAGE CENTRE,SUPPLIES AND SERVICES,MATERIALS (COUNTERS),4123,P124055-SERVICE-Vc coffee stamp cards,26/11/2023 00:00:00,279884,40.73,SO0582,SOLOPRESS,30/10/2023 00:00:00,26/11/2023 00:00:00,P08-2024
P&V,SOUTH AREA RANGERS,SUPPLIES AND SERVICES,MATERIALS (LOCKS),4124,P123896-SERVICE-2x Squire Locks 50mm,11/07/2023 00:00,278682,21.33,SC0057,SCREWFIX DIRECT LTD,30/10/2023 00:00:00,26/11/2023 00:00:00,P08-2024
P&V,SOUTH AREA RANGERS,SUPPLIES AND SERVICES,MATERIALS (LOCKS),4124,P123896-SERVICE-2x Squire Locks 50mm,11/07/2023 00:00,278877,21.33,SC0057,SCREWFIX DIRECT LTD,30/10/2023 00:00:00,26/11/2023 00:00:00,P08-2024
P&V,SOUTH AREA RANGERS,SUPPLIES AND SERVICES,MATERIALS (LOCKS),4124,P124070-SERVICE-4x Combi Locks 50mm,22/11/2023 00:00:00,279854,85.3,SC0057,SCREWFIX DIRECT LTD,30/10/2023 00:00:00,26/11/2023 00:00:00,P08-2024
,LEE VALLEY CARAVAN PARK,SUPPLIES AND SERVICES,MATERIALS (GROUNDS MAINT),4125,P123855-SERVICE-Red Cord used for Strimming,11/07/2023 00:00,279047,33.32,SC0057,SCREWFIX DIRECT LTD,30/10/2023 00:00:00,26/11/2023 00:00:00,P08-2024
,LEE VALLEY CARAVAN PARK,SUPPLIES AND SERVICES,MATERIALS (GROUNDS MAINT),4125,P123844-SERVICE-2 Ton of 20m Shingle for River Cottage,11/07/2023 00:00,279119,84,LE0012,LEASIDE TIMBER & BUILDERS MERCHANTS LTD,30/10/2023 00:00:00,26/11/2023 00:00:00,P08-2024
,LEE VALLEY CARAVAN PARK,SUPPLIES AND SERVICES,MATERIALS (GROUNDS MAINT),4125,P123385-SERVICE-Tree maintenance,26/11/2023 00:00:00,280008,895,MU0030,P J MUSK TREES,30/10/2023 00:00:00,26/11/2023 00:00:00,P08-2024
,LV LEISURE CENTRE CAMPSITE,SUPPLIES AND SERVICES,MATERIALS (GROUNDS MAINT),4125,P123402-SERVICE-repair palyground fence,11/08/2023 00:00,279270,989,KE0023,KENDALL & SONS LIMITED,30/10/2023 00:00:00,26/11/2023 00:00:00,P08-2024
,LV LEISURE CENTRE GOLF COURSE,SUPPLIES AND SERVICES,MATERIALS (GROUNDS MAINT),4125,P123835-SERVICE-Jack 4500 Ground Master,11/07/2023 00:00,279246,1406.76,LE0279,REESINK TURFCARE UK LIMITED,30/10/2023 00:00:00,26/11/2023 00:00:00,P08-2024
,LV LEISURE CENTRE GOLF COURSE,SUPPLIES AND SERVICES,MATERIALS (GROUNDS MAINT),4125,P123472-SERVICE-Blades & Screws Jacobson,11/07/2023 00:00,279314,29.88,DO0027,ERNEST DOE & SONS LTD,30/10/2023 00:00:00,26/11/2023 00:00:00,P08-2024
,LV LEISURE CENTRE GOLF COURSE,SUPPLIES AND SERVICES,MATERIALS (GROUNDS MAINT),4125,P123741-SERVICE-Repair Kubota,26/11/2023 00:00:00,279829,467.45,CA0698,CAMBRIDGE GOLF COMPANY,30/10/2023 00:00:00,26/11/2023 00:00:00,P08-2024
P&V,MYDDELTON HOUSE GARDENS,SUPPLIES AND SERVICES,MATERIALS (PLANTS & SHRUBS),4126,P124049-SERVICE-fargro gardens order 23,20/11/2023 00:00:00,279534,300.1,FA0149,FARGRO LIMITED,30/10/2023 00:00:00,26/11/2023 00:00:00,P08-2024
P&V,MYDDELTON HOUSE GARDENS,SUPPLIES AND SERVICES,MATERIALS (PLANTS & SHRUBS),4126,P123951-SERVICE-plants/tools nov 23,15/11/2023 00:00:00,279596,87.35,CL0093,CLOCKHOUSE NURSERY,30/10/2023 00:00:00,26/11/2023 00:00:00,P08-2024
P&V,MYDDELTON HOUSE GARDENS,SUPPLIES AND SERVICES,MATERIALS (PLANTS & SHRUBS),4126,P123951-SERVICE-plants/tools nov 23,15/11/2023 00:00:00,279597,294.34,CL0093,CLOCKHOUSE NURSERY,30/10/2023 00:00:00,26/11/2023 00:00:00,P08-2024
,LEE VALLEY MARINA SPRINGFIELD,SUPPLIES AND SERVICES,MATERIALS (TOOLS & PLANT),4127,P123510-SERVICE-Extra parts needed T300E Abutment 15mm travel,11/08/2023 00:00,279114,256.67,LE0059,LEE SANITATION LTD,30/10/2023 00:00:00,26/11/2023 00:00:00,P08-2024
,LEE VALLEY MARINA SPRINGFIELD,SUPPLIES AND SERVICES,MATERIALS (TOOLS & PLANT),4127,P123510-SERVICE-To come to site & fit major service kit,11/08/2023 00:00,279114,556,LE0059,LEE SANITATION LTD,30/10/2023 00:00:00,26/11/2023 00:00:00,P08-2024
,LEE VALLEY MARINA SPRINGFIELD,SUPPLIES AND SERVICES,MATERIALS (TOOLS & PLANT),4127,P123509-SERVICE-Major Service Kit (nitrile),11/07/2023 00:00,279115,927,LE0059,LEE SANITATION LTD,30/10/2023 00:00:00,26/11/2023 00:00:00,P08-2024
,LEE VALLEY MARINA SPRINGFIELD,SUPPLIES AND SERVICES,MATERIALS (TOOLS & PLANT),4127,P123795-SERVICE-Safety Machine Guards,26/11/2023 00:00:00,279506,230,SI0704,SILVAFLAME-CLEERVUE CO LTD,30/10/2023 00:00:00,26/11/2023 00:00:00,P08-2024
,LEE VALLEY MARINA SPRINGFIELD,SUPPLIES AND SERVICES,MATERIALS (TOOLS & PLANT),4127,P123795-SERVICE-2 off F12 Footswitches 33900,26/11/2023 00:00:00,279506,392.7,SI0704,SILVAFLAME-CLEERVUE CO LTD,30/10/2023 00:00:00,26/11/2023 00:00:00,P08-2024
,LEE VALLEY MARINA SPRINGFIELD,SUPPLIES AND SERVICES,MATERIALS (TOOLS & PLANT),4127,P123795-SERVICE-Universal Mill Guard,26/11/2023 00:00:00,279506,292.22,SI0704,SILVAFLAME-CLEERVUE CO LTD,30/10/2023 00:00:00,26/11/2023 00:00:00,P08-2024
,LEE VALLEY MARINA SPRINGFIELD,SUPPLIES AND SERVICES,MATERIALS (TOOLS & PLANT),4127,P123795-SERVICE-Carriage,26/11/2023 00:00:00,279506,45,SI0704,SILVAFLAME-CLEERVUE CO LTD,30/10/2023 00:00:00,26/11/2023 00:00:00,P08-2024
,LEE VALLEY MARINA SPRINGFIELD,SUPPLIES AND SERVICES,MATERIALS (TOOLS & PLANT),4127,P123956-SERVICE-To Supply Items as per quotation 279664,20/11/2023 00:00:00,279585,1785,EL0281,ELTHAM WELDING SUPPLIES LIMITED,30/10/2023 00:00:00,26/11/2023 00:00:00,P08-2024
,STANSTEAD RECHARGEABLE WORKS,SUPPLIES AND SERVICES,MATERIALS (TOOLS & PLANT),4127,P123771-SERVICE-weld on 6 anodes,11/07/2023 00:00,279054,90,EN0309,PRH ENGINEERING LIMITED,30/10/2023 00:00:00,26/11/2023 00:00:00,P08-2024
,STANSTEAD RECHARGEABLE WORKS,SUPPLIES AND SERVICES,MATERIALS (TOOLS & PLANT),4127,P123833-SERVICE-items for the workshop,14/11/2023 00:00:00,279351,65.53,SC0057,SCREWFIX DIRECT LTD,30/10/2023 00:00:00,26/11/2023 00:00:00,P08-2024
,STANSTEAD RECHARGEABLE WORKS,SUPPLIES AND SERVICES,MATERIALS (TOOLS & PLANT),4127,P123938-SERVICE-Extra items,20/11/2023 00:00:00,279579,154.97,SC0057,SCREWFIX DIRECT LTD,30/10/2023 00:00:00,26/11/2023 00:00:00,P08-2024
,STANSTEAD RECHARGEABLE WORKS,SUPPLIES AND SERVICES,MATERIALS (TOOLS & PLANT),4127,P123938-SERVICE-screwfix workshop order Nov,20/11/2023 00:00:00,279579,217.33,SC0057,SCREWFIX DIRECT LTD,30/10/2023 00:00:00,26/11/2023 00:00:00,P08-2024
,STANSTEAD RECHARGEABLE WORKS,SUPPLIES AND SERVICES,MATERIALS (TOOLS & PLANT),4127,P123634-SERVICE-hiab hire 29/9,20/11/2023 00:00:00,279729,650,IN0207,INDEPENDENT CONTRACT LIFTING SERVICES LTD,30/10/2023 00:00:00,26/11/2023 00:00:00,P08-2024
,LEE VALLEY MARINA STANSTEAD,SUPPLIES AND SERVICES,MATERIALS (ENG OTHER),4130,P124063-SERVICE-additional office shelf brackets,26/11/2023 00:00:00,279855,22.5,BQ0164,TRADE UK ACCOUNT,30/10/2023 00:00:00,26/11/2023 00:00:00,P08-2024
,LEE VALLEY MARINA STANSTEAD,SUPPLIES AND SERVICES,MATERIALS (ENG OTHER),4130,P124063-SERVICE-additional office shelf brackets,26/11/2023 00:00:00,280009,-22.5,BQ0164,TRADE UK ACCOUNT,30/10/2023 00:00:00,26/11/2023 00:00:00,P08-2024
,STANSTEAD RECHARGEABLE WORKS,SUPPLIES AND SERVICES,MATERIALS (ENG OTHER),4130,P123139-SERVICE-welding rods (difference),11/07/2023 00:00,279061,34.99,WE0257,PERFECT WELDING LTD,30/10/2023 00:00:00,26/11/2023 00:00:00,P08-2024
,STANSTEAD RECHARGEABLE WORKS,SUPPLIES AND SERVICES,MATERIALS (ENG OTHER),4130,P123107-SERVICE-gas and rods for welding  (JJ),11/07/2023 00:00,279061,133.5,WE0257,PERFECT WELDING LTD,30/10/2023 00:00:00,26/11/2023 00:00:00,P08-2024
,STANSTEAD RECHARGEABLE WORKS,SUPPLIES AND SERVICES,MATERIALS (ENG OTHER),4130,P123139-SERVICE-Extra 3 cartons,11/07/2023 00:00,279061,50.22,WE0257,PERFECT WELDING LTD,30/10/2023 00:00:00,26/11/2023 00:00:00,P08-2024
,STANSTEAD RECHARGEABLE WORKS,SUPPLIES AND SERVICES,MATERIALS (ENG OTHER),4130,P124089-SERVICE-rudder stock & bearing,26/11/2023 00:00:00,279822,90.24,MI0200,MIDLAND CHANDLERS LIMITED,30/10/2023 00:00:00,26/11/2023 00:00:00,P08-2024
,STANSTEAD RECHARGEABLE WORKS,SUPPLIES AND SERVICES,MATERIALS (ENG OTHER),4130,"P124114-SERVICE-screws, torches, etc. workshop items..",26/11/2023 00:00:00,280010,123.9,SC0057,SCREWFIX DIRECT LTD,30/10/2023 00:00:00,26/11/2023 00:00:00,P08-2024
,STANSTEAD RECHARGEABLE WORKS,SUPPLIES AND SERVICES,MATERIALS (ENG OTHER),4130,"P124024-SERVICE-cutting discs, DPC Metal, tips & nozzles",26/11/2023 00:00:00,280040,193.73,WE0257,PERFECT WELDING LTD,30/10/2023 00:00:00,26/11/2023 00:00:00,P08-2024
,STANSTEAD RECHARGEABLE WORKS,SUPPLIES AND SERVICES,MATERIALS (ENG OTHER),4130,P124176-SERVICE-spark plugs (RD),26/11/2023 00:00:00,280066,8.46,AM0406,AMAZON PAYMENTS UK LIMITED,30/10/2023 00:00:00,26/11/2023 00:00:00,P08-2024
,STANSTEAD RECHARGEABLE WORKS,SUPPLIES AND SERVICES,MATERIALS (ENG OTHER),4130,P124171-SERVICE-welding metal & welding helmet for Josh,26/11/2023 00:00:00,280089,422,EN0309,PRH ENGINEERING LIMITED,30/10/2023 00:00:00,26/11/2023 00:00:00,P08-2024
,STANSTEAD RECHARGEABLE WORKS,SUPPLIES AND SERVICES,MATERIALS (ENG OTHER),4130,P124159-SERVICE-general bits- hose/extension reels,26/11/2023 00:00:00,280091,0.02,SC0057,SCREWFIX DIRECT LTD,30/10/2023 00:00:00,26/11/2023 00:00:00,P08-2024
,STANSTEAD RECHARGEABLE WORKS,SUPPLIES AND SERVICES,MATERIALS (ENG OTHER),4130,P124159-SERVICE-screwfix workshop bits for Josh,26/11/2023 00:00:00,280091,73.71,SC0057,SCREWFIX DIRECT LTD,30/10/2023 00:00:00,26/11/2023 00:00:00,P08-2024
,STANSTEAD RECHARGEABLE WORKS,SUPPLIES AND SERVICES,MATERIALS (ENG OTHER),4130,P124159-SERVICE-general bits- hose/extension reels,26/11/2023 00:00:00,280092,194.95,SC0057,SCREWFIX DIRECT LTD,30/10/2023 00:00:00,26/11/2023 00:00:00,P08-2024
,STANSTEAD RECHARGEABLE WORKS,SUPPLIES AND SERVICES,MATERIALS (ENG OTHER),4130,"P124173-SERVICE-Heat Gun, H&S hazard sign & 1st aid wipes",26/11/2023 00:00:00,280093,42.03,SC0057,SCREWFIX DIRECT LTD,30/10/2023 00:00:00,26/11/2023 00:00:00,P08-2024
,STANSTEAD RECHARGEABLE WORKS,SUPPLIES AND SERVICES,MATERIALS (ENG OTHER),4130,P124173-SERVICE-burn gels,26/11/2023 00:00:00,280093,3.31,SC0057,SCREWFIX DIRECT LTD,30/10/2023 00:00:00,26/11/2023 00:00:00,P08-2024
P&V,LEE VALLEY FARM HOLYFIELDHALL,SUPPLIES AND SERVICES,FEED,4133,P123891-SERVICE-Nutrimol,11/07/2023 00:00,279088,2480,BO0246,FOR FARMERS UK LTD,30/10/2023 00:00:00,26/11/2023 00:00:00,P08-2024
P&V,LEE VALLEY FARM HOLYFIELDHALL,SUPPLIES AND SERVICES,FEED,4133,P123890-SERVICE-Prime Rearer,11/07/2023 00:00,279221,2086.38,BO0246,FOR FARMERS UK LTD,30/10/2023 00:00:00,26/11/2023 00:00:00,P08-2024
P&V,LEE VALLEY FARM HOLYFIELDHALL,SUPPLIES AND SERVICES,DAIRY SUNDRIES,4138,P122011-SERVICE-Liquid Nitrogen,14/11/2023 00:00:00,279303,82,GE0005,GENUS BREEDING LTD,30/10/2023 00:00:00,26/11/2023 00:00:00,P08-2024
P&V,LEE VALLEY FARM HOLYFIELDHALL,SUPPLIES AND SERVICES,DAIRY SUNDRIES,4138,P121501-SERVICE-Plumbing Fittings,14/11/2023 00:00:00,279362,92.05,WO0076,E J WOOLLARD LTD,30/10/2023 00:00:00,26/11/2023 00:00:00,P08-2024
P&V,LEE VALLEY FARM HOLYFIELDHALL,SUPPLIES AND SERVICES,DAIRY SUNDRIES,4138,P121501-SERVICE-Plumbing Fittings,14/11/2023 00:00:00,279363,199.55,WO0076,E J WOOLLARD LTD,30/10/2023 00:00:00,26/11/2023 00:00:00,P08-2024
,LV CAMPSITE CARAVAN SALES,SUPPLIES AND SERVICES,CARAVAN PURCHASES,4171,P123837-SERVICE-123 DW Atlas Debonair,11/07/2023 00:00,279091,47283,UK0086,THE UK CARAVAN CENTRE,30/10/2023 00:00:00,26/11/2023 00:00:00,P08-2024
,LV CAMPSITE CARAVAN SALES,SUPPLIES AND SERVICES,CARAVAN PURCHASES,4171,372- DW Atlas Debonair,11/07/2023 00:00,279091,-47283,UK0086,THE UK CARAVAN CENTRE,30/10/2023 00:00:00,26/11/2023 00:00:00,P08-2024
,LV CAMPSITE CARAVAN SALES,SUPPLIES AND SERVICES,CARAVAN PURCHASES,4171,372- DW Atlas Debonair,11/07/2023 00:00,279091,36486.3,UK0086,THE UK CARAVAN CENTRE,30/10/2023 00:00:00,26/11/2023 00:00:00,P08-2024
,LV CAMPSITE CARAVAN SALES,SUPPLIES AND SERVICES,CARAVAN PURCHASES,4171,372- DW Atlas Debonair,11/07/2023 00:00,279091,10796.7,UK0086,THE UK CARAVAN CENTRE,30/10/2023 00:00:00,26/11/2023 00:00:00,P08-2024
,LV CAMPSITE CARAVAN SALES,SUPPLIES AND SERVICES,CARAVAN PURCHASES,4171,P124029-SERVICE-Deposit 50% Valley Lodge 40x13,20/11/2023 00:00:00,279305,29447.5,SH0694,SH LEISURE SERVICES LTD,30/10/2023 00:00:00,26/11/2023 00:00:00,P08-2024
,LV CAMPSITE CARAVAN SALES,SUPPLIES AND SERVICES,CARAVAN PURCHASES,4171,P124030-SERVICE-Deposit 50% Valley Lodge 43x14,20/11/2023 00:00:00,279306,32880,SH0694,SH LEISURE SERVICES LTD,30/10/2023 00:00:00,26/11/2023 00:00:00,P08-2024
,LV CAMPSITE CARAVAN SALES,SUPPLIES AND SERVICES,MISCELLANEOUS CARAVAN COSTS,4174,P123739-SERVICE-DW HH126 & 127 Cleaning,11/07/2023 00:00,278689,150,LI0305,LIMPIAR CLEANING,30/10/2023 00:00:00,26/11/2023 00:00:00,P08-2024
,LV CAMPSITE CARAVAN SALES,SUPPLIES AND SERVICES,MISCELLANEOUS CARAVAN COSTS,4174,P123791-SERVICE-123 DW Supply & Fit Air Con,20/11/2023 00:00:00,279631,1600,CI0770,CITIPOST POWER,30/10/2023 00:00:00,26/11/2023 00:00:00,P08-2024
,LEE VALLEY CARAVAN PARK,SUPPLIES AND SERVICES,MISCELLANEOUS CARAVAN COSTS,4174,P123998-SERVICE-extend supply cable for hot tub,14/11/2023 00:00:00,279503,85,BR0018,BRADSHAW ELECTRICAL LIMITED,30/10/2023 00:00:00,26/11/2023 00:00:00,P08-2024
R&B,INFORMATION TECHNOLOGY,SUPPLIES AND SERVICES,CLOTHING & UNIFORMS,4225,P123834-SERVICE-Embroidery Right Chest LV Logo,26/11/2023 00:00:00,280049,59.67,DI0017,DIRECT BOOT & SHOE SUPPLIES,30/10/2023 00:00:00,26/11/2023 00:00:00,P08-2024
,LEE VALLEY MARINA STANSTEAD,SUPPLIES AND SERVICES,CLOTHING & UNIFORMS,4225,"P123719-SERVICE-uniform, josh, sally, terry",11/07/2023 00:00,278855,212.25,DI0017,DIRECT BOOT & SHOE SUPPLIES,30/10/2023 00:00:00,26/11/2023 00:00:00,P08-2024
,LEE VALLEY MARINA STANSTEAD,SUPPLIES AND SERVICES,CLOTHING & UNIFORMS,4225,P123838-SERVICE-uniform  RD,11/07/2023 00:00,279096,174,DI0017,DIRECT BOOT & SHOE SUPPLIES,30/10/2023 00:00:00,26/11/2023 00:00:00,P08-2024
P&V,MYDDELTON HOUSE GARDENS,SUPPLIES AND SERVICES,CLOTHING & UNIFORMS,4225,P123631-SERVICE-gardens uniform order oct 23,11/07/2023 00:00,279071,163,DI0017,DIRECT BOOT & SHOE SUPPLIES,30/10/2023 00:00:00,26/11/2023 00:00:00,P08-2024
P&V,MYDDELTON HOUSE GARDENS,SUPPLIES AND SERVICES,CLOTHING & UNIFORMS,4225,P123959-SERVICE-uniform,20/11/2023 00:00:00,279469,81.45,DI0017,DIRECT BOOT & SHOE SUPPLIES,30/10/2023 00:00:00,26/11/2023 00:00:00,P08-2024
P&V,NORTH AREA RANGERS,SUPPLIES AND SERVICES,CLOTHING & UNIFORMS,4225,P123950-SERVICE-2x Peru Trousers Black Reg W38,20/11/2023 00:00:00,279581,53.04,IL0177,KEELA INTERNATION LTD,30/10/2023 00:00:00,26/11/2023 00:00:00,P08-2024
P&V,NORTH AREA RANGERS,SUPPLIES AND SERVICES,CLOTHING & UNIFORMS,4225,P123950-SERVICE-Delivery to address below,20/11/2023 00:00:00,279581,8,IL0177,KEELA INTERNATION LTD,30/10/2023 00:00:00,26/11/2023 00:00:00,P08-2024
P&V,NORTH AREA RANGERS,SUPPLIES AND SERVICES,CLOTHING & UNIFORMS,4225,P123950-SERVICE-2x Peru Trousers Black Reg W32,20/11/2023 00:00:00,279581,53.04,IL0177,KEELA INTERNATION LTD,30/10/2023 00:00:00,26/11/2023 00:00:00,P08-2024
P&V,SOUTH AREA RANGERS,SUPPLIES AND SERVICES,CLOTHING & UNIFORMS,4225,P123774-SERVICE-Stihl Dynamic Thermovent Gloves - 886110510,22/11/2023 00:00:00,279857,21.85,AP0245,APS LIMITED,30/10/2023 00:00:00,26/11/2023 00:00:00,P08-2024
P&V,RIVER LEE COUNTRY PARK,SUPPLIES AND SERVICES,CLOTHING & UNIFORMS,4225,P123684-SERVICE-Hi-Tec Men's Eurotrek Boots,14/11/2023 00:00:00,279004,45.12,AM0406,AMAZON PAYMENTS UK LIMITED,30/10/2023 00:00:00,26/11/2023 00:00:00,P08-2024
CEO,CHIEF EXECUTIVE,SUPPLIES AND SERVICES,OFFICE EXPENSES,4311,P123865-SERVICE-Stapler RX04782,11/07/2023 00:00,279247,7.28,TH0008,JKL SOLUTIONS LTD,30/10/2023 00:00:00,26/11/2023 00:00:00,P08-2024
R&B,DEMOCRATIC REPRESENTATION & MA,SUPPLIES AND SERVICES,OFFICE EXPENSES,4311,P123618-SERVICE-C4 Envelopes (J26339),14/11/2023 00:00:00,279236,53.9,TH0008,JKL SOLUTIONS LTD,30/10/2023 00:00:00,26/11/2023 00:00:00,P08-2024
R&B,FINANCE,SUPPLIES AND SERVICES,OFFICE EXPENSES,4311,P123759-SERVICE-A4 KF01515-12-Part Subject Divider Multi-punc,11/07/2023 00:00,279248,1.96,TH0008,JKL SOLUTIONS LTD,30/10/2023 00:00:00,26/11/2023 00:00:00,P08-2024
R&B,FINANCE,SUPPLIES AND SERVICES,OFFICE EXPENSES,4311,P123759-SERVICE-DL Window Envelope 90gsm Self Seal WHITE,11/07/2023 00:00,279248,23.14,TH0008,JKL SOLUTIONS LTD,30/10/2023 00:00:00,26/11/2023 00:00:00,P08-2024
R&B,FINANCE,SUPPLIES AND SERVICES,OFFICE EXPENSES,4311,P123759-SERVICE-Q-connect multipurpose labels Kf26051 65X38mm,11/07/2023 00:00,279248,13.36,TH0008,JKL SOLUTIONS LTD,30/10/2023 00:00:00,26/11/2023 00:00:00,P08-2024
,LEE VALLEY MARINA STANSTEAD,SUPPLIES AND SERVICES,OFFICE EXPENSES,4311,P123849-SERVICE-8 reception chairs,14/11/2023 00:00:00,279364,303.92,TH0008,JKL SOLUTIONS LTD,30/10/2023 00:00:00,26/11/2023 00:00:00,P08-2024
,LEE VALLEY MARINA STANSTEAD,SUPPLIES AND SERVICES,OFFICE EXPENSES,4311,P123900-SERVICE-200 x 1 meter elec cards,14/11/2023 00:00:00,279508,46.95,PA0355,PASS (PORTABLE APPLIANCE SAFETY SERVICES) LTD,30/10/2023 00:00:00,26/11/2023 00:00:00,P08-2024
,LEE VALLEY MARINA STANSTEAD,SUPPLIES AND SERVICES,OFFICE EXPENSES,4311,"P124004-SERVICE-Amazon: bin liners, swarfega, soap disp.",20/11/2023 00:00:00,279564,14.48,AM0406,AMAZON PAYMENTS UK LIMITED,30/10/2023 00:00:00,26/11/2023 00:00:00,P08-2024
,LEE VALLEY MARINA STANSTEAD,SUPPLIES AND SERVICES,OFFICE EXPENSES,4311,"P124004-SERVICE-Amazon: bin liners, swarfega, soap disp.",20/11/2023 00:00:00,279565,29.98,AM0406,AMAZON PAYMENTS UK LIMITED,30/10/2023 00:00:00,26/11/2023 00:00:00,P08-2024
,LEE VALLEY MARINA STANSTEAD,SUPPLIES AND SERVICES,OFFICE EXPENSES,4311,"P124004-SERVICE-Amazon: bin liners, swarfega, soap disp.",20/11/2023 00:00:00,279566,23.68,AM0406,AMAZON PAYMENTS UK LIMITED,30/10/2023 00:00:00,26/11/2023 00:00:00,P08-2024
,LEE VALLEY MARINA STANSTEAD,SUPPLIES AND SERVICES,OFFICE EXPENSES,4311,P124005-SERVICE-stationery,20/11/2023 00:00:00,279630,136.41,TH0008,JKL SOLUTIONS LTD,30/10/2023 00:00:00,26/11/2023 00:00:00,P08-2024
,LEE VALLEY MARINA STANSTEAD,SUPPLIES AND SERVICES,OFFICE EXPENSES,4311,"P124093-SERVICE-2 bins+liners, key cab, pressure tester,",22/11/2023 00:00:00,279810,4.65,AM0406,AMAZON PAYMENTS UK LIMITED,30/10/2023 00:00:00,26/11/2023 00:00:00,P08-2024
,LEE VALLEY MARINA STANSTEAD,SUPPLIES AND SERVICES,OFFICE EXPENSES,4311,"P124093-SERVICE-2 bins+liners, key cab, pressure tester,",22/11/2023 00:00:00,279811,4.99,AM0406,AMAZON PAYMENTS UK LIMITED,30/10/2023 00:00:00,26/11/2023 00:00:00,P08-2024
,LEE VALLEY MARINA STANSTEAD,SUPPLIES AND SERVICES,OFFICE EXPENSES,4311,"P124093-SERVICE-2 bins+liners, key cab, pressure tester,",22/11/2023 00:00:00,279812,16.65,AM0406,AMAZON PAYMENTS UK LIMITED,30/10/2023 00:00:00,26/11/2023 00:00:00,P08-2024
,LEE VALLEY MARINA STANSTEAD,SUPPLIES AND SERVICES,OFFICE EXPENSES,4311,"P124093-SERVICE-2 bins+liners, key cab, pressure tester,",22/11/2023 00:00:00,279813,10.82,AM0406,AMAZON PAYMENTS UK LIMITED,30/10/2023 00:00:00,26/11/2023 00:00:00,P08-2024
,LEE VALLEY MARINA STANSTEAD,SUPPLIES AND SERVICES,OFFICE EXPENSES,4311,"P124093-SERVICE-2 bins+liners, key cab, pressure tester,",22/11/2023 00:00:00,279814,6.57,AM0406,AMAZON PAYMENTS UK LIMITED,30/10/2023 00:00:00,26/11/2023 00:00:00,P08-2024
,LEE VALLEY MARINA STANSTEAD,SUPPLIES AND SERVICES,OFFICE EXPENSES,4311,"P124093-SERVICE-2 bins+liners, key cab, pressure tester,",22/11/2023 00:00:00,279815,27.97,AM0406,AMAZON PAYMENTS UK LIMITED,30/10/2023 00:00:00,26/11/2023 00:00:00,P08-2024
,LEE VALLEY MARINA STANSTEAD,SUPPLIES AND SERVICES,OFFICE EXPENSES,4311,"P124093-SERVICE-2 bins+liners, key cab, pressure tester,",22/11/2023 00:00:00,279859,105.02,AM0406,AMAZON PAYMENTS UK LIMITED,30/10/2023 00:00:00,26/11/2023 00:00:00,P08-2024
,LEE VALLEY MARINA STANSTEAD,SUPPLIES AND SERVICES,OFFICE EXPENSES,4311,P124146-SERVICE-additional shelves + 2 brooms,26/11/2023 00:00:00,280044,47.5,BQ0164,TRADE UK ACCOUNT,30/10/2023 00:00:00,26/11/2023 00:00:00,P08-2024
,LEE VALLEY CARAVAN PARK,SUPPLIES AND SERVICES,OFFICE EXPENSES,4311,P124088-SERVICE-Stock take,20/11/2023 00:00:00,279723,165,VE0038,VENNERS LTD,30/10/2023 00:00:00,26/11/2023 00:00:00,P08-2024
P&V,MYDDLETON HSE HERITAGE CENTRE,SUPPLIES AND SERVICES,OFFICE EXPENSES,4311,P123935-SERVICE-TILL ROLL,14/11/2023 00:00:00,279368,38.32,AM0406,AMAZON PAYMENTS UK LIMITED,30/10/2023 00:00:00,26/11/2023 00:00:00,P08-2024
P&V,RIVER LEE COUNTRY PARK,SUPPLIES AND SERVICES,OFFICE EXPENSES,4311,P123749-SERVICE-1x Medium Black Ballpoint Pen 20 Pk - KF34042,11/07/2023 00:00,279035,2.06,TH0008,JKL SOLUTIONS LTD,30/10/2023 00:00:00,26/11/2023 00:00:00,P08-2024
P&V,RIVER LEE COUNTRY PARK,SUPPLIES AND SERVICES,OFFICE EXPENSES,4311,P123749-SERVICE-2x Durable Desk Mat Black - DB73101,11/07/2023 00:00,279035,11.92,TH0008,JKL SOLUTIONS LTD,30/10/2023 00:00:00,26/11/2023 00:00:00,P08-2024
P&V,RIVER LEE COUNTRY PARK,SUPPLIES AND SERVICES,OFFICE EXPENSES,4311,P123749-SERVICE-1x White A4 Copier Paper Pk of 2500 - WX01087,11/07/2023 00:00,279035,19.5,TH0008,JKL SOLUTIONS LTD,30/10/2023 00:00:00,26/11/2023 00:00:00,P08-2024
P&V,RIVER LEE COUNTRY PARK,SUPPLIES AND SERVICES,OFFICE EXPENSES,4311,P123749-SERVICE-1x Highlighters Assorted Pk6 - 500925,11/07/2023 00:00,279035,1.88,TH0008,JKL SOLUTIONS LTD,30/10/2023 00:00:00,26/11/2023 00:00:00,P08-2024
P&V,RIVER LEE COUNTRY PARK,SUPPLIES AND SERVICES,OFFICE EXPENSES,4311,P123749-SERVICE-4x Scissors Black Stainless Steel - KF01228,11/07/2023 00:00,279035,4,TH0008,JKL SOLUTIONS LTD,30/10/2023 00:00:00,26/11/2023 00:00:00,P08-2024
P&V,RIVER LEE COUNTRY PARK,SUPPLIES AND SERVICES,OFFICE EXPENSES,4311,P123749-SERVICE-1x Permanent Marker Fine 10Pk - KF02300,11/07/2023 00:00,279035,5.74,TH0008,JKL SOLUTIONS LTD,30/10/2023 00:00:00,26/11/2023 00:00:00,P08-2024
P&V,RIVER LEE COUNTRY PARK,SUPPLIES AND SERVICES,OFFICE EXPENSES,4311,P123749-SERVICE-2x Heavy Duty Staple Gun/Brad Nailer- SB50078,11/07/2023 00:00,279035,55.2,TH0008,JKL SOLUTIONS LTD,30/10/2023 00:00:00,26/11/2023 00:00:00,P08-2024
P&V,RIVER LEE COUNTRY PARK,SUPPLIES AND SERVICES,OFFICE EXPENSES,4311,P123749-SERVICE-3x A4 Laminating Pounches - 36019FE,11/07/2023 00:00,279035,47.73,TH0008,JKL SOLUTIONS LTD,30/10/2023 00:00:00,26/11/2023 00:00:00,P08-2024
P&V,RIVER LEE COUNTRY PARK,SUPPLIES AND SERVICES,OFFICE EXPENSES,4311,P123749-SERVICE-1x Graffico A4 Notebook Ruled - EN08043,11/07/2023 00:00,279035,12.7,TH0008,JKL SOLUTIONS LTD,30/10/2023 00:00:00,26/11/2023 00:00:00,P08-2024
P&V,RIVER LEE COUNTRY PARK,SUPPLIES AND SERVICES,OFFICE EXPENSES,4311,P123749-SERVICE-10x Presentation 4D-Ring Binder - KF01332,11/07/2023 00:00,279035,38.1,TH0008,JKL SOLUTIONS LTD,30/10/2023 00:00:00,26/11/2023 00:00:00,P08-2024
P&V,RIVER LEE COUNTRY PARK,SUPPLIES AND SERVICES,OFFICE EXPENSES,4311,P123749-SERVICE-1x Easy Tear Polypropylene Tape Pk8 - KF27013,11/07/2023 00:00,279035,2.87,TH0008,JKL SOLUTIONS LTD,30/10/2023 00:00:00,26/11/2023 00:00:00,P08-2024
P&V,RIVER LEE COUNTRY PARK,SUPPLIES AND SERVICES,OFFICE EXPENSES,4311,P123749-SERVICE-1x Brass Drawing Pins 9.5mm Pk1000 - WS34231,11/07/2023 00:00,279035,5.19,TH0008,JKL SOLUTIONS LTD,30/10/2023 00:00:00,26/11/2023 00:00:00,P08-2024
P&V,RIVER LEE COUNTRY PARK,SUPPLIES AND SERVICES,OFFICE EXPENSES,4311,P123271-SERVICE-Delivery,20/11/2023 00:00:00,279762,6.95,SE0018,BRADY CORPORATION LIMITED/SETON,30/10/2023 00:00:00,26/11/2023 00:00:00,P08-2024
P&V,RIVER LEE COUNTRY PARK,SUPPLIES AND SERVICES,OFFICE EXPENSES,4311,P123271-SERVICE-4x Clean & Dirty Lockers - LL14B,20/11/2023 00:00:00,279762,785.36,SE0018,BRADY CORPORATION LIMITED/SETON,30/10/2023 00:00:00,26/11/2023 00:00:00,P08-2024
P&V,SPORT AND LEISURE,SUPPLIES AND SERVICES,OFFICE EXPENSES,4311,P124131-SERVICE-Stationary,26/11/2023 00:00:00,279879,4.96,AM0406,AMAZON PAYMENTS UK LIMITED,30/10/2023 00:00:00,26/11/2023 00:00:00,P08-2024
P&V,SPORT AND LEISURE,SUPPLIES AND SERVICES,OFFICE EXPENSES,4311,P124131-SERVICE-Stationary,26/11/2023 00:00:00,279880,18.41,AM0406,AMAZON PAYMENTS UK LIMITED,30/10/2023 00:00:00,26/11/2023 00:00:00,P08-2024
P&V,SPORT AND LEISURE,SUPPLIES AND SERVICES,OFFICE EXPENSES,4311,P124131-SERVICE-Stationary,26/11/2023 00:00:00,279881,8.32,AM0406,AMAZON PAYMENTS UK LIMITED,30/10/2023 00:00:00,26/11/2023 00:00:00,P08-2024
CEO,LEGAL SERVICES,SUPPLIES AND SERVICES,SUBSCRIPTIONS,4334,P123984-SERVICE-Conveyancing Searches,26/11/2023 00:00:00,279895,8.24,SE0705,SEARCHFLOW LIMITED,30/10/2023 00:00:00,26/11/2023 00:00:00,P08-2024
CEO,LEGAL SERVICES,SUPPLIES AND SERVICES,SUBSCRIPTIONS,4334,LR form OCi official copy,26/11/2023 00:00:00,279895,-8.24,SE0705,SEARCHFLOW LIMITED,30/10/2023 00:00:00,26/11/2023 00:00:00,P08-2024
CEO,LEGAL SERVICES,SUPPLIES AND SERVICES,SUBSCRIPTIONS,4334,LR form OCi official copy,26/11/2023 00:00:00,279895,6,SE0705,SEARCHFLOW LIMITED,30/10/2023 00:00:00,26/11/2023 00:00:00,P08-2024
CEO,LEGAL SERVICES,SUPPLIES AND SERVICES,SUBSCRIPTIONS,4334,LR form OCi official copy,26/11/2023 00:00:00,279895,2.24,SE0705,SEARCHFLOW LIMITED,30/10/2023 00:00:00,26/11/2023 00:00:00,P08-2024
P&V,MYDDELTON HOUSE GARDENS,SUPPLIES AND SERVICES,SUBSCRIPTIONS,4334,P124142-SERVICE-PLANT HERITAGE MEMBERSHIP 23,26/11/2023 00:00:00,279896,100,NA0067,PLANT HERITAGE,30/10/2023 00:00:00,26/11/2023 00:00:00,P08-2024
P&V,MYDDELTON HOUSE,SUPPLIES AND SERVICES,POSTAGE & MAILING,4445,Md Hse - meter re-set,15/11/2023 00:00:00,279576,13,PI0021,PITNEY BOWES PURCHASE POWER,30/10/2023 00:00:00,26/11/2023 00:00:00,P08-2024
P&V,MYDDELTON HOUSE,SUPPLIES AND SERVICES,POSTAGE & MAILING,4445,Md Hse - meter re-set,15/11/2023 00:00:00,279576,1000,PI0021,PITNEY BOWES PURCHASE POWER,30/10/2023 00:00:00,26/11/2023 00:00:00,P08-2024
R&B,INFORMATION TECHNOLOGY,SUPPLIES AND SERVICES,TELEPHONES (OFFICE),4481,P123882-SERVICE-Monthly SIP - Oct 23 - Mar 24,11/07/2023 00:00,279213,159.2,FR0131,VOICEFLEX LTD,30/10/2023 00:00:00,26/11/2023 00:00:00,P08-2024
R&B,INFORMATION TECHNOLOGY,SUPPLIES AND SERVICES,TELEPHONES (OFFICE),4481,IT-TELEPHONE CHG--Oct 23,14/11/2023 00:00:00,279341,1258.41,ID0002,DAISY COMMUNICATIONS LTD,30/10/2023 00:00:00,26/11/2023 00:00:00,P08-2024
R&B,INFORMATION TECHNOLOGY,SUPPLIES AND SERVICES,TELEPHONES (OFFICE),4481,P124002-SERVICE-CallSwitch Licence & Calls Sept 2023,20/11/2023 00:00:00,279594,865.07,IQ0022,IQUAL,30/10/2023 00:00:00,26/11/2023 00:00:00,P08-2024
R&B,INFORMATION TECHNOLOGY,SUPPLIES AND SERVICES,TELEPHONES (MOBILE),4484,IT-MONTHLY MOBILE CHARGES,26/11/2023 00:00:00,280021,966.32,VO0010,VODAFONE  LIMITED (CORPORATE),30/10/2023 00:00:00,26/11/2023 00:00:00,P08-2024
R&B,DEMOCRATIC REPRESENTATION & MA,SUPPLIES AND SERVICES,MEMBERS EXPENSES,4502,P123854-SERVICE-Catering 19/10/23,11/07/2023 00:00,279107,557.1,GR0097,GREENWICH LEISURE LTD,30/10/2023 00:00:00,26/11/2023 00:00:00,P08-2024
R&B,DEMOCRATIC REPRESENTATION & MA,SUPPLIES AND SERVICES,MEMBERS EXPENSES,4502,"P124071-SERVICE-Catering on 23/11/23 for 15 People, Delivery",26/11/2023 00:00:00,280090,111.75,SH0256,SHARRONS EVENT CATERING COMPANY LTD,30/10/2023 00:00:00,26/11/2023 00:00:00,P08-2024
P&V,VOLUNTEERS (L&E),SUPPLIES AND SERVICES,HOSPITALITY,4505,P123850-SERVICE-Catering for Volunteers Party for 100 people,11/07/2023 00:00,279108,1500,GR0097,GREENWICH LEISURE LTD,30/10/2023 00:00:00,26/11/2023 00:00:00,P08-2024
,LEE VALLEY MARINA STANSTEAD,INTERNAL HOSPITALITY,INTERNAL HOSPITALITY,4507,P124138-SERVICE-cam lks 30mm and T Bags,26/11/2023 00:00:00,280007,8.32,AM0406,AMAZON PAYMENTS UK LIMITED,30/10/2023 00:00:00,26/11/2023 00:00:00,P08-2024
,LEE VALLEY MARINA STANSTEAD,INTERNAL HOSPITALITY,INTERNAL HOSPITALITY,4507,P124138-SERVICE-cam lks 30mm and T Bags,26/11/2023 00:00:00,280036,21.67,AM0406,AMAZON PAYMENTS UK LIMITED,30/10/2023 00:00:00,26/11/2023 00:00:00,P08-2024
,LEE VALLEY CAMPSITE,SUPPLIES AND SERVICES,MARKETING,4603,P123873-SERVICE-SC Renewal Advert Camping,11/07/2023 00:00,279051,82.5,GA0131,GATENBY SERVICES LTD,30/10/2023 00:00:00,26/11/2023 00:00:00,P08-2024
,LEE VALLEY CAMPSITE,SUPPLIES AND SERVICES,MARKETING,4603,P123796-SERVICE-Clean Accomodation stickers x 1000,11/07/2023 00:00,279112,320,SL0528,SLAM SIGNS LTD,30/10/2023 00:00:00,26/11/2023 00:00:00,P08-2024
,LEE VALLEY CAMPSITE,SUPPLIES AND SERVICES,MARKETING,4603,P123796-SERVICE-deliverey,11/07/2023 00:00,279112,10,SL0528,SLAM SIGNS LTD,30/10/2023 00:00:00,26/11/2023 00:00:00,P08-2024
,LEE VALLEY CARAVAN PARK,SUPPLIES AND SERVICES,MARKETING,4603,P123873-SERVICE-DW Renewal Advert Camping,11/07/2023 00:00,279051,82.5,GA0131,GATENBY SERVICES LTD,30/10/2023 00:00:00,26/11/2023 00:00:00,P08-2024
,LEE VALLEY CARAVAN PARK,SUPPLIES AND SERVICES,MARKETING,4603,P123859-SERVICE-Renewal of Yearly Memebership,11/07/2023 00:00,279070,490.93,VI0109,VISIT ENGLAND ASSESSMENT SERVICES,30/10/2023 00:00:00,26/11/2023 00:00:00,P08-2024
P&V,ALMOST WILD CAMPSITE,SUPPLIES AND SERVICES,MARKETING,4603,P123873-SERVICE-AWC Renewal Advert Camping,11/07/2023 00:00,279051,82.5,GA0131,GATENBY SERVICES LTD,30/10/2023 00:00:00,26/11/2023 00:00:00,P08-2024
,LV LEISURE CENTRE CAMPSITE,SUPPLIES AND SERVICES,MARKETING,4603,P123873-SERVICE-EC Renewal Advert Camping,11/07/2023 00:00,279051,82.5,GA0131,GATENBY SERVICES LTD,30/10/2023 00:00:00,26/11/2023 00:00:00,P08-2024
P&V,LEE VALLEY FARM HOLYFIELDHALL,SUPPLIES AND SERVICES,PEST CONTROL,4625,P123697-SERVICE-Rats & Mice Control,20/11/2023 00:00:00,279489,125,VE0006,VERMINATE CITY & RURAL PEST CONTROL LTD,30/10/2023 00:00:00,26/11/2023 00:00:00,P08-2024
P&V,NORTH AREA RANGERS,SUPPLIES AND SERVICES,PEST CONTROL,4625,P122060-SERVICE-Pest Control - Ware Town Centre - Oct,11/07/2023 00:00,278436,70,VE0006,VERMINATE CITY & RURAL PEST CONTROL LTD,30/10/2023 00:00:00,26/11/2023 00:00:00,P08-2024
P&V,SOUTH AREA RANGERS,SUPPLIES AND SERVICES,PEST CONTROL,4625,P122058-SERVICE-Pest Control - Tottenham Marshes - Oct,11/07/2023 00:00,278441,70,VE0006,VERMINATE CITY & RURAL PEST CONTROL LTD,30/10/2023 00:00:00,26/11/2023 00:00:00,P08-2024
P&V,SOUTH AREA RANGERS,SUPPLIES AND SERVICES,PEST CONTROL,4625,P122058-SERVICE-Pest Control - Tottenham Marshes - Nov,14/11/2023 00:00:00,279488,70,VE0006,VERMINATE CITY & RURAL PEST CONTROL LTD,30/10/2023 00:00:00,26/11/2023 00:00:00,P08-2024
P&V,MYDDELTON HOUSE,SUPPLIES AND SERVICES,CASH COLLECTIONS,4642,CASH COLLECTION-Oct 23,22/11/2023 00:00:00,279507,-49.72,SE0692,SECURITY PLUS LTD,30/10/2023 00:00:00,26/11/2023 00:00:00,P08-2024
P&V,MYDDELTON HOUSE,SUPPLIES AND SERVICES,CASH COLLECTIONS,4642,P124126-SERVICE-Edmonton Campsite,22/11/2023 00:00:00,279507,49.72,SE0692,SECURITY PLUS LTD,30/10/2023 00:00:00,26/11/2023 00:00:00,P08-2024
P&V,MYDDELTON HOUSE,SUPPLIES AND SERVICES,CASH COLLECTIONS,4642,P124126-SERVICE-Myddelton House,22/11/2023 00:00:00,279507,24.86,SE0692,SECURITY PLUS LTD,30/10/2023 00:00:00,26/11/2023 00:00:00,P08-2024
,LEE VALLEY MARINA SPRINGFIELD,SUPPLIES AND SERVICES,CASH COLLECTIONS,4642,P124126-SERVICE-Stanstead marina,22/11/2023 00:00:00,279507,24.86,SE0692,SECURITY PLUS LTD,30/10/2023 00:00:00,26/11/2023 00:00:00,P08-2024
,LEE VALLEY MARINA STANSTEAD,SUPPLIES AND SERVICES,CASH COLLECTIONS,4642,P124126-SERVICE-Springfield marina,22/11/2023 00:00:00,279507,24.86,SE0692,SECURITY PLUS LTD,30/10/2023 00:00:00,26/11/2023 00:00:00,P08-2024
,LEE VALLEY CAMPSITE,SUPPLIES AND SERVICES,CASH COLLECTIONS,4642,P124126-SERVICE-Sewardstone campsite,22/11/2023 00:00:00,279507,49.72,SE0692,SECURITY PLUS LTD,30/10/2023 00:00:00,26/11/2023 00:00:00,P08-2024
,LEE VALLEY CARAVAN PARK,SUPPLIES AND SERVICES,CASH COLLECTIONS,4642,P124126-SERVICE-Dobbs Weir,22/11/2023 00:00:00,279507,49.72,SE0692,SECURITY PLUS LTD,30/10/2023 00:00:00,26/11/2023 00:00:00,P08-2024
,LV LEISURE CENTRE CAMPSITE,SUPPLIES AND SERVICES,CASH COLLECTIONS,4642,CASH COLLECTION-Oct 23,22/11/2023 00:00:00,279507,49.72,SE0692,SECURITY PLUS LTD,30/10/2023 00:00:00,26/11/2023 00:00:00,P08-2024
R&B,FINANCE & RESOURCES MANAGEMENT,SUPPLIES AND SERVICES,DEBT RECOVERY FEES,4646,P121343-SERVICE-DEBT RECOVERY FEES 2023/2024,20/11/2023 00:00:00,279562,589.89,LE0069,LEGAL RECOVERIES AND COLLECTIONS LIMITED,30/10/2023 00:00:00,26/11/2023 00:00:00,P08-2024
R&B,FINANCE & RESOURCES MANAGEMENT,SUPPLIES AND SERVICES,DEBT RECOVERY FEES,4646,Debt Recovery fee,22/11/2023 00:00:00,279778,35,LE0069,LEGAL RECOVERIES AND COLLECTIONS LIMITED,30/10/2023 00:00:00,26/11/2023 00:00:00,P08-2024
R&B,FINANCE & RESOURCES MANAGEMENT,SUPPLIES AND SERVICES,DEBT RECOVERY FEES,4646,Debt Recovery fee,22/11/2023 00:00:00,279778,619.18,LE0069,LEGAL RECOVERIES AND COLLECTIONS LIMITED,30/10/2023 00:00:00,26/11/2023 00:00:00,P08-2024
R&B,FINANCE & RESOURCES MANAGEMENT,SUPPLIES AND SERVICES,DEBT RECOVERY FEES,4646,Debt Recovery fee,22/11/2023 00:00:00,279778,-654.18,LE0069,LEGAL RECOVERIES AND COLLECTIONS LIMITED,30/10/2023 00:00:00,26/11/2023 00:00:00,P08-2024
R&B,FINANCE & RESOURCES MANAGEMENT,SUPPLIES AND SERVICES,DEBT RECOVERY FEES,4646,P121343-SERVICE-DEBT RECOVERY FEES 2023/2024,22/11/2023 00:00:00,279778,654.18,LE0069,LEGAL RECOVERIES AND COLLECTIONS LIMITED,30/10/2023 00:00:00,26/11/2023 00:00:00,P08-2024
,LEE VALLEY MARINA STANSTEAD,SUPPLIES AND SERVICES,SECURITY,4650,P124000-SERVICE-additional cctv outside office,20/11/2023 00:00:00,279510,115,RV0035,RVTV SECURITY GROUP LTD,30/10/2023 00:00:00,26/11/2023 00:00:00,P08-2024
,LEE VALLEY CAMPSITE,SUPPLIES AND SERVICES,SECURITY,4650,P124098-SERVICE-site security service,20/11/2023 00:00:00,279600,2140,AH0449,MR HUMZAH AHMED,30/10/2023 00:00:00,26/11/2023 00:00:00,P08-2024
,LEE VALLEY CAMPSITE,SUPPLIES AND SERVICES,SECURITY,4650,P123943-SERVICE-SC Removal Unwanted Guests,20/11/2023 00:00:00,279730,2795,GR0236,G R C BAILIFFS,30/10/2023 00:00:00,26/11/2023 00:00:00,P08-2024
P&V,NORTH AREA RANGERS,SUPPLIES AND SERVICES,SECURITY,4650,P122126-SERVICE-Security - North of Park,11/07/2023 00:00,278813,5773.81,PA0059,PARKGUARD LTD,30/10/2023 00:00:00,26/11/2023 00:00:00,P08-2024
P&V,NORTH AREA RANGERS,SUPPLIES AND SERVICES,SECURITY,4650,P124148-SERVICE-Security - North of Park,26/11/2023 00:00:00,280003,6472.95,PA0059,PARKGUARD LTD,30/10/2023 00:00:00,26/11/2023 00:00:00,P08-2024
P&V,SOUTH AREA RANGERS,SUPPLIES AND SERVICES,SECURITY,4650,P122127-SERVICE-Security - South of Park,11/07/2023 00:00,278814,9607.41,PA0059,PARKGUARD LTD,30/10/2023 00:00:00,26/11/2023 00:00:00,P08-2024
P&V,SOUTH AREA RANGERS,SUPPLIES AND SERVICES,SECURITY,4650,P123660-SERVICE-Additional Security at Coppermill,20/11/2023 00:00:00,279625,720,PA0059,PARKGUARD LTD,30/10/2023 00:00:00,26/11/2023 00:00:00,P08-2024
P&V,SOUTH AREA RANGERS,SUPPLIES AND SERVICES,SECURITY,4650,P124149-SERVICE-Security - South of Park,26/11/2023 00:00:00,280002,10284.48,PA0059,PARKGUARD LTD,30/10/2023 00:00:00,26/11/2023 00:00:00,P08-2024
CEO,LVLC SERVICE CHARGE,SUPPLIES AND SERVICES,SECURITY,4650,P121975-SERVICE-Security,20/11/2023 00:00:00,279584,1092.16,PA0059,PARKGUARD LTD,30/10/2023 00:00:00,26/11/2023 00:00:00,P08-2024
CEO,LEGAL SERVICES,SUPPLIES AND SERVICES,OFFSITE ARCHIVED STORAGE,4667,P123861-SERVICE-Confidential shredding,11/07/2023 00:00,278141,56,CS0287,CURTIS SECURITY SHREDDING LTD,30/10/2023 00:00:00,26/11/2023 00:00:00,P08-2024
CEO,LEGAL SERVICES,SUPPLIES AND SERVICES,OFFSITE ARCHIVED STORAGE,4667,P124039-SERVICE-Off Site Storage October 2023,20/11/2023 00:00:00,279334,389.15,DA0154,RESTORE PLC,30/10/2023 00:00:00,26/11/2023 00:00:00,P08-2024
P&V,LEE VALLEY FARM HOLYFIELDHALL,THIRD PARTY PAYMENTS,VETERINARY SERVICES,4718,P123961-SERVICE-Vets,14/11/2023 00:00:00,279366,47.66,HA0443,HAMPDEN VETERINARY HOSPITAL,30/10/2023 00:00:00,26/11/2023 00:00:00,P08-2024
P&V,YOUTH AND SCHOOLS,SUPPLIES AND SERVICES,ACTIVITIES (SCHOOLS),4725,P124106-SERVICE-LOtC Quality Badge Everyday Risks Application,22/11/2023 00:00:00,279843,480,CO0443,COUNCIL FOR LEARNING OUTSIDE THE CLASSROOM,30/10/2023 00:00:00,26/11/2023 00:00:00,P08-2024
P&V,MYDDLETON HSE HERITAGE CENTRE,SUPPLIES AND SERVICES,NET CATERING PURCHASES,4777,BTR- food&drinks,11/08/2023 00:00,278822,311.18,360001,BIDFOOD,30/10/2023 00:00:00,26/11/2023 00:00:00,P08-2024
P&V,MYDDLETON HSE HERITAGE CENTRE,SUPPLIES AND SERVICES,NET CATERING PURCHASES,4777,P123648-SERVICE-food/drink order october 23,11/08/2023 00:00,278822,843.27,360001,BIDFOOD,30/10/2023 00:00:00,26/11/2023 00:00:00,P08-2024
P&V,MYDDLETON HSE HERITAGE CENTRE,SUPPLIES AND SERVICES,NET CATERING PURCHASES,4777,BTR- food&drinks,11/08/2023 00:00,278822,-843.27,360001,BIDFOOD,30/10/2023 00:00:00,26/11/2023 00:00:00,P08-2024
P&V,MYDDLETON HSE HERITAGE CENTRE,SUPPLIES AND SERVICES,NET CATERING PURCHASES,4777,BTR- food&drinks,11/08/2023 00:00,278822,532.09,360001,BIDFOOD,30/10/2023 00:00:00,26/11/2023 00:00:00,P08-2024
P&V,MYDDLETON HSE HERITAGE CENTRE,SUPPLIES AND SERVICES,NET CATERING PURCHASES,4777,P123876-SERVICE-food/drinks order half term october,11/08/2023 00:00,278822,658.26,360001,BIDFOOD,30/10/2023 00:00:00,26/11/2023 00:00:00,P08-2024
P&V,MYDDLETON HSE HERITAGE CENTRE,SUPPLIES AND SERVICES,NET CATERING PURCHASES,4777,P123335-SERVICE-drinks order sept 23,11/07/2023 00:00,279029,105,TU0194,TUDOR TEA & COFFEE,30/10/2023 00:00:00,26/11/2023 00:00:00,P08-2024
P&V,MYDDLETON HSE HERITAGE CENTRE,SUPPLIES AND SERVICES,NET CATERING PURCHASES,4777,BIDFOOD,11/07/2023 00:00,279056,358.82,360001,BIDFOOD,30/10/2023 00:00:00,26/11/2023 00:00:00,P08-2024
P&V,MYDDLETON HSE HERITAGE CENTRE,SUPPLIES AND SERVICES,NET CATERING PURCHASES,4777,BIDFOOD,11/07/2023 00:00,279056,60.37,360001,BIDFOOD,30/10/2023 00:00:00,26/11/2023 00:00:00,P08-2024
P&V,MYDDLETON HSE HERITAGE CENTRE,SUPPLIES AND SERVICES,NET CATERING PURCHASES,4777,P123800-SERVICE-Food/drink order wk com 23/10/2023,11/07/2023 00:00,279056,419.19,360001,BIDFOOD,30/10/2023 00:00:00,26/11/2023 00:00:00,P08-2024
P&V,MYDDLETON HSE HERITAGE CENTRE,SUPPLIES AND SERVICES,NET CATERING PURCHASES,4777,BIDFOOD,11/07/2023 00:00,279056,-419.19,360001,BIDFOOD,30/10/2023 00:00:00,26/11/2023 00:00:00,P08-2024
P&V,MYDDLETON HSE HERITAGE CENTRE,SUPPLIES AND SERVICES,NET CATERING PURCHASES,4777,P123800-SERVICE-Food/drink order wk com 23/10/2023,11/07/2023 00:00,279117,-16.19,360001,BIDFOOD,30/10/2023 00:00:00,26/11/2023 00:00:00,P08-2024
P&V,MYDDLETON HSE HERITAGE CENTRE,SUPPLIES AND SERVICES,NET CATERING PURCHASES,4777,P123335-SERVICE-drinks order sept 23,20/11/2023 00:00:00,279378,169.95,TU0194,TUDOR TEA & COFFEE,30/10/2023 00:00:00,26/11/2023 00:00:00,P08-2024
P&V,MYDDLETON HSE HERITAGE CENTRE,SUPPLIES AND SERVICES,NET CATERING PURCHASES,4777,BTR-coffee beans/clening brush,20/11/2023 00:00:00,279378,-169.95,TU0194,TUDOR TEA & COFFEE,30/10/2023 00:00:00,26/11/2023 00:00:00,P08-2024
P&V,MYDDLETON HSE HERITAGE CENTRE,SUPPLIES AND SERVICES,NET CATERING PURCHASES,4777,BTR-coffee beans/clening brush,20/11/2023 00:00:00,279378,19.95,TU0194,TUDOR TEA & COFFEE,30/10/2023 00:00:00,26/11/2023 00:00:00,P08-2024
P&V,MYDDLETON HSE HERITAGE CENTRE,SUPPLIES AND SERVICES,NET CATERING PURCHASES,4777,BTR-coffee beans/clening brush,20/11/2023 00:00:00,279378,150,TU0194,TUDOR TEA & COFFEE,30/10/2023 00:00:00,26/11/2023 00:00:00,P08-2024
P&V,MYDDLETON HSE HERITAGE CENTRE,SUPPLIES AND SERVICES,NET CATERING PURCHASES,4777,P123027-SERVICE-Coffee machine cleaning solution,20/11/2023 00:00:00,279379,129.2,TU0194,TUDOR TEA & COFFEE,30/10/2023 00:00:00,26/11/2023 00:00:00,P08-2024
P&V,MYDDLETON HSE HERITAGE CENTRE,SUPPLIES AND SERVICES,NET CATERING PURCHASES,4777,P122539-SERVICE-Cofee order weeek com 10/07/2023,20/11/2023 00:00:00,279379,52.75,TU0194,TUDOR TEA & COFFEE,30/10/2023 00:00:00,26/11/2023 00:00:00,P08-2024
P&V,MYDDLETON HSE HERITAGE CENTRE,SUPPLIES AND SERVICES,NET CATERING PURCHASES,4777,P123335-SERVICE-drinks order sept 23,20/11/2023 00:00:00,279379,25.05,TU0194,TUDOR TEA & COFFEE,30/10/2023 00:00:00,26/11/2023 00:00:00,P08-2024
P&V,MYDDLETON HSE HERITAGE CENTRE,SUPPLIES AND SERVICES,NET CATERING PURCHASES,4777,BTR- food and drinks,20/11/2023 00:00:00,279563,-684.37,360001,BIDFOOD,30/10/2023 00:00:00,26/11/2023 00:00:00,P08-2024
P&V,MYDDLETON HSE HERITAGE CENTRE,SUPPLIES AND SERVICES,NET CATERING PURCHASES,4777,BTR- food and drinks,20/11/2023 00:00:00,279563,582.64,360001,BIDFOOD,30/10/2023 00:00:00,26/11/2023 00:00:00,P08-2024
P&V,MYDDLETON HSE HERITAGE CENTRE,SUPPLIES AND SERVICES,NET CATERING PURCHASES,4777,BTR- food and drinks,20/11/2023 00:00:00,279563,101.73,360001,BIDFOOD,30/10/2023 00:00:00,26/11/2023 00:00:00,P08-2024
P&V,MYDDLETON HSE HERITAGE CENTRE,SUPPLIES AND SERVICES,NET CATERING PURCHASES,4777,P123825-SERVICE-food,20/11/2023 00:00:00,279563,684.37,360001,BIDFOOD,30/10/2023 00:00:00,26/11/2023 00:00:00,P08-2024
P&V,MYDDLETON HSE HERITAGE CENTRE,SUPPLIES AND SERVICES,NET CATERING PURCHASES,4777,TESCO-BROWN BREAD-X6,20/11/2023 00:00:00,279724,8.7,FI0001,DIRECTOR OF FINANCE - CASH,30/10/2023 00:00:00,26/11/2023 00:00:00,P08-2024
P&V,MYDDLETON HSE HERITAGE CENTRE,SUPPLIES AND SERVICES,NET CATERING PURCHASES,4777,TESCO-WHITE BREAD X2,20/11/2023 00:00:00,279724,2.78,FI0001,DIRECTOR OF FINANCE - CASH,30/10/2023 00:00:00,26/11/2023 00:00:00,P08-2024
P&V,MYDDLETON HSE HERITAGE CENTRE,SUPPLIES AND SERVICES,NET CATERING PURCHASES,4777,TESCO-BAKING POTATOES,20/11/2023 00:00:00,279724,4.29,FI0001,DIRECTOR OF FINANCE - CASH,30/10/2023 00:00:00,26/11/2023 00:00:00,P08-2024
P&V,MYDDLETON HSE HERITAGE CENTRE,SUPPLIES AND SERVICES,NET CATERING PURCHASES,4777,M&S- LETTUCE X2,20/11/2023 00:00:00,279724,0.9,FI0001,DIRECTOR OF FINANCE - CASH,30/10/2023 00:00:00,26/11/2023 00:00:00,P08-2024
P&V,MYDDLETON HSE HERITAGE CENTRE,SUPPLIES AND SERVICES,NET CATERING PURCHASES,4777,"TESCO-CARROTS, CUCUMBER SEEDED BREAD, CELERY",20/11/2023 00:00:00,279724,4.45,FI0001,DIRECTOR OF FINANCE - CASH,30/10/2023 00:00:00,26/11/2023 00:00:00,P08-2024
P&V,MYDDLETON HSE HERITAGE CENTRE,SUPPLIES AND SERVICES,NET CATERING PURCHASES,4777,TESCO-BAKING POTATOES,20/11/2023 00:00:00,279724,2.71,FI0001,DIRECTOR OF FINANCE - CASH,30/10/2023 00:00:00,26/11/2023 00:00:00,P08-2024
P&V,MYDDLETON HSE HERITAGE CENTRE,SUPPLIES AND SERVICES,NET CATERING PURCHASES,4777,TESCO-BROWN BREAD X4,20/11/2023 00:00:00,279724,5.8,FI0001,DIRECTOR OF FINANCE - CASH,30/10/2023 00:00:00,26/11/2023 00:00:00,P08-2024
P&V,MYDDLETON HSE HERITAGE CENTRE,SUPPLIES AND SERVICES,NET CATERING PURCHASES,4777,ALDI-RED ONIONS,20/11/2023 00:00:00,279724,1.9,FI0001,DIRECTOR OF FINANCE - CASH,30/10/2023 00:00:00,26/11/2023 00:00:00,P08-2024
P&V,MYDDLETON HSE HERITAGE CENTRE,SUPPLIES AND SERVICES,NET CATERING PURCHASES,4777,TESCO-WHITE BREAD-X4,20/11/2023 00:00:00,279724,5.56,FI0001,DIRECTOR OF FINANCE - CASH,30/10/2023 00:00:00,26/11/2023 00:00:00,P08-2024
P&V,MYDDLETON HSE HERITAGE CENTRE,SUPPLIES AND SERVICES,NET CATERING PURCHASES,4777,P123825-SERVICE-food,22/11/2023 00:00:00,279825,228.96,360001,BIDFOOD,30/10/2023 00:00:00,26/11/2023 00:00:00,P08-2024
P&V,MYDDLETON HSE HERITAGE CENTRE,SUPPLIES AND SERVICES,NET CATERING PURCHASES,4777,BTR-food/drinks,22/11/2023 00:00:00,279825,-228.96,360001,BIDFOOD,30/10/2023 00:00:00,26/11/2023 00:00:00,P08-2024
P&V,MYDDLETON HSE HERITAGE CENTRE,SUPPLIES AND SERVICES,NET CATERING PURCHASES,4777,BTR-food/drinks,22/11/2023 00:00:00,279825,145.02,360001,BIDFOOD,30/10/2023 00:00:00,26/11/2023 00:00:00,P08-2024
P&V,MYDDLETON HSE HERITAGE CENTRE,SUPPLIES AND SERVICES,NET CATERING PURCHASES,4777,BTR-food/drinks,22/11/2023 00:00:00,279825,83.94,360001,BIDFOOD,30/10/2023 00:00:00,26/11/2023 00:00:00,P08-2024
P&V,MYDDLETON HSE HERITAGE CENTRE,SUPPLIES AND SERVICES,NET GIFT SHOP PURCHASES,4779,P123954-SERVICE-honey order nov 23,15/11/2023 00:00:00,279505,136,AS0510,MRS C ASPIN,30/10/2023 00:00:00,26/11/2023 00:00:00,P08-2024
,LEE VALLEY MARINA SPRINGFIELD,SUPPLIES AND SERVICES,TRADING AC - EXTERNAL PURCHASE,4875,P123820-SERVICE-Chandlery Stock,11/07/2023 00:00,279109,50.96,MI0200,MIDLAND CHANDLERS LIMITED,30/10/2023 00:00:00,26/11/2023 00:00:00,P08-2024
,LEE VALLEY MARINA SPRINGFIELD,SUPPLIES AND SERVICES,TRADING AC - EXTERNAL PURCHASE,4875,P123785-SERVICE-Chandlery Stock,11/07/2023 00:00,279110,1.75,MI0200,MIDLAND CHANDLERS LIMITED,30/10/2023 00:00:00,26/11/2023 00:00:00,P08-2024
,LEE VALLEY MARINA SPRINGFIELD,SUPPLIES AND SERVICES,TRADING AC - EXTERNAL PURCHASE,4875,P123847-SERVICE-Chandlery Stock,11/07/2023 00:00,279212,289,MI0200,MIDLAND CHANDLERS LIMITED,30/10/2023 00:00:00,26/11/2023 00:00:00,P08-2024
,LEE VALLEY MARINA SPRINGFIELD,SUPPLIES AND SERVICES,TRADING AC - EXTERNAL PURCHASE,4875,P123812-SERVICE-Fire accessories,11/07/2023 00:00,279223,473.92,CA0660,CALFIRE SPARELINE LIMITED,30/10/2023 00:00:00,26/11/2023 00:00:00,P08-2024
,LEE VALLEY MARINA SPRINGFIELD,SUPPLIES AND SERVICES,TRADING AC - EXTERNAL PURCHASE,4875,P123931-SERVICE-50 new electric careds for re sale,11/08/2023 00:00,279234,112,BR0018,BRADSHAW ELECTRICAL LIMITED,30/10/2023 00:00:00,26/11/2023 00:00:00,P08-2024
,LEE VALLEY MARINA SPRINGFIELD,SUPPLIES AND SERVICES,TRADING AC - EXTERNAL PURCHASE,4875,P123811-SERVICE-Gas and kindling,11/07/2023 00:00,279282,1147,SM0664,KG SMITH & SON,30/10/2023 00:00:00,26/11/2023 00:00:00,P08-2024
,LEE VALLEY MARINA SPRINGFIELD,SUPPLIES AND SERVICES,TRADING AC - EXTERNAL PURCHASE,4875,P123811-SERVICE-Gas and kindling,11/07/2023 00:00,279283,76,SM0664,KG SMITH & SON,30/10/2023 00:00:00,26/11/2023 00:00:00,P08-2024
,LEE VALLEY MARINA SPRINGFIELD,SUPPLIES AND SERVICES,TRADING AC - EXTERNAL PURCHASE,4875,P123932-SERVICE-Electrical and gas supplies,14/11/2023 00:00:00,279369,183.13,AQ0033,AQUAFAX LIMITED,30/10/2023 00:00:00,26/11/2023 00:00:00,P08-2024
,LEE VALLEY MARINA SPRINGFIELD,SUPPLIES AND SERVICES,TRADING AC - EXTERNAL PURCHASE,4875,P123868-SERVICE-Stove glass for customer,14/11/2023 00:00:00,279389,21.5,CA0660,CALFIRE SPARELINE LIMITED,30/10/2023 00:00:00,26/11/2023 00:00:00,P08-2024
,LEE VALLEY MARINA SPRINGFIELD,SUPPLIES AND SERVICES,TRADING AC - EXTERNAL PURCHASE,4875,P123790-SERVICE-Painting supplies,14/11/2023 00:00:00,279390,268.68,CE0510,CENTURION EUROPE LIMITED,30/10/2023 00:00:00,26/11/2023 00:00:00,P08-2024
,LEE VALLEY MARINA SPRINGFIELD,SUPPLIES AND SERVICES,TRADING AC - EXTERNAL PURCHASE,4875,P123936-SERVICE-Chandlery Stock,15/11/2023 00:00:00,279468,458.79,MI0200,MIDLAND CHANDLERS LIMITED,30/10/2023 00:00:00,26/11/2023 00:00:00,P08-2024
,LEE VALLEY MARINA SPRINGFIELD,SUPPLIES AND SERVICES,TRADING AC - EXTERNAL PURCHASE,4875,P123932-SERVICE-Electrical and gas supplies,14/11/2023 00:00:00,279490,7.12,AQ0033,AQUAFAX LIMITED,30/10/2023 00:00:00,26/11/2023 00:00:00,P08-2024
,LEE VALLEY MARINA SPRINGFIELD,SUPPLIES AND SERVICES,TRADING AC - EXTERNAL PURCHASE,4875,P123932-SERVICE-Electrical and gas supplies,14/11/2023 00:00:00,279491,8.54,AQ0033,AQUAFAX LIMITED,30/10/2023 00:00:00,26/11/2023 00:00:00,P08-2024
,LEE VALLEY MARINA SPRINGFIELD,SUPPLIES AND SERVICES,TRADING AC - EXTERNAL PURCHASE,4875,P123932-SERVICE-Electrical and gas supplies,20/11/2023 00:00:00,279492,4.48,AQ0033,AQUAFAX LIMITED,30/10/2023 00:00:00,26/11/2023 00:00:00,P08-2024
,LEE VALLEY MARINA SPRINGFIELD,SUPPLIES AND SERVICES,TRADING AC - EXTERNAL PURCHASE,4875,P123962-SERVICE-Chandlery Stock,14/11/2023 00:00:00,279533,333.29,MI0200,MIDLAND CHANDLERS LIMITED,30/10/2023 00:00:00,26/11/2023 00:00:00,P08-2024
,LEE VALLEY MARINA SPRINGFIELD,SUPPLIES AND SERVICES,TRADING AC - EXTERNAL PURCHASE,4875,P123820-SERVICE-Chandlery Stock,15/11/2023 00:00:00,279586,12.74,MI0200,MIDLAND CHANDLERS LIMITED,30/10/2023 00:00:00,26/11/2023 00:00:00,P08-2024
,LEE VALLEY MARINA SPRINGFIELD,SUPPLIES AND SERVICES,TRADING AC - EXTERNAL PURCHASE,4875,P124011-SERVICE-Customer order - battery charger and sundries,20/11/2023 00:00:00,279626,212.73,MI0200,MIDLAND CHANDLERS LIMITED,30/10/2023 00:00:00,26/11/2023 00:00:00,P08-2024
,LEE VALLEY MARINA SPRINGFIELD,SUPPLIES AND SERVICES,TRADING AC - EXTERNAL PURCHASE,4875,P123932-SERVICE-Electrical and gas supplies,20/11/2023 00:00:00,279628,6.18,AQ0033,AQUAFAX LIMITED,30/10/2023 00:00:00,26/11/2023 00:00:00,P08-2024
,LEE VALLEY MARINA SPRINGFIELD,SUPPLIES AND SERVICES,TRADING AC - EXTERNAL PURCHASE,4875,P123811-SERVICE-Coal added to order,22/11/2023 00:00:00,279779,1060,SM0664,KG SMITH & SON,30/10/2023 00:00:00,26/11/2023 00:00:00,P08-2024
,LEE VALLEY MARINA SPRINGFIELD,SUPPLIES AND SERVICES,TRADING AC - EXTERNAL PURCHASE,4875,P123811-SERVICE-Additional gas ordered,22/11/2023 00:00:00,279779,43,SM0664,KG SMITH & SON,30/10/2023 00:00:00,26/11/2023 00:00:00,P08-2024
,LEE VALLEY MARINA SPRINGFIELD,SUPPLIES AND SERVICES,TRADING AC - EXTERNAL PURCHASE,4875,P123811-SERVICE-Gas and kindling,22/11/2023 00:00:00,279779,277,SM0664,KG SMITH & SON,30/10/2023 00:00:00,26/11/2023 00:00:00,P08-2024
,LEE VALLEY MARINA SPRINGFIELD,SUPPLIES AND SERVICES,TRADING AC - EXTERNAL PURCHASE,4875,P124076-SERVICE-Chandlery Stock,22/11/2023 00:00:00,279817,526.78,MI0200,MIDLAND CHANDLERS LIMITED,30/10/2023 00:00:00,26/11/2023 00:00:00,P08-2024
,LEE VALLEY MARINA SPRINGFIELD,SUPPLIES AND SERVICES,TRADING AC - EXTERNAL PURCHASE,4875,P124086-SERVICE-Electrical and plumbing supplies,22/11/2023 00:00:00,279820,553.13,AQ0033,AQUAFAX LIMITED,30/10/2023 00:00:00,26/11/2023 00:00:00,P08-2024
,LEE VALLEY MARINA SPRINGFIELD,SUPPLIES AND SERVICES,TRADING AC - EXTERNAL PURCHASE,4875,P124095-SERVICE-Customer order - stove and flue kit,26/11/2023 00:00:00,279821,1345.21,MI0200,MIDLAND CHANDLERS LIMITED,30/10/2023 00:00:00,26/11/2023 00:00:00,P08-2024
,LEE VALLEY MARINA SPRINGFIELD,SUPPLIES AND SERVICES,TRADING AC - EXTERNAL PURCHASE,4875,P124091-SERVICE-Electrical and engineering supplies,22/11/2023 00:00:00,279823,442.65,AS0036,ASAP SUPPLIES,30/10/2023 00:00:00,26/11/2023 00:00:00,P08-2024
,LEE VALLEY MARINA SPRINGFIELD,SUPPLIES AND SERVICES,TRADING AC - EXTERNAL PURCHASE,4875,P124115-SERVICE-Customer order,26/11/2023 00:00:00,279890,1463.16,MI0200,MIDLAND CHANDLERS LIMITED,30/10/2023 00:00:00,26/11/2023 00:00:00,P08-2024
,LEE VALLEY MARINA SPRINGFIELD,SUPPLIES AND SERVICES,TRADING AC - EXTERNAL PURCHASE,4875,P123610-SERVICE-Electric and gas supplies,26/11/2023 00:00:00,280011,2.72,AQ0033,AQUAFAX LIMITED,30/10/2023 00:00:00,26/11/2023 00:00:00,P08-2024
,STANSTEAD RECHARGEABLE WORKS,SUPPLIES AND SERVICES,TRADING AC - EXTERNAL PURCHASE,4875,P123658-SERVICE-chandlery stock,11/07/2023 00:00,278799,32.19,MI0200,MIDLAND CHANDLERS LIMITED,30/10/2023 00:00:00,26/11/2023 00:00:00,P08-2024
,STANSTEAD RECHARGEABLE WORKS,SUPPLIES AND SERVICES,TRADING AC - EXTERNAL PURCHASE,4875,P123658-SERVICE-chandlery stock,11/07/2023 00:00,278800,712.84,MI0200,MIDLAND CHANDLERS LIMITED,30/10/2023 00:00:00,26/11/2023 00:00:00,P08-2024
,STANSTEAD RECHARGEABLE WORKS,SUPPLIES AND SERVICES,TRADING AC - EXTERNAL PURCHASE,4875,P123658-SERVICE-chandlery stock,11/07/2023 00:00,278801,1547.91,MI0200,MIDLAND CHANDLERS LIMITED,30/10/2023 00:00:00,26/11/2023 00:00:00,P08-2024
,STANSTEAD RECHARGEABLE WORKS,SUPPLIES AND SERVICES,TRADING AC - EXTERNAL PURCHASE,4875,P123822-SERVICE-chandlery stock,11/07/2023 00:00,278818,26.94,MI0200,MIDLAND CHANDLERS LIMITED,30/10/2023 00:00:00,26/11/2023 00:00:00,P08-2024
,STANSTEAD RECHARGEABLE WORKS,SUPPLIES AND SERVICES,TRADING AC - EXTERNAL PURCHASE,4875,P123658-SERVICE-chandlery stock,11/07/2023 00:00,278864,10.84,MI0200,MIDLAND CHANDLERS LIMITED,30/10/2023 00:00:00,26/11/2023 00:00:00,P08-2024
,STANSTEAD RECHARGEABLE WORKS,SUPPLIES AND SERVICES,TRADING AC - EXTERNAL PURCHASE,4875,P123658-SERVICE-chandlery stock,11/07/2023 00:00,278865,32.52,MI0200,MIDLAND CHANDLERS LIMITED,30/10/2023 00:00:00,26/11/2023 00:00:00,P08-2024
,STANSTEAD RECHARGEABLE WORKS,SUPPLIES AND SERVICES,TRADING AC - EXTERNAL PURCHASE,4875,P123615-SERVICE-paont,11/07/2023 00:00,278895,63.87,MA0442,MARINE AND INDUSTRIAL LLP,30/10/2023 00:00:00,26/11/2023 00:00:00,P08-2024
,STANSTEAD RECHARGEABLE WORKS,SUPPLIES AND SERVICES,TRADING AC - EXTERNAL PURCHASE,4875,P123640-SERVICE-chandlery stock,11/07/2023 00:00,279044,15.6,AQ0033,AQUAFAX LIMITED,30/10/2023 00:00:00,26/11/2023 00:00:00,P08-2024
,STANSTEAD RECHARGEABLE WORKS,SUPPLIES AND SERVICES,TRADING AC - EXTERNAL PURCHASE,4875,P123710-SERVICE-solid fuels,15/11/2023 00:00:00,279082,3165.9,SM0664,KG SMITH & SON,30/10/2023 00:00:00,26/11/2023 00:00:00,P08-2024
,STANSTEAD RECHARGEABLE WORKS,SUPPLIES AND SERVICES,TRADING AC - EXTERNAL PURCHASE,4875,P123755-SERVICE-chandlery items 24.10.23,11/07/2023 00:00,279086,13.75,MI0200,MIDLAND CHANDLERS LIMITED,30/10/2023 00:00:00,26/11/2023 00:00:00,P08-2024
,STANSTEAD RECHARGEABLE WORKS,SUPPLIES AND SERVICES,TRADING AC - EXTERNAL PURCHASE,4875,P123880-SERVICE-calor gas cage rental,11/08/2023 00:00,279122,13,CA0006,CALOR GAS LIMITED,30/10/2023 00:00:00,26/11/2023 00:00:00,P08-2024
,STANSTEAD RECHARGEABLE WORKS,SUPPLIES AND SERVICES,TRADING AC - EXTERNAL PURCHASE,4875,P123880-SERVICE-calor gas cage rental,11/08/2023 00:00,279123,13,CA0006,CALOR GAS LIMITED,30/10/2023 00:00:00,26/11/2023 00:00:00,P08-2024
,STANSTEAD RECHARGEABLE WORKS,SUPPLIES AND SERVICES,TRADING AC - EXTERNAL PURCHASE,4875,P123869-SERVICE-chandlery stock,15/11/2023 00:00:00,279208,368.81,AQ0033,AQUAFAX LIMITED,30/10/2023 00:00:00,26/11/2023 00:00:00,P08-2024
,STANSTEAD RECHARGEABLE WORKS,SUPPLIES AND SERVICES,TRADING AC - EXTERNAL PURCHASE,4875,P123840-SERVICE-chandlery stock,11/07/2023 00:00,279209,1100.28,MI0200,MIDLAND CHANDLERS LIMITED,30/10/2023 00:00:00,26/11/2023 00:00:00,P08-2024
,STANSTEAD RECHARGEABLE WORKS,SUPPLIES AND SERVICES,TRADING AC - EXTERNAL PURCHASE,4875,P123869-SERVICE-extra for gas fittings,20/11/2023 00:00:00,279253,266.85,AQ0033,AQUAFAX LIMITED,30/10/2023 00:00:00,26/11/2023 00:00:00,P08-2024
,STANSTEAD RECHARGEABLE WORKS,SUPPLIES AND SERVICES,TRADING AC - EXTERNAL PURCHASE,4875,P123478-SERVICE-calor gas,15/11/2023 00:00:00,279281,903.5,SM0664,KG SMITH & SON,30/10/2023 00:00:00,26/11/2023 00:00:00,P08-2024
,STANSTEAD RECHARGEABLE WORKS,SUPPLIES AND SERVICES,TRADING AC - EXTERNAL PURCHASE,4875,P123826-SERVICE-chandlery stock,15/11/2023 00:00:00,279313,382.41,CA0660,CALFIRE SPARELINE LIMITED,30/10/2023 00:00:00,26/11/2023 00:00:00,P08-2024
,STANSTEAD RECHARGEABLE WORKS,SUPPLIES AND SERVICES,TRADING AC - EXTERNAL PURCHASE,4875,P123867-SERVICE-Red diesel 2200ltrs,15/11/2023 00:00:00,279338,1816.37,SP0543,SPEEDY FUELS LIMITED,30/10/2023 00:00:00,26/11/2023 00:00:00,P08-2024
,STANSTEAD RECHARGEABLE WORKS,SUPPLIES AND SERVICES,TRADING AC - EXTERNAL PURCHASE,4875,P123907-SERVICE-chandlery stock,15/11/2023 00:00:00,279358,99.52,MA0442,MARINE AND INDUSTRIAL LLP,30/10/2023 00:00:00,26/11/2023 00:00:00,P08-2024
,STANSTEAD RECHARGEABLE WORKS,SUPPLIES AND SERVICES,TRADING AC - EXTERNAL PURCHASE,4875,P123869-SERVICE-extra for gas fittings,20/11/2023 00:00:00,279359,7.35,AQ0033,AQUAFAX LIMITED,30/10/2023 00:00:00,26/11/2023 00:00:00,P08-2024
,STANSTEAD RECHARGEABLE WORKS,SUPPLIES AND SERVICES,TRADING AC - EXTERNAL PURCHASE,4875,P123934-SERVICE-chandlery stock,22/11/2023 00:00:00,279370,1260.84,MI0200,MIDLAND CHANDLERS LIMITED,30/10/2023 00:00:00,26/11/2023 00:00:00,P08-2024
,STANSTEAD RECHARGEABLE WORKS,SUPPLIES AND SERVICES,TRADING AC - EXTERNAL PURCHASE,4875,P123867-SERVICE-Red diesel 2200ltrs,15/11/2023 00:00:00,279383,0.83,SP0543,SPEEDY FUELS LIMITED,30/10/2023 00:00:00,26/11/2023 00:00:00,P08-2024
,STANSTEAD RECHARGEABLE WORKS,SUPPLIES AND SERVICES,TRADING AC - EXTERNAL PURCHASE,4875,P123898-SERVICE-rope,15/11/2023 00:00:00,279527,518.23,DS0201,DSM GROUP,30/10/2023 00:00:00,26/11/2023 00:00:00,P08-2024
,STANSTEAD RECHARGEABLE WORKS,SUPPLIES AND SERVICES,TRADING AC - EXTERNAL PURCHASE,4875,P123934-SERVICE-extra amount for nameplates,26/11/2023 00:00:00,279587,8.44,MI0200,MIDLAND CHANDLERS LIMITED,30/10/2023 00:00:00,26/11/2023 00:00:00,P08-2024
,STANSTEAD RECHARGEABLE WORKS,SUPPLIES AND SERVICES,TRADING AC - EXTERNAL PURCHASE,4875,P123906-SERVICE-logs,20/11/2023 00:00:00,279622,240,HA0371,HARTS OF OAK,30/10/2023 00:00:00,26/11/2023 00:00:00,P08-2024
,STANSTEAD RECHARGEABLE WORKS,SUPPLIES AND SERVICES,TRADING AC - EXTERNAL PURCHASE,4875,P124028-SERVICE-chandlery stock,22/11/2023 00:00:00,279627,899.56,AQ0033,AQUAFAX LIMITED,30/10/2023 00:00:00,26/11/2023 00:00:00,P08-2024
,STANSTEAD RECHARGEABLE WORKS,SUPPLIES AND SERVICES,TRADING AC - EXTERNAL PURCHASE,4875,P124035-SERVICE-chandlery stock,20/11/2023 00:00:00,279731,338.87,MI0200,MIDLAND CHANDLERS LIMITED,30/10/2023 00:00:00,26/11/2023 00:00:00,P08-2024
,STANSTEAD RECHARGEABLE WORKS,SUPPLIES AND SERVICES,TRADING AC - EXTERNAL PURCHASE,4875,P124028-SERVICE-chandlery stock,20/11/2023 00:00:00,279734,198.2,AQ0033,AQUAFAX LIMITED,30/10/2023 00:00:00,26/11/2023 00:00:00,P08-2024
,STANSTEAD RECHARGEABLE WORKS,SUPPLIES AND SERVICES,TRADING AC - EXTERNAL PURCHASE,4875,P124007-SERVICE-chandlery logs,22/11/2023 00:00:00,279780,1662,SM0664,KG SMITH & SON,30/10/2023 00:00:00,26/11/2023 00:00:00,P08-2024
,STANSTEAD RECHARGEABLE WORKS,SUPPLIES AND SERVICES,TRADING AC - EXTERNAL PURCHASE,4875,Stnastead-Chanlery stock,22/11/2023 00:00:00,279780,732,SM0664,KG SMITH & SON,30/10/2023 00:00:00,26/11/2023 00:00:00,P08-2024
,STANSTEAD RECHARGEABLE WORKS,SUPPLIES AND SERVICES,TRADING AC - EXTERNAL PURCHASE,4875,Stnastead-Chanlery stock,22/11/2023 00:00:00,279780,-1662,SM0664,KG SMITH & SON,30/10/2023 00:00:00,26/11/2023 00:00:00,P08-2024
,STANSTEAD RECHARGEABLE WORKS,SUPPLIES AND SERVICES,TRADING AC - EXTERNAL PURCHASE,4875,Stnastead-Chanlery stock,22/11/2023 00:00:00,279780,930,SM0664,KG SMITH & SON,30/10/2023 00:00:00,26/11/2023 00:00:00,P08-2024
,STANSTEAD RECHARGEABLE WORKS,SUPPLIES AND SERVICES,TRADING AC - EXTERNAL PURCHASE,4875,P124062-SERVICE-chandlery stock,26/11/2023 00:00:00,279793,190.7,CE0510,CENTURION EUROPE LIMITED,30/10/2023 00:00:00,26/11/2023 00:00:00,P08-2024
,STANSTEAD RECHARGEABLE WORKS,SUPPLIES AND SERVICES,TRADING AC - EXTERNAL PURCHASE,4875,P124112-SERVICE-chandlery stock,26/11/2023 00:00:00,279883,677.99,MI0200,MIDLAND CHANDLERS LIMITED,30/10/2023 00:00:00,26/11/2023 00:00:00,P08-2024
,STANSTEAD RECHARGEABLE WORKS,SUPPLIES AND SERVICES,TRADING AC - EXTERNAL PURCHASE,4875,P124060-SERVICE-2200 ltrs red diesel,26/11/2023 00:00:00,280006,1720.4,TE0052,CERTAS ENERGY UK LIMITED,30/10/2023 00:00:00,26/11/2023 00:00:00,P08-2024
,LEE VALLEY CAMPSITE,SUPPLIES AND SERVICES,TRADING AC - EXTERNAL PURCHASE,4875,P123222-SERVICE-Stock - wood kindling charcoal,11/07/2023 00:00,279216,100.5,LO0473,LOGS DIRECT LTD,30/10/2023 00:00:00,26/11/2023 00:00:00,P08-2024
,LEE VALLEY CAMPSITE,SUPPLIES AND SERVICES,TRADING AC - EXTERNAL PURCHASE,4875,P123222-SERVICE-Wood,11/07/2023 00:00,279216,172.3,LO0473,LOGS DIRECT LTD,30/10/2023 00:00:00,26/11/2023 00:00:00,P08-2024
,LEE VALLEY CAMPSITE,SUPPLIES AND SERVICES,TRADING AC - EXTERNAL PURCHASE,4875,P123845-SERVICE-Coffee machine stock,14/11/2023 00:00:00,279377,16.75,TU0194,TUDOR TEA & COFFEE,30/10/2023 00:00:00,26/11/2023 00:00:00,P08-2024
,LEE VALLEY CARAVAN PARK,SUPPLIES AND SERVICES,TRADING AC - EXTERNAL PURCHASE,4875,P123980-SERVICE-1 x 1000 Wood Stirrer,14/11/2023 00:00:00,279376,16.75,TU0194,TUDOR TEA & COFFEE,30/10/2023 00:00:00,26/11/2023 00:00:00,P08-2024
,LV LEISURE CENTRE CAMPSITE,SUPPLIES AND SERVICES,TRADING AC - EXTERNAL PURCHASE,4875,P123871-SERVICE-coffee cups,11/07/2023 00:00,279098,67.5,RI0176,RIJO 42 INGREDIENTS LIMITED,30/10/2023 00:00:00,26/11/2023 00:00:00,P08-2024
,LV LEISURE CENTRE CAMPSITE,SUPPLIES AND SERVICES,TRADING AC - EXTERNAL PURCHASE,4875,P123839-SERVICE-6x toilet blue,11/08/2023 00:00,279116,28.4,TO0079,TOWSURE PRODUCTS LIMITED,30/10/2023 00:00:00,26/11/2023 00:00:00,P08-2024
,LV LEISURE CENTRE CAMPSITE,SUPPLIES AND SERVICES,TRADING AC - EXTERNAL PURCHASE,4875,P123968-SERVICE-Service call out charge,14/11/2023 00:00:00,279250,140,RI0176,RIJO 42 INGREDIENTS LIMITED,30/10/2023 00:00:00,26/11/2023 00:00:00,P08-2024
,LV LEISURE CENTRE CAMPSITE,SUPPLIES AND SERVICES,TRADING AC - EXTERNAL PURCHASE,4875,P124052-SERVICE-snap frames,22/11/2023 00:00:00,279785,102.06,TH0008,JKL SOLUTIONS LTD,30/10/2023 00:00:00,26/11/2023 00:00:00,P08-2024
,LV LEISURE CENTRE GOLF COURSE,SUPPLIES AND SERVICES,TRADING AC - EXTERNAL PURCHASE,4875,P124102-SERVICE-Golf Balls,22/11/2023 00:00:00,279725,637,GR0144,BARRY GRIFFITHS,30/10/2023 00:00:00,26/11/2023 00:00:00,P08-2024
,LEE VALLEY CAMPSITE,SUPPLIES AND SERVICES,BOTTLED GAS,4877,P122978-SERVICE-Stock - Gas,20/11/2023 00:00:00,279552,724.8,FL0147,FLOGAS BRITAIN LIMITED,30/10/2023 00:00:00,26/11/2023 00:00:00,P08-2024
,LEE VALLEY CAMPSITE,SUPPLIES AND SERVICES,BOTTLED GAS,4877,P124101-SERVICE-stocke bottled gas,26/11/2023 00:00:00,279828,729.55,FL0147,FLOGAS BRITAIN LIMITED,30/10/2023 00:00:00,26/11/2023 00:00:00,P08-2024
CEO,CHIEF EXECUTIVE,SUPPLIES AND SERVICES,UNRECONCILED COMPANY CARD EXP,4880,P ANDREW - NOV 2023 CREDIT CARD STATEMENT,13/11/2023 00:00:00,279319,1216.03,NA0007,NATWEST CARD CENTRE,30/10/2023 00:00:00,26/11/2023 00:00:00,P08-2024
P&V,MYDDELTON HOUSE,SUPPLIES AND SERVICES,UNRECONCILED COMPANY CARD EXP,4880,G FLAVIEN  - NOV 2023 CREDIT CARD STATEMENT,13/11/2023 00:00:00,279319,1870.91,NA0007,NATWEST CARD CENTRE,30/10/2023 00:00:00,26/11/2023 00:00:00,P08-2024
CEO,PR/COMMUNICATIONS,SUPPLIES AND SERVICES,UNRECONCILED COMPANY CARD EXP,4880,S BROMBERG  - NOV 2023 CREDIT CARD STATEMENT,13/11/2023 00:00:00,279319,644.9,NA0007,NATWEST CARD CENTRE,30/10/2023 00:00:00,26/11/2023 00:00:00,P08-2024
R&B,DEMOCRATIC REPRESENTATION & MA,SUPPLIES AND SERVICES,UNRECONCILED COMPANY CARD EXP,4880,S BERTSCHIN  - NOV 2023 CREDIT CARD STATEMENT,13/11/2023 00:00:00,279319,519.8,NA0007,NATWEST CARD CENTRE,30/10/2023 00:00:00,26/11/2023 00:00:00,P08-2024
R&B,FINANCE & RESOURCES MANAGEMENT,SUPPLIES AND SERVICES,UNRECONCILED COMPANY CARD EXP,4880,L READ  - NOV 2023 CREDIT CARD STATEMENT,13/11/2023 00:00:00,279319,322.5,NA0007,NATWEST CARD CENTRE,30/10/2023 00:00:00,26/11/2023 00:00:00,P08-2024
R&B,INFORMATION TECHNOLOGY,SUPPLIES AND SERVICES,UNRECONCILED COMPANY CARD EXP,4880,L BLUNDELL  - NOV 2023 CREDIT CARD STATEMENT,13/11/2023 00:00:00,279319,326.75,NA0007,NATWEST CARD CENTRE,30/10/2023 00:00:00,26/11/2023 00:00:00,P08-2024
R&B,INFORMATION TECHNOLOGY,SUPPLIES AND SERVICES,UNRECONCILED COMPANY CARD EXP,4880,S CLARK  - NOV 2023 CREDIT CARD STATEMENT,13/11/2023 00:00:00,279319,1324.54,NA0007,NATWEST CARD CENTRE,30/10/2023 00:00:00,26/11/2023 00:00:00,P08-2024
,LEE VALLEY MARINA STANSTEAD,SUPPLIES AND SERVICES,UNRECONCILED COMPANY CARD EXP,4880,J MANTON  - NOV 2023 CREDIT CARD STATEMENT,13/11/2023 00:00:00,279319,120.35,NA0007,NATWEST CARD CENTRE,30/10/2023 00:00:00,26/11/2023 00:00:00,P08-2024
,LEE VALLEY CAMPSITE,SUPPLIES AND SERVICES,UNRECONCILED COMPANY CARD EXP,4880,C CARTER  - NOV 2023 CREDIT CARD STATEMENT,13/11/2023 00:00:00,279319,1461.11,NA0007,NATWEST CARD CENTRE,30/10/2023 00:00:00,26/11/2023 00:00:00,P08-2024
,LEE VALLEY CARAVAN PARK,SUPPLIES AND SERVICES,UNRECONCILED COMPANY CARD EXP,4880,D SNOWDEN  - NOV 2023 CREDIT CARD STATEMENT,13/11/2023 00:00:00,279319,225.98,NA0007,NATWEST CARD CENTRE,30/10/2023 00:00:00,26/11/2023 00:00:00,P08-2024
,LEE VALLEY CARAVAN PARK,SUPPLIES AND SERVICES,UNRECONCILED COMPANY CARD EXP,4880,I RUSSELL  - NOV 2023 CREDIT CARD STATEMENT,13/11/2023 00:00:00,279319,3142.55,NA0007,NATWEST CARD CENTRE,30/10/2023 00:00:00,26/11/2023 00:00:00,P08-2024
P&V,YOUTH AND SCHOOLS,SUPPLIES AND SERVICES,UNRECONCILED COMPANY CARD EXP,4880,K WHEELER  - NOV 2023 CREDIT CARD STATEMENT,13/11/2023 00:00:00,279319,110,NA0007,NATWEST CARD CENTRE,30/10/2023 00:00:00,26/11/2023 00:00:00,P08-2024
P&V,BIODIVERSITY ACTION PLAN,SUPPLIES AND SERVICES,UNRECONCILED COMPANY CARD EXP,4880,C PATRICK  - NOV 2023 CREDIT CARD STATEMENT,13/11/2023 00:00:00,279319,23.99,NA0007,NATWEST CARD CENTRE,30/10/2023 00:00:00,26/11/2023 00:00:00,P08-2024
P&V,OPERATIONAL MANAGEMENT (L&E),SUPPLIES AND SERVICES,UNRECONCILED COMPANY CARD EXP,4880,J HETHERINGTON  - NOV 2023 CREDIT CARD STATEMENT,13/11/2023 00:00:00,279319,766.42,NA0007,NATWEST CARD CENTRE,30/10/2023 00:00:00,26/11/2023 00:00:00,P08-2024
P&V,SPORT AND LEISURE,SUPPLIES AND SERVICES,UNRECONCILED COMPANY CARD EXP,4880,A SACKETT  - NOV 2023 CREDIT CARD STATEMENT,13/11/2023 00:00:00,279319,1679.96,NA0007,NATWEST CARD CENTRE,30/10/2023 00:00:00,26/11/2023 00:00:00,P08-2024
P&V,EVENTS MANAGEMENT (PR),SUPPLIES AND SERVICES,UNRECONCILED COMPANY CARD EXP,4880,S STONE  - NOV 2023 CREDIT CARD STATEMENT,13/11/2023 00:00:00,279319,30,NA0007,NATWEST CARD CENTRE,30/10/2023 00:00:00,26/11/2023 00:00:00,P08-2024
P&V,VOLUNTEERS (L&E),SUPPLIES AND SERVICES,UNRECONCILED COMPANY CARD EXP,4880,J WHITEHEAD  - NOV 2023 CREDIT CARD STATEMENT,13/11/2023 00:00:00,279319,599.1,NA0007,NATWEST CARD CENTRE,30/10/2023 00:00:00,26/11/2023 00:00:00,P08-2024
,LV LEISURE CENTRE CAMPSITE,SUPPLIES AND SERVICES,UNRECONCILED COMPANY CARD EXP,4880,L SMITH - NOV 2023 CREDIT CARD STATEMENT,13/11/2023 00:00:00,279319,235.98,NA0007,NATWEST CARD CENTRE,30/10/2023 00:00:00,26/11/2023 00:00:00,P08-2024
CEO,COMMERCIAL ACCOMMODATION,SUPPLIES AND SERVICES,OTHER EXPENSES,4899,P121556-SERVICE-Land Registry Fees,11/07/2023 00:00,279273,3,HM0032,HM LAND REGISTRY,30/10/2023 00:00:00,26/11/2023 00:00:00,P08-2024
CEO,COMMERCIAL ACCOMMODATION,SUPPLIES AND SERVICES,OTHER EXPENSES,4899,P121556-SERVICE-Land Registry Fees,14/11/2023 00:00:00,279541,27,HM0032,HM LAND REGISTRY,30/10/2023 00:00:00,26/11/2023 00:00:00,P08-2024
CEO,MAJOR EVENTS,SUPPLIES AND SERVICES,OTHER EXPENSES,4899,"P123689-SERVICE-TCL - onsite meeting, document and design rev",11/07/2023 00:00,279237,300,EX0288,USEFUL SIMPLE GROUP LTD,30/10/2023 00:00:00,26/11/2023 00:00:00,P08-2024
CEO,MAJOR EVENTS,SUPPLIES AND SERVICES,OTHER EXPENSES,4899,P123608-SERVICE-On site and on call lighting support during T,15/11/2023 00:00:00,279601,1200,ST0690,STUDIOTECH (UK) LTD,30/10/2023 00:00:00,26/11/2023 00:00:00,P08-2024
CEO,MAJOR EVENTS,SUPPLIES AND SERVICES,OTHER EXPENSES,4899,P123803-SERVICE-TCL event in November 2023,22/11/2023 00:00:00,279832,40313.88,GR0097,GREENWICH LEISURE LTD,30/10/2023 00:00:00,26/11/2023 00:00:00,P08-2024
,LEE VALLEY CAMPSITE,SUPPLIES AND SERVICES,OTHER EXPENSES,4899,P123548-SERVICE-Insulated Matting,14/11/2023 00:00:00,279497,475,BR0018,BRADSHAW ELECTRICAL LIMITED,30/10/2023 00:00:00,26/11/2023 00:00:00,P08-2024
P&V,MYDDELTON HOUSE GARDENS,SUPPLIES AND SERVICES,OTHER EXPENSES,4899,TIMPSONS-KEYS MADE,15/11/2023 00:00:00,279603,20.83,FI0001,DIRECTOR OF FINANCE - CASH,30/10/2023 00:00:00,26/11/2023 00:00:00,P08-2024
P&V,MYDDELTON HOUSE GARDENS,SUPPLIES AND SERVICES,OTHER EXPENSES,4899,TIMPSONS- KEYS MADE,15/11/2023 00:00:00,279603,18.75,FI0001,DIRECTOR OF FINANCE - CASH,30/10/2023 00:00:00,26/11/2023 00:00:00,P08-2024
P&V,COMMUNITY ACCESS FUND,SUPPLIES AND SERVICES,OTHER EXPENSES,4899,P123000-SERVICE-CAF VeloPark Q1 2023,11/08/2023 00:00,278625,600,GR0097,GREENWICH LEISURE LTD,30/10/2023 00:00:00,26/11/2023 00:00:00,P08-2024
P&V,COMMUNITY ACCESS FUND,SUPPLIES AND SERVICES,OTHER EXPENSES,4899,P123000-SERVICE-CAF VeloPark Q1 2023,11/08/2023 00:00,279245,-600,GR0097,GREENWICH LEISURE LTD,30/10/2023 00:00:00,26/11/2023 00:00:00,P08-2024
P&V,COMMUNITY ACCESS FUND,SUPPLIES AND SERVICES,OTHER EXPENSES,4899,P124222-SERVICE-WWC Cabin on the lake hire,26/11/2023 00:00:00,279831,50,GR0097,GREENWICH LEISURE LTD,30/10/2023 00:00:00,26/11/2023 00:00:00,P08-2024
P&V,COMMUNITY ACCESS FUND,SUPPLIES AND SERVICES,OTHER EXPENSES,4899,P124221-SERVICE-COach hire 5/12/23,26/11/2023 00:00:00,280088,750,GO0252,GOLDLINE EXECUTIVE TRAVEL,30/10/2023 00:00:00,26/11/2023 00:00:00,P08-2024
,LV LEISURE CENTRE CAMPSITE,SUPPLIES AND SERVICES,OTHER EXPENSES,4899,P123899-SERVICE-SAFTEY Signs,15/11/2023 00:00:00,279360,38.94,FI0215,VALUE PRODUCTS LTD,30/10/2023 00:00:00,26/11/2023 00:00:00,P08-2024
,LV LEISURE CENTRE GOLF COURSE,SUPPLIES AND SERVICES,OTHER EXPENSES,4899,P122270-SERVICE-Knot Weed,20/11/2023 00:00:00,279529,247.5,GO0044,S.H.GOSS & CO LTD,30/10/2023 00:00:00,26/11/2023 00:00:00,P08-2024
,LV LEISURE CENTRE GOLF COURSE,SUPPLIES AND SERVICES,OTHER EXPENSES,4899,P124075-SERVICE-2 x Spillage Signs,26/11/2023 00:00:00,279886,21,SL0528,SLAM SIGNS LTD,30/10/2023 00:00:00,26/11/2023 00:00:00,P08-2024
P&V,AWARDS AND ACCREDITATIONS,SUPPLIES AND SERVICES,OTHER EXPENSES,4899,P123862-SERVICE-Quaity Site Visists,14/11/2023 00:00:00,278131,940,RI0053,RIGHT DIRECTIONS (MANAGEMENT) LTD,30/10/2023 00:00:00,26/11/2023 00:00:00,P08-2024
P&V,S106 PROJECTS,S106 EXPENDITURE (REVENUE),S106 EXPENDITURE (REVENUE),4985,P123522-SERVICE-Delivery of the River Lynch Restoration Proje,26/11/2023 00:00:00,279113,24681,AQ0410,AQUAMAINTAIN LTD,30/10/2023 00:00:00,26/11/2023 00:00:00,P08-2024
P&V,S106 PROJECTS,S106 EXPENDITURE (REVENUE),S106 EXPENDITURE (REVENUE),4985,P123457-SERVICE-Undertake Investigations of CEGB Pond Island,20/11/2023 00:00:00,279763,2892,RS0169,RSK GROUP PLC,30/10/2023 00:00:00,26/11/2023 00:00:00,P08-2024
P&V,S106 PROJECTS,S106 EXPENDITURE (REVENUE),S106 EXPENDITURE (REVENUE),4985,"P122459-SERVICE-River Lynch Water Vole, Otter and Badger Surv",26/11/2023 00:00:00,280034,2580,FP0125,FPCR ENVIRONMENT AND DESIGN LTD,30/10/2023 00:00:00,26/11/2023 00:00:00,P08-2024
P&V,"ASSET PROTECTION, MAINT, DEVEL",CAPITAL EXPENDITURE,CAPITAL EXPENDITURE,4990,Springfield-path renewal,26/11/2023 00:00:00,277160,-6200,MO0041,CAPSER,30/10/2023 00:00:00,26/11/2023 00:00:00,P08-2024
P&V,"ASSET PROTECTION, MAINT, DEVEL",CAPITAL EXPENDITURE,CAPITAL EXPENDITURE,4990,Springfield-path renewal,26/11/2023 00:00:00,277160,2900,MO0041,CAPSER,30/10/2023 00:00:00,26/11/2023 00:00:00,P08-2024
P&V,"ASSET PROTECTION, MAINT, DEVEL",CAPITAL EXPENDITURE,CAPITAL EXPENDITURE,4990,P122694-SERVICE-Extension to path renewal as per R Merle,26/11/2023 00:00:00,277160,6200,MO0041,CAPSER,30/10/2023 00:00:00,26/11/2023 00:00:00,P08-2024
P&V,"ASSET PROTECTION, MAINT, DEVEL",CAPITAL EXPENDITURE,CAPITAL EXPENDITURE,4990,Springfield-path renewal,26/11/2023 00:00:00,277160,8100,MO0041,CAPSER,30/10/2023 00:00:00,26/11/2023 00:00:00,P08-2024
P&V,"ASSET PROTECTION, MAINT, DEVEL",CAPITAL EXPENDITURE,CAPITAL EXPENDITURE,4990,Springfield-path renewal,26/11/2023 00:00:00,277160,-8100,MO0041,CAPSER,30/10/2023 00:00:00,26/11/2023 00:00:00,P08-2024
P&V,"ASSET PROTECTION, MAINT, DEVEL",CAPITAL EXPENDITURE,CAPITAL EXPENDITURE,4990,P122694-SERVICE-Springfield Marina Path Renewals,26/11/2023 00:00:00,277160,8100,MO0041,CAPSER,30/10/2023 00:00:00,26/11/2023 00:00:00,P08-2024
P&V,"ASSET PROTECTION, MAINT, DEVEL",CAPITAL EXPENDITURE,CAPITAL EXPENDITURE,4990,Springfield-path renewal,26/11/2023 00:00:00,277160,3300,MO0041,CAPSER,30/10/2023 00:00:00,26/11/2023 00:00:00,P08-2024
P&V,"ASSET PROTECTION, MAINT, DEVEL",CAPITAL EXPENDITURE,CAPITAL EXPENDITURE,4990,P123929-SERVICE-CCTV rental VeloPark,11/07/2023 00:00,278144,12262.74,ST0642,SECURITAS TECHNOLOGY LIMITED(frmly Stanley S),30/10/2023 00:00:00,26/11/2023 00:00:00,P08-2024
P&V,"ASSET PROTECTION, MAINT, DEVEL",CAPITAL EXPENDITURE,CAPITAL EXPENDITURE,4990,P123942-SERVICE-Additional Work required for Kayak Ramp,11/08/2023 00:00,278252,7248.1,CA0508,CARMELCREST LTD,30/10/2023 00:00:00,26/11/2023 00:00:00,P08-2024
P&V,"ASSET PROTECTION, MAINT, DEVEL",CAPITAL EXPENDITURE,CAPITAL EXPENDITURE,4990,P123895-SERVICE-CCTV survey of Velopark drains,11/07/2023 00:00,278414,600,CO0550,CONVERT WATER LTD,30/10/2023 00:00:00,26/11/2023 00:00:00,P08-2024
P&V,"ASSET PROTECTION, MAINT, DEVEL",CAPITAL EXPENDITURE,CAPITAL EXPENDITURE,4990,P123944-SERVICE-3 Mills Green release of 2.5% retention,14/11/2023 00:00:00,278561,9022.39,HE0297,HENDERSON & TAYLOR (PUBLIC WORKS LIMITED),30/10/2023 00:00:00,26/11/2023 00:00:00,P08-2024
P&V,"ASSET PROTECTION, MAINT, DEVEL",CAPITAL EXPENDITURE,CAPITAL EXPENDITURE,4990,P122525-SERVICE-Stanstead Marina � Lighting to workshop,11/08/2023 00:00,279232,20610,BR0018,BRADSHAW ELECTRICAL LIMITED,30/10/2023 00:00:00,26/11/2023 00:00:00,P08-2024
P&V,"ASSET PROTECTION, MAINT, DEVEL",CAPITAL EXPENDITURE,CAPITAL EXPENDITURE,4990,P123219-SERVICE-Collect and clean rear sign face from Holyfie,11/07/2023 00:00,279258,450,KE0023,KENDALL & SONS LIMITED,30/10/2023 00:00:00,26/11/2023 00:00:00,P08-2024
P&V,"ASSET PROTECTION, MAINT, DEVEL",CAPITAL EXPENDITURE,CAPITAL EXPENDITURE,4990,P123376-SERVICE-Stone Pick and Sow Grass at White Water Centr,11/08/2023 00:00,279260,1879,KE0023,KENDALL & SONS LIMITED,30/10/2023 00:00:00,26/11/2023 00:00:00,P08-2024
P&V,"ASSET PROTECTION, MAINT, DEVEL",CAPITAL EXPENDITURE,CAPITAL EXPENDITURE,4990,P122859-SERVICE-Replacement of 2 no locks to signage cabinets,11/08/2023 00:00,279262,175,KE0023,KENDALL & SONS LIMITED,30/10/2023 00:00:00,26/11/2023 00:00:00,P08-2024
P&V,"ASSET PROTECTION, MAINT, DEVEL",CAPITAL EXPENDITURE,CAPITAL EXPENDITURE,4990,P123237-SERVICE-Stanstead marina pontoon 3,11/07/2023 00:00,279264,583,KE0023,KENDALL & SONS LIMITED,30/10/2023 00:00:00,26/11/2023 00:00:00,P08-2024
P&V,"ASSET PROTECTION, MAINT, DEVEL",CAPITAL EXPENDITURE,CAPITAL EXPENDITURE,4990,P123827-SERVICE-Replacing 6 No. perspex signage sheets at Tot,11/07/2023 00:00,279268,790,KE0023,KENDALL & SONS LIMITED,30/10/2023 00:00:00,26/11/2023 00:00:00,P08-2024
P&V,"ASSET PROTECTION, MAINT, DEVEL",CAPITAL EXPENDITURE,CAPITAL EXPENDITURE,4990,P123484-SERVICE-Attend Velodrome on 5/10/23,11/07/2023 00:00,279269,500,KE0023,KENDALL & SONS LIMITED,30/10/2023 00:00:00,26/11/2023 00:00:00,P08-2024
P&V,"ASSET PROTECTION, MAINT, DEVEL",CAPITAL EXPENDITURE,CAPITAL EXPENDITURE,4990,P123917-SERVICE-2no air vents. Lowered and repaired large air,15/11/2023 00:00:00,279372,240,RE0094,REACT 2 IT (BUILDING & REFURBISHMENT) LTD,30/10/2023 00:00:00,26/11/2023 00:00:00,P08-2024
P&V,"ASSET PROTECTION, MAINT, DEVEL",CAPITAL EXPENDITURE,CAPITAL EXPENDITURE,4990,P123920-SERVICE-Stair nosing�s to metal staircase,15/11/2023 00:00:00,279373,540,RE0094,REACT 2 IT (BUILDING & REFURBISHMENT) LTD,30/10/2023 00:00:00,26/11/2023 00:00:00,P08-2024
P&V,"ASSET PROTECTION, MAINT, DEVEL",CAPITAL EXPENDITURE,CAPITAL EXPENDITURE,4990,P123918-SERVICE-Black screening around perimeter fence,15/11/2023 00:00:00,279374,780,RE0094,REACT 2 IT (BUILDING & REFURBISHMENT) LTD,30/10/2023 00:00:00,26/11/2023 00:00:00,P08-2024
P&V,"ASSET PROTECTION, MAINT, DEVEL",CAPITAL EXPENDITURE,CAPITAL EXPENDITURE,4990,P123915-SERVICE-2no sunken footpaths. Carried out repairs to,15/11/2023 00:00:00,279375,790,RE0094,REACT 2 IT (BUILDING & REFURBISHMENT) LTD,30/10/2023 00:00:00,26/11/2023 00:00:00,P08-2024
P&V,"ASSET PROTECTION, MAINT, DEVEL",CAPITAL EXPENDITURE,CAPITAL EXPENDITURE,4990,P123922-SERVICE-Additional costs for change of paint,15/11/2023 00:00:00,279473,980,RE0094,REACT 2 IT (BUILDING & REFURBISHMENT) LTD,30/10/2023 00:00:00,26/11/2023 00:00:00,P08-2024
P&V,"ASSET PROTECTION, MAINT, DEVEL",CAPITAL EXPENDITURE,CAPITAL EXPENDITURE,4990,P123917-SERVICE-3no bridge to footpath trip hazards,15/11/2023 00:00:00,279474,640,RE0094,REACT 2 IT (BUILDING & REFURBISHMENT) LTD,30/10/2023 00:00:00,26/11/2023 00:00:00,P08-2024
P&V,"ASSET PROTECTION, MAINT, DEVEL",CAPITAL EXPENDITURE,CAPITAL EXPENDITURE,4990,P123919-SERVICE-Staff cabin and fence to be painted,15/11/2023 00:00:00,279475,3520,RE0094,REACT 2 IT (BUILDING & REFURBISHMENT) LTD,30/10/2023 00:00:00,26/11/2023 00:00:00,P08-2024
P&V,"ASSET PROTECTION, MAINT, DEVEL",CAPITAL EXPENDITURE,CAPITAL EXPENDITURE,4990,P123915-SERVICE-1no composite deck board and rubber cover. Re,15/11/2023 00:00:00,279476,180,RE0094,REACT 2 IT (BUILDING & REFURBISHMENT) LTD,30/10/2023 00:00:00,26/11/2023 00:00:00,P08-2024
P&V,"ASSET PROTECTION, MAINT, DEVEL",CAPITAL EXPENDITURE,CAPITAL EXPENDITURE,4990,P123920-SERVICE-1no pathway repair to be carried out by terra,15/11/2023 00:00:00,279477,350,RE0094,REACT 2 IT (BUILDING & REFURBISHMENT) LTD,30/10/2023 00:00:00,26/11/2023 00:00:00,P08-2024
P&V,"ASSET PROTECTION, MAINT, DEVEL",CAPITAL EXPENDITURE,CAPITAL EXPENDITURE,4990,P123220-SERVICE-Clean down and then apply one coat Owatrol Te,15/11/2023 00:00:00,279478,1500,RE0094,REACT 2 IT (BUILDING & REFURBISHMENT) LTD,30/10/2023 00:00:00,26/11/2023 00:00:00,P08-2024
P&V,"ASSET PROTECTION, MAINT, DEVEL",CAPITAL EXPENDITURE,CAPITAL EXPENDITURE,4990,P123921-SERVICE-Additional costs for change of paint,15/11/2023 00:00:00,279479,800,RE0094,REACT 2 IT (BUILDING & REFURBISHMENT) LTD,30/10/2023 00:00:00,26/11/2023 00:00:00,P08-2024
P&V,"ASSET PROTECTION, MAINT, DEVEL",CAPITAL EXPENDITURE,CAPITAL EXPENDITURE,4990,P123916-SERVICE-Kayak cross ramp mechanism. To erect tower an,15/11/2023 00:00:00,279480,1190,RE0094,REACT 2 IT (BUILDING & REFURBISHMENT) LTD,30/10/2023 00:00:00,26/11/2023 00:00:00,P08-2024
P&V,"ASSET PROTECTION, MAINT, DEVEL",CAPITAL EXPENDITURE,CAPITAL EXPENDITURE,4990,"P123914-SERVICE-2no man hole covers, 2 x cut out existing dam",15/11/2023 00:00:00,279481,460,RE0094,REACT 2 IT (BUILDING & REFURBISHMENT) LTD,30/10/2023 00:00:00,26/11/2023 00:00:00,P08-2024
P&V,"ASSET PROTECTION, MAINT, DEVEL",CAPITAL EXPENDITURE,CAPITAL EXPENDITURE,4990,P123914-SERVICE-Glass Panels by VIP terrace. One section of g,15/11/2023 00:00:00,279482,440,RE0094,REACT 2 IT (BUILDING & REFURBISHMENT) LTD,30/10/2023 00:00:00,26/11/2023 00:00:00,P08-2024
P&V,"ASSET PROTECTION, MAINT, DEVEL",CAPITAL EXPENDITURE,CAPITAL EXPENDITURE,4990,P123958-SERVICE-Springfield Marina Plant Room works to instal,15/11/2023 00:00:00,279535,165,SO0400,SOUTHERN GREEN SERVICES LIMITED,30/10/2023 00:00:00,26/11/2023 00:00:00,P08-2024
P&V,"ASSET PROTECTION, MAINT, DEVEL",CAPITAL EXPENDITURE,CAPITAL EXPENDITURE,4990,P123927-SERVICE-To remove and dispose of loose asbestos cemen,15/11/2023 00:00:00,279595,650,AS0509,ASPECT CONTRACT LTD,30/10/2023 00:00:00,26/11/2023 00:00:00,P08-2024
P&V,"ASSET PROTECTION, MAINT, DEVEL",CAPITAL EXPENDITURE,CAPITAL EXPENDITURE,4990,P124018-SERVICE-Data Works Stanstead Marina,20/11/2023 00:00:00,279637,440,DE0318,DESIGN AND MANAGEMENT SYSTEMS LTD,30/10/2023 00:00:00,26/11/2023 00:00:00,P08-2024
P&V,"ASSET PROTECTION, MAINT, DEVEL",CAPITAL EXPENDITURE,CAPITAL EXPENDITURE,4990,P124090-SERVICE-Myddelton House roof leak repair,22/11/2023 00:00:00,279844,285,FI0249,FIELD & CO ROOFING LTD,30/10/2023 00:00:00,26/11/2023 00:00:00,P08-2024
P&V,"ASSET PROTECTION, MAINT, DEVEL",CAPITAL EXPENDITURE,CAPITAL EXPENDITURE,4990,P123690-SERVICE-HTC - urgent re-fixing of loose timber claddi,22/11/2023 00:00:00,279849,940,RE0094,REACT 2 IT (BUILDING & REFURBISHMENT) LTD,30/10/2023 00:00:00,26/11/2023 00:00:00,P08-2024
P&V,"ASSET PROTECTION, MAINT, DEVEL",CAPITAL EXPENDITURE,CAPITAL EXPENDITURE,4990,P123354-SERVICE-Notice Board Header fro Lee Valley White Wate,26/11/2023 00:00:00,279885,30,SI0024,SIGNS EXPRESS (HARLOW),30/10/2023 00:00:00,26/11/2023 00:00:00,P08-2024
P&V,"ASSET PROTECTION, MAINT, DEVEL",CAPITAL EXPENDITURE,CAPITAL EXPENDITURE,4990,P124216-SERVICE-Veloplaza lamp posts,26/11/2023 00:00:00,280027,1365,BR0018,BRADSHAW ELECTRICAL LIMITED,30/10/2023 00:00:00,26/11/2023 00:00:00,P08-2024
P&V,"ASSET PROTECTION, MAINT, DEVEL",CAPITAL EXPENDITURE,CAPITAL EXPENDITURE,4990,P124135-SERVICE-Cameras for Waterworks,26/11/2023 00:00:00,280038,2838.02,BR0650,BROADBANDBUYER.COM,30/10/2023 00:00:00,26/11/2023 00:00:00,P08-2024
P&V,"ASSET PROTECTION, MAINT, DEVEL",CAPITAL EXPENDITURE,CAPITAL EXPENDITURE,4990,DW-trench for gas,26/11/2023 00:00:00,280047,600,MO0041,CAPSER,30/10/2023 00:00:00,26/11/2023 00:00:00,P08-2024
P&V,"ASSET PROTECTION, MAINT, DEVEL",CAPITAL EXPENDITURE,CAPITAL EXPENDITURE,4990,P122923-SERVICE-DObbs Weir trench for gas,26/11/2023 00:00:00,280047,1800,MO0041,CAPSER,30/10/2023 00:00:00,26/11/2023 00:00:00,P08-2024
P&V,"ASSET PROTECTION, MAINT, DEVEL",CAPITAL EXPENDITURE,CAPITAL EXPENDITURE,4990,DW-trench for gas,26/11/2023 00:00:00,280047,-1800,MO0041,CAPSER,30/10/2023 00:00:00,26/11/2023 00:00:00,P08-2024
P&V,"ASSET PROTECTION, MAINT, DEVEL",CAPITAL EXPENDITURE,CAPITAL EXPENDITURE,4990,DW-trench for gas,26/11/2023 00:00:00,280047,1200,MO0041,CAPSER,30/10/2023 00:00:00,26/11/2023 00:00:00,P08-2024
P&V,EAST INDIA DOCK AND BOW CREEK,CAPITAL EXPENDITURE,CAPITAL EXPENDITURE,4990,P118828-SERVICE-East India Dock Basin Project - Pre Applicati,26/11/2023 00:00:00,280085,91.5,MA0488,MARINE MANAGEMENT ORGANISATION,30/10/2023 00:00:00,26/11/2023 00:00:00,P08-2024
P&V,NORTH AREA RANGERS,CAPITAL EXPENDITURE,CAPITAL EXPENDITURE,4990,"P123157-SERVICE-St Pauls Field Badger Survey, NE Licence Appl",15/11/2023 00:00:00,279307,2747.5,MI0489,MIDDLEMARCH ENVIRONMENTAL LTD,30/10/2023 00:00:00,26/11/2023 00:00:00,P08-2024
P&V,NORTH AREA RANGERS,CAPITAL EXPENDITURE,CAPITAL EXPENDITURE,4990,P123464-SERVICE-Architect Brief for St Paul�s Filed Footpath,14/11/2023 00:00:00,279512,3946.03,LA0471,LANPRO SERVICES LIMITED,30/10/2023 00:00:00,26/11/2023 00:00:00,P08-2024
P&V,SOUTH AREA RANGERS,CAPITAL EXPENDITURE,CAPITAL EXPENDITURE,4990,P123463-SERVICE-Consultation Brief for North Wall Road Develo,11/07/2023 00:00,279126,5895,LA0212,LAND USE CONSULTANTS LIMITED,30/10/2023 00:00:00,26/11/2023 00:00:00,P08-2024
P&V,BIODIVERSITY ACTION PLAN,CAPITAL EXPENDITURE,CAPITAL EXPENDITURE,4990,P119036-SERVICE-Data Search,11/07/2023 00:00,279214,290,MI0489,MIDDLEMARCH ENVIRONMENTAL LTD,30/10/2023 00:00:00,26/11/2023 00:00:00,P08-2024
P&V,BIODIVERSITY ACTION PLAN,CAPITAL EXPENDITURE,CAPITAL EXPENDITURE,4990,P119036-SERVICE-Undertake PEA and Stage 1 Biodiversity Metric,11/07/2023 00:00,279214,35,MI0489,MIDDLEMARCH ENVIRONMENTAL LTD,30/10/2023 00:00:00,26/11/2023 00:00:00,P08-2024
P&V,BIODIVERSITY ACTION PLAN,CAPITAL EXPENDITURE,CAPITAL EXPENDITURE,4990,P123866-SERVICE-2023-24  Service Level Agreement Between Hert,15/11/2023 00:00:00,279530,1514,HE0275,HERTS & MIDDLESEX WILDLIFE TRUST,30/10/2023 00:00:00,26/11/2023 00:00:00,P08-2024
,LEE VALLEY ICE CENTRE,CAPITAL EXPENDITURE,CAPITAL EXPENDITURE,4990,P123828-SERVICE-Sandy Lane Fault find on gate not closing,11/07/2023 00:00,279111,115,DE0013,DENNIS SECURITY CENTRE,30/10/2023 00:00:00,26/11/2023 00:00:00,P08-2024
,LEE VALLEY ICE CENTRE,CAPITAL EXPENDITURE,CAPITAL EXPENDITURE,4990,P124046-SERVICE-6 Months GM works at Ice centre,20/11/2023 00:00:00,279218,4110.84,GL0214,GLENDALE GROUNDS MANAGEMENT LIMITED,30/10/2023 00:00:00,26/11/2023 00:00:00,P08-2024
CEO,PR/COMMUNICATIONS,THIRD PARTY PAYMENTS,CONSULTANTS (GENERAL),5110,P121681-SERVICE-Communications Support - LVRPA Corporate,15/11/2023 00:00:00,279580,3000,LO0024,LONDON COMMUNICATIONS AGENCY LTD,30/10/2023 00:00:00,26/11/2023 00:00:00,P08-2024
P&V,"ASSET PROTECTION, MAINT, DEVEL",THIRD PARTY PAYMENTS,CONSULTANTS (GENERAL),5110,P124043-SERVICE-MDF Sluice design Job ref 190383,20/11/2023 00:00:00,278887,5250,PE0379,PERFECT CIRCLE JV LTD,30/10/2023 00:00:00,26/11/2023 00:00:00,P08-2024
P&V,"ASSET PROTECTION, MAINT, DEVEL",THIRD PARTY PAYMENTS,CONSULTANTS (GENERAL),5110,P123894-SERVICE-Velodrome HVM,15/11/2023 00:00:00,279367,750,PR0480,PREMISES PROTECT LTD,30/10/2023 00:00:00,26/11/2023 00:00:00,P08-2024
P&V,"ASSET PROTECTION, MAINT, DEVEL",THIRD PARTY PAYMENTS,CONSULTANTS (GENERAL),5110,P123183-SERVICE-Undertake survey at Stanstead Marina,15/11/2023 00:00:00,279509,450,SO0400,SOUTHERN GREEN SERVICES LIMITED,30/10/2023 00:00:00,26/11/2023 00:00:00,P08-2024
P&V,"ASSET PROTECTION, MAINT, DEVEL",THIRD PARTY PAYMENTS,CONSULTANTS (GENERAL),5110,P124021-SERVICE-Meeting attendance and security advice on Vel,20/11/2023 00:00:00,279621,140,PR0480,PREMISES PROTECT LTD,30/10/2023 00:00:00,26/11/2023 00:00:00,P08-2024
R&B,FINANCE & RESOURCES MANAGEMENT,THIRD PARTY PAYMENTS,CONSULTANTS (GENERAL),5110,P124137-SERVICE-In-tend Maintenance & Hosting,26/11/2023 00:00:00,279894,1144.25,IN0160,IN-TEND LIMITED,30/10/2023 00:00:00,26/11/2023 00:00:00,P08-2024
P&V,ABBEY GARDENS,THIRD PARTY PAYMENTS,CONSULTANTS (GENERAL),5110,P124022-SERVICE-Archaeological Monitoring at Cornmill Meadows,22/11/2023 00:00:00,279851,200,EN0416,ENFIELD ARCHAEOLOGICAL SOCIETY,30/10/2023 00:00:00,26/11/2023 00:00:00,P08-2024
P&V,ABBEY GARDENS,THIRD PARTY PAYMENTS,CONSULTANTS (GENERAL),5110,P122932-SERVICE-Waltham Abbey Gardens Wall 2 Section 2 Repair,26/11/2023 00:00:00,280039,250,PU0213,PURCELL ARCHITECTURE LTD,30/10/2023 00:00:00,26/11/2023 00:00:00,P08-2024
P&V,EVENTS MANAGEMENT (PR),THIRD PARTY PAYMENTS,CONSULTANTS (GENERAL),5110,P122964-SERVICE-LVRPA contribution towards Counter Terrorism,22/11/2023 00:00:00,279833,3750,GR0097,GREENWICH LEISURE LTD,30/10/2023 00:00:00,26/11/2023 00:00:00,P08-2024
CEO,COMMERCIAL ACCOMMODATION,THIRD PARTY PAYMENTS,CONSULTANTS (LEGAL SERVICES),5120,P124054-SERVICE-Valuation Advice - Junction of Nursery Rd and,26/11/2023 00:00:00,279539,1000,WA0009,PAUL WALLACE PROFESSIONAL,30/10/2023 00:00:00,26/11/2023 00:00:00,P08-2024
R&B,INTERNAL AUDIT/HEALTH & SAFETY,THIRD PARTY PAYMENTS,CONSULTANTS (HEALTH & SAFETY),5123,P121430-SERVICE-Annual H&S Contract November - March 2024,22/11/2023 00:00:00,279787,11673.33,RI0053,RIGHT DIRECTIONS (MANAGEMENT) LTD,30/10/2023 00:00:00,26/11/2023 00:00:00,P08-2024
R&B,BALANCE SHEET (AUTHORITY),CREDITORS,HMRC RED DIESEL,6516,01/11/22-31/10/23,11/07/2023 00:00,279308,982.38,HM0220,HM REVENUE & CUSTOMS,30/10/2023 00:00:00,26/11/2023 00:00:00,P08-2024
R&B,BALANCE SHEET (AUTHORITY),CREDITORS,HMRC RED DIESEL,6516,01/11/22-31/10/23,11/07/2023 00:00,279309,3030.11,HM0220,HM REVENUE & CUSTOMS,30/10/2023 00:00:00,26/11/2023 00:00:00,P08-2024
R&B,BALANCE SHEET (AUTHORITY),CREDITORS,EMPLOYEES INCOME TAX,6701,PAYE,14/11/2023 00:00:00,279385,62917.72,HM0368,HMRC,30/10/2023 00:00:00,26/11/2023 00:00:00,P08-2024
R&B,BALANCE SHEET (AUTHORITY),CREDITORS,EMPLOYEES NATIONAL INSURANCE,6702,PAYE,14/11/2023 00:00:00,279385,28318.1,HM0368,HMRC,30/10/2023 00:00:00,26/11/2023 00:00:00,P08-2024
R&B,BALANCE SHEET (AUTHORITY),CREDITORS,EMPLOYERS NATIONAL INSURANCE,6704,PAYE,14/11/2023 00:00:00,279385,45405.75,HM0368,HMRC,30/10/2023 00:00:00,26/11/2023 00:00:00,P08-2024
R&B,BALANCE SHEET (AUTHORITY),CREDITORS,EMPLOYEES PENSION LGPS,6706,EMPLOYEE CONTRIBUTIONS,14/11/2023 00:00:00,279386,27983.97,LO0334,LONDON PENSION FUND OPERATIONAL ACCOUNT,30/10/2023 00:00:00,26/11/2023 00:00:00,P08-2024
R&B,BALANCE SHEET (AUTHORITY),CREDITORS,EMPLOYEES PENSION LGPS,6706,AVC CONTRIBUTIONS,14/11/2023 00:00:00,279387,125,LO0455,LOCAL GOVERNMENT AVC DEPARTMENT,30/10/2023 00:00:00,26/11/2023 00:00:00,P08-2024
R&B,BALANCE SHEET (AUTHORITY),CREDITORS,EMPLOYERS PENSION LGPS,6707,EMPLOYER CONTRIBUTIONS,14/11/2023 00:00:00,279386,52768.67,LO0334,LONDON PENSION FUND OPERATIONAL ACCOUNT,30/10/2023 00:00:00,26/11/2023 00:00:00,P08-2024
R&B,BALANCE SHEET (AUTHORITY),CREDITORS,EMPLOYEES STUDENT LOANS,6709,PAYE,14/11/2023 00:00:00,279385,1339,HM0368,HMRC,30/10/2023 00:00:00,26/11/2023 00:00:00,P08-2024
R&B,BALANCE SHEET (AUTHORITY),CREDITORS,EMPLOYEES AEO/DEO,6710,EARNING DEDUCTIONS,11/08/2023 00:00,279211,26.64,HM0464,HMCTS- LONDON COLLECTION & COMPLIANCE,30/10/2023 00:00:00,26/11/2023 00:00:00,P08-2024
R&B,BALANCE SHEET (AUTHORITY),CREDITORS,EMPLOYEES AEO/DEO,6710,ATTACHMENT OF EARNINGS,14/11/2023 00:00:00,279384,847.3,DE0325,DEPARTMENT FOR WORKS AND PENSIONS,30/10/2023 00:00:00,26/11/2023 00:00:00,P08-2024
R&B,BALANCE SHEET (AUTHORITY),CREDITORS,EMPLOYEES UNION SUBSCRIPTIONS,6711,MEMBERSHIP FEES,14/11/2023 00:00:00,279388,63.1,UN0002,UNISON Greater London Region,30/10/2023 00:00:00,26/11/2023 00:00:00,P08-2024
R&B,BALANCE SHEET (AUTHORITY),CREDITORS,CONSTRUCTION INDUSTRY SCHEME,6721,R G JOYCE,11/01/2023 00:00,279171,-208,JO0019,R G JOYCE,30/10/2023 00:00:00,26/11/2023 00:00:00,P08-2024
R&B,BALANCE SHEET (AUTHORITY),CREDITORS,CONSTRUCTION INDUSTRY SCHEME,6721,CAPSER,11/01/2023 00:00,279178,-650,MO0041,CAPSER,30/10/2023 00:00:00,26/11/2023 00:00:00,P08-2024
R&B,BALANCE SHEET (AUTHORITY),CREDITORS,CONSTRUCTION INDUSTRY SCHEME,6721,R G JOYCE,11/08/2023 00:00,279426,-20,JO0019,R G JOYCE,30/10/2023 00:00:00,26/11/2023 00:00:00,P08-2024
R&B,BALANCE SHEET (AUTHORITY),CREDITORS,CONSTRUCTION INDUSTRY SCHEME,6721,KENDALL & SONS LIMITED,11/08/2023 00:00,279428,-1073,KE0023,KENDALL & SONS LIMITED,30/10/2023 00:00:00,26/11/2023 00:00:00,P08-2024
R&B,BALANCE SHEET (AUTHORITY),CREDITORS,CONSTRUCTION INDUSTRY SCHEME,6721,CIS DEDUCTION - JOYCE,14/11/2023 00:00:00,279553,310,IN0016,INLAND REVENUE ONLY 948/L1005,30/10/2023 00:00:00,26/11/2023 00:00:00,P08-2024
R&B,BALANCE SHEET (AUTHORITY),CREDITORS,CONSTRUCTION INDUSTRY SCHEME,6721,CIS DEDUCTION - KENDALLS,14/11/2023 00:00:00,279553,399.2,IN0016,INLAND REVENUE ONLY 948/L1005,30/10/2023 00:00:00,26/11/2023 00:00:00,P08-2024
R&B,BALANCE SHEET (AUTHORITY),CREDITORS,CONSTRUCTION INDUSTRY SCHEME,6721,CIS DEDUCTION - CASPER,14/11/2023 00:00:00,279553,2014.2,IN0016,INLAND REVENUE ONLY 948/L1005,30/10/2023 00:00:00,26/11/2023 00:00:00,P08-2024
R&B,BALANCE SHEET (AUTHORITY),CREDITORS,CONSTRUCTION INDUSTRY SCHEME,6721,KENDALL & SONS LIMITED,15/11/2023 00:00:00,279687,-136.2,KE0023,KENDALL & SONS LIMITED,30/10/2023 00:00:00,26/11/2023 00:00:00,P08-2024
R&B,BALANCE SHEET (AUTHORITY),CREDITORS,CONSTRUCTION INDUSTRY SCHEME,6721,R G JOYCE,22/11/2023 00:00:00,279953,-440,JO0019,R G JOYCE,30/10/2023 00:00:00,26/11/2023 00:00:00,P08-2024
R&B,BALANCE SHEET (AUTHORITY),CREDITORS,CONSTRUCTION INDUSTRY SCHEME,6721,KENDALL & SONS LIMITED,22/11/2023 00:00:00,279956,-247.8,KE0023,KENDALL & SONS LIMITED,30/10/2023 00:00:00,26/11/2023 00:00:00,P08-2024
R&B,BALANCE SHEET (AUTHORITY),CL SUSPENSE,INSURANCE SUSPENSE,6861,Fleet-motor,21/11/2023 00:00:00,279777,2906.96,MA0012,MARSH UK  LTD,30/10/2023 00:00:00,26/11/2023 00:00:00,P08-2024
P&V,CAR PARK INCOME,INCOME,CAR PARKING INCOME,9730,P123878-SERVICE-Credit Call Recharge Pindar - Oct 2023,11/07/2023 00:00,279127,36.42,PA0372,PARKINGEYE LIMITED,30/10/2023 00:00:00,26/11/2023 00:00:00,P08-2024
P&V,CAR PARK INCOME,INCOME,CAR PARKING INCOME,9730,P123878-SERVICE-Credit Call Recharge GPP - Oct 2023,11/07/2023 00:00,279127,35.94,PA0372,PARKINGEYE LIMITED,30/10/2023 00:00:00,26/11/2023 00:00:00,P08-2024
P&V,CAR PARK INCOME,INCOME,CAR PARKING INCOME,9730,P123878-SERVICE-Credit Call Recharge FG - Oct 2023,11/07/2023 00:00,279127,33.24,PA0372,PARKINGEYE LIMITED,30/10/2023 00:00:00,26/11/2023 00:00:00,P08-2024
P&V,CAR PARK INCOME,INCOME,CAR PARKING INCOME,9730,P123878-SERVICE-Credit Call Recharge OM&M - Oct 2023,11/07/2023 00:00,279127,4.56,PA0372,PARKINGEYE LIMITED,30/10/2023 00:00:00,26/11/2023 00:00:00,P08-2024
P&V,CAR PARK INCOME,INCOME,CAR PARKING INCOME,9730,P123878-SERVICE-Credit Call Recharge CMM - Oct 2023,11/07/2023 00:00,279127,6.54,PA0372,PARKINGEYE LIMITED,30/10/2023 00:00:00,26/11/2023 00:00:00,P08-2024
P&V,CAR PARK INCOME,INCOME,CAR PARKING INCOME,9730,P123878-SERVICE-Credit Call Recharge CA110656 - Oct 2023,11/07/2023 00:00,279127,12,PA0372,PARKINGEYE LIMITED,30/10/2023 00:00:00,26/11/2023 00:00:00,P08-2024
P&V,CAR PARK INCOME,INCOME,CAR PARKING INCOME,9730,P123878-SERVICE-Credit Call Recharge WAG - Oct 2023,11/07/2023 00:00,279127,23.28,PA0372,PARKINGEYE LIMITED,30/10/2023 00:00:00,26/11/2023 00:00:00,P08-2024
P&V,CAR PARK INCOME,INCOME,CAR PARKING INCOME,9730,Various-Paid by Phone Oct23,11/07/2023 00:00,279210,288.75,PA0372,PARKINGEYE LIMITED,30/10/2023 00:00:00,26/11/2023 00:00:00,P08-2024
P&V,CAR PARK INCOME,INCOME,CAR PARKING INCOME,9730,Various-Paid by Phone Oct23,11/07/2023 00:00,279210,-5205.57,PA0372,PARKINGEYE LIMITED,30/10/2023 00:00:00,26/11/2023 00:00:00,P08-2024
P&V,CAR PARK INCOME,INCOME,CAR PARKING INCOME,9730,P123878-SERVICE-Paid Parking Tickets Used - Clayton- ct 2023,11/07/2023 00:00,279222,0.14,PA0372,PARKINGEYE LIMITED,30/10/2023 00:00:00,26/11/2023 00:00:00,P08-2024
P&V,CAR PARK INCOME,INCOME,CAR PARKING INCOME,9730,P123878-SERVICE-Paid Parking Tickets Used - Pindar - Oct 2023,11/07/2023 00:00,279222,3.89,PA0372,PARKINGEYE LIMITED,30/10/2023 00:00:00,26/11/2023 00:00:00,P08-2024
P&V,CAR PARK INCOME,INCOME,CAR PARKING INCOME,9730,P123878-SERVICE-Paid Parking Tickets Used - OM&M - Oct 2023,11/07/2023 00:00,279222,4,PA0372,PARKINGEYE LIMITED,30/10/2023 00:00:00,26/11/2023 00:00:00,P08-2024
P&V,CAR PARK INCOME,INCOME,CAR PARKING INCOME,9730,P123878-SERVICE-Paid Parking Tickets Used - CMM - Oct 2023,11/07/2023 00:00,279222,0.68,PA0372,PARKINGEYE LIMITED,30/10/2023 00:00:00,26/11/2023 00:00:00,P08-2024
P&V,CAR PARK INCOME,INCOME,CAR PARKING INCOME,9730,P123878-SERVICE-Paid Parking Tickets Used - GPP - Oct 2023,11/07/2023 00:00,279222,3.74,PA0372,PARKINGEYE LIMITED,30/10/2023 00:00:00,26/11/2023 00:00:00,P08-2024
P&V,CAR PARK INCOME,INCOME,CAR PARKING INCOME,9730,P123878-SERVICE-Paid Parking Tickets Used - WAG - Oct 2023,11/07/2023 00:00,279222,2.38,PA0372,PARKINGEYE LIMITED,30/10/2023 00:00:00,26/11/2023 00:00:00,P08-2024
P&V,CAR PARK INCOME,INCOME,CAR PARKING INCOME,9730,P123878-SERVICE-Paid Parking Tickets Used - FG - Oct 2023,11/07/2023 00:00,279222,3.49,PA0372,PARKINGEYE LIMITED,30/10/2023 00:00:00,26/11/2023 00:00:00,P08-2024
P&V,CAR PARK INCOME,INCOME,CAR PARKING INCOME,9730,Pindar-Parking Charges Oct23,11/07/2023 00:00,279274,-145.75,PA0372,PARKINGEYE LIMITED,30/10/2023 00:00:00,26/11/2023 00:00:00,P08-2024
P&V,CAR PARK INCOME,INCOME,CAR PARKING INCOME,9730,Cornmill M- Parking Charges Oct23,11/07/2023 00:00,279275,-102.38,PA0372,PARKINGEYE LIMITED,30/10/2023 00:00:00,26/11/2023 00:00:00,P08-2024
P&V,CAR PARK INCOME,INCOME,CAR PARKING INCOME,9730,Clayton Hill-Parking Charges Oct23,11/07/2023 00:00,279276,-59.06,PA0372,PARKINGEYE LIMITED,30/10/2023 00:00:00,26/11/2023 00:00:00,P08-2024
P&V,CAR PARK INCOME,INCOME,CAR PARKING INCOME,9730,Gunpowder Park-Parking Charges Oct23,11/07/2023 00:00,279277,-51.38,PA0372,PARKINGEYE LIMITED,30/10/2023 00:00:00,26/11/2023 00:00:00,P08-2024
P&V,CAR PARK INCOME,INCOME,CAR PARKING INCOME,9730,Waltham Abbey-Parking Charges Oct23,11/07/2023 00:00,279278,-57.04,PA0372,PARKINGEYE LIMITED,30/10/2023 00:00:00,26/11/2023 00:00:00,P08-2024
P&V,CAR PARK INCOME,INCOME,CAR PARKING INCOME,9730,Fishers Green Main-Parking Charges Oct23,11/07/2023 00:00,279279,-42.25,PA0372,PARKINGEYE LIMITED,30/10/2023 00:00:00,26/11/2023 00:00:00,P08-2024
P&V,CAR PARK INCOME,INCOME,CAR PARKING INCOME,9730,Brox Old Mill-Parking Charges Oct23,11/07/2023 00:00,279280,-89.75,PA0372,PARKINGEYE LIMITED,30/10/2023 00:00:00,26/11/2023 00:00:00,P08-2024
